Workbook

Sheet 임시반편성통합원본 (hidden)
B1: 학반 | C1: 번호 | D1: 출신중명 | E1: 이름 | F1: 보호자성명 | G1: 보호자관계 | H1: 보호자전화 | I1: 학생전화 | J1: 생년월일 | K1: 계열 | L1: 체육종목 | M1: 보훈번호 | N1: 시도 | O1: 구군 | P1: 도로명 | Q1: 건물번호 | R1: 건물명 | S1: 상세주소 | T1: 백분율 | U1: 석차 | V1: 국어 | W1: 수학 | X1: 영어 | Y1: 석차 | Z1: 반펀성석차
A2: =B2*100+C2 -> 1101 | B2: 11 | C2: 1 | D2: 대구동중 | E2: 강나연 | F2: 강봉석 | G2: 부 | H2: 01058934513 | I2: 01042204513 | J2: 990820 | K2: 일반 | N2: 대구광역시 | O2: 수성구 | P2: 상록로 | Q2: 69 | R2: 래미안수성 | S2: 105동 605호 (범어동) | T2: 22.993 | U2: 189 | V2: 76 | W2: 92 | X2: 84 | Y2: 144 | Z2: 153
A3: =B3*100+C3 -> 1301 | B3: 13 | C3: 1 | D3: 소선여중 | E3: 강나영 | F3: 이정애 | G3: 모 | H3: 01025241123 | I3: 01076610355 | J3: 990207 | K3: 일반 | N3: 대구광역시 | O3: 수성구 | P3: 범어로24길 | Q3: 22-1 | S3: (범어동) | T3: 50.314 | U3: 367 | V3: 76 | W3: 64 | X3: 64 | Y3: 335 | Z3: 354
A4: 1201 | B4: 12 | C4: 1 | D4: 노변중 | E4: 강민주 | F4: 제갈원 | G4: 모 | H4: 01042884834 | I4: 01092374838 | J4: 991022 | K4: 일반 | N4: 대구광역시 | O4: 수성구 | P4: 노변로 | Q4: 55 | R4: 수성월드메르디앙 | S4: 105동 105호 (노변동) | T4: 4.407 | U4: 29 | V4: 72 | W4: 96 | X4: 88 | Y4: 120 | Z4: 103
A5: 301 | B5: 3 | C5: 1 | D5: 동도중 | E5: 강연주 | F5: 강동필 | G5: 부 | H5: 01035181012 | I5: 01074888335 | J5: 990426 | K5: 일반 | N5: 대구광역시 | O5: 수성구 | P5: 범어로 | Q5: 45 | R5: 가든하이츠 | S5: 105동 105호 (범어동) | T5: 39.203 | U5: 296 | V5: 76 | W5: 80 | X5: 96 | Y5: 144 | Z5: 173
A6: 901 | B6: 9 | C6: 1 | D6: 지산중 | E6: 강연희 | F6: 여순임 | G6: 모 | H6: 01025294668 | I6: 01051134669 | J6: 990707 | K6: 일반 | N6: 대구광역시 | O6: 수성구 | P6: 지범로31안길 | Q6: 3-9 | S6: (지산동) | T6: 75.575 | U6: 485 | V6: 52 | W6: 24 | X6: 36 | Y6: 496 | Z6: 499
A7: 101 | B7: 1 | C7: 1 | D7: 대구동중 | E7: 강주영 | F7: 김명순 | G7: 모 | H7: 01094493534 | I7: 01099123534 | J7: 991026 | K7: 일반 | N7: 대구광역시 | O7: 수성구 | P7: 명덕로 | Q7: 455 | R7: 수성3가 롯데캐슬 | S7: 103동 401호 (수성동3가) | T7: 20.255 | U7: 162 | V7: 88 | W7: 84 | X7: 88 | Y7: 102 | Z7: 114
A8: 401 | B8: 4 | C8: 1 | D8: 노변중 | E8: 강진하 | F8: 하정란 | G8: 모 | H8: 01093900268 | I8: 01089900278 | J8: 991108 | K8: 일반 | N8: 대구광역시 | O8: 수성구 | P8: 달구벌대로 | Q8: 3110 | R8: 아이프라임시지 | S8: 102동 1102호 (시지동) | T8: 30.847 | U8: 246 | V8: 76 | W8: 64 | X8: 88 | Y8: 256 | Z8: 258
A9: 902 | B9: 9 | C9: 2 | D9: 대구동중 | E9: 강태인 | F9: 최미숙 | G9: 모 | H9: 01095359026 | I9: 01085609026 | J9: 991129 | K9: 일반 | N9: 대구광역시 | O9: 수성구 | P9: 명덕로 | Q9: 455 | R9: 수성3가 롯데캐슬 | S9: 107동 203호 (수성동3가) | T9: 62.044 | U9: 435 | V9: 32 | W9: 68 | X9: 60 | Y9: 451 | Z9: 460
A10: 938 | B10: 9 | C10: 38 | D10: 대구일중 | E10: 고민지 | F10: 권미정 | G10: 모 | H10: 01041566903 | I10: 01041816903 | J10: 990820 | K10: 체특 | L10: 배구 | N10: 경상북도 | O10: 포항시 남구 | P10: 양학천로 | Q10: 102-1 | R10: 그랜맨션 | S10: 나동 109호 (대도동) | T10: 95.11 | U10: 517 | V10: 0 | W10: 0 | X10: 0 | Y10: 0 | Z10: 0
A11: 201 | B11: 2 | C11: 1 | D11: 고산중 | E11: 고영경 | F11: 이현숙 | G11: 모 | H11: 01075809975 | I11: 01075879975 | J11: 000211 | K11: 일반 | N11: 대구광역시 | O11: 수성구 | P11: 달구벌대로641길 | Q11: 8 | R11: 매호2차동서타운 | S11: 203동 1102호 (매호동) | T11: 56.322 | U11: 403 | V11: 64 | W11: 68 | X11: 60 | Y11: 378 | Z11: 393
A12: 302 | B12: 3 | C12: 2 | D12: 성지중 | E12: 공여진 | F12: 조은숙 | G12: 모 | H12: 01085926952 | I12: 01048426951 | J12: 000228 | K12: 일반 | N12: 대구광역시 | O12: 수성구 | P12: 범어천로 | Q12: 200 | R12: 범어월드메르디앙 웨스턴카운티 | S12: 203동 202호 (범어동) | T12: 44.191 | U12: 328 | V12: 64 | W12: 64 | X12: 80 | Y12: 316 | Z12: 336
A13: 1102 | B13: 11 | C13: 2 | D13: 공산중 | E13: 곽소영 | F13: 최문희 | G13: 모 | H13: 01093760234 | I13: 01065861127 | J13: 990720 | K13: 일반 | N13: 대구광역시 | O13: 수성구 | P13: 범어로26길 | Q13: 26-3 | S13: (범어동) | T13: 16.456 | U13: 128 | V13: 72 | W13: 36 | X13: 92 | Y13: 352 | Z13: 321
A14: 1202 | B14: 12 | C14: 2 | D14: 황금중 | E14: 구문정 | F14: 윤순임 | G14: 모 | H14: 01067806583 | I14: 01028886583 | J14: 990817 | K14: 일반 | N14: 대구광역시 | O14: 수성구 | P14: 동대구로54길 | Q14: 63 | S14: (범어동) | T14: 79.301 | U14: 497 | V14: 68 | W14: 36 | X14: 88 | Y14: 378 | Z14: 411
A15: 303 | B15: 3 | C15: 3 | D15: 매호중 | E15: 구보민 | F15: 장재교 | G15: 모 | H15: 01023548231 | I15: 01026088231 | J15: 990708 | K15: 일반 | N15: 대구광역시 | O15: 수성구 | P15: 천을로23길 | Q15: 21 | R15: 신매역우방유쉘 | S15: 101동 405호 (매호동) | T15: 32.045 | U15: 252 | V15: 84 | W15: 80 | X15: 92 | Y15: 120 | Z15: 145
A16: 601 | B16: 6 | C16: 1 | D16: 대구동중 | E16: 권민서 | F16: 채희주 | G16: 모 | H16: 01067720305 | I16: 01067120304 | J16: 990304 | K16: 일반 | N16: 대구광역시 | O16: 수성구 | P16: 동대구로38안길 | Q16: 32 | S16: (범어동) | T16: 27.19 | U16: 219 | V16: 84 | W16: 72 | X16: 52 | Y16: 316 | Z16: 305
A17: 1103 | B17: 11 | C17: 3 | D17: 동도중 | E17: 권민성 | F17: 권영락 | G17: 부 | H17: 01045343857 | I17: 01041553857 | J17: 990525 | K17: 일반 | N17: 대구광역시 | O17: 수성구 | P17: 달구벌대로 | Q17: 2435 | R17: 두산위브더제니스 | S17: 101동 3401호 (범어동) | T17: 5.031 | U17: 35 | V17: 96 | W17: 92 | X17: 96 | Y17: 17 | Z17: 18
A18: 403 | B18: 4 | C18: 3 | D18: 대구동중 | E18: 권민주 | F18: 권홍국 | G18: 부 | H18: 01025051424 | I18: 01068501424 | J18: 990613 | K18: 일반 | N18: 대구광역시 | O18: 수성구 | P18: 명덕로 | Q18: 455 | R18: 수성3가 롯데캐슬 | S18: 106동 902호 (수성동3가) | T18: 53.832 | U18: 388 | V18: 72 | W18: 32 | X18: 52 | Y18: 460 | Z18: 455
A19: 202 | B19: 2 | C19: 2 | D19: 대구동부중 | E19: 권민주 | F19: 이혜정 | G19: 모 | H19: 01023092997 | I19: 01067442997 | J19: 990607 | K19: 일반 | N19: 대구광역시 | O19: 수성구 | P19: 동원로 | Q19: 100 | R19: 메트로팔레스5단지 | S19: 502-505 (만촌동) | T19: 12.53 | U19: 92 | V19: 88 | W19: 88 | X19: 96 | Y19: 53 | Z19: 56
A20: 1302 | B20: 13 | C20: 2 | D20: 매호중 | E20: 권세아 | F20: 박수정 | G20: 모 | H20: 01093738687 | I20: 01059368644 | J20: 990714 | K20: 일반 | N20: 대구광역시 | O20: 수성구 | P20: 천을로 | Q20: 180 | R20: 매호동서타운 | S20: 101동 1101호 (매호동) | T20: 78.182 | U20: 491 | V20: 44 | W20: 40 | X20: 44 | Y20: 487 | Z20: 495
A21: 1203 | B21: 12 | C21: 3 | D21: 신명여중 | E21: 권세현 | F21: 김보경 | G21: 모 | H21: 01064185911 | I21: 01028985911 | J21: 990727 | K21: 일반 | N21: 대구광역시 | O21: 수성구 | P21: 청호로76길 | Q21: 33-3 | S21: (범어동) | T21: 1.156 | U21: 4 | V21: 92 | W21: 96 | X21: 96 | Y21: 17 | Z21: 12
A22: 701 | B22: 7 | C22: 1 | D22: 고산중 | E22: 권수정 | F22: 박희옥 | G22: 모 | H22: 01046553057 | I22: 01034377057 | J22: 990813 | K22: 보훈 | M22: 23-230093 | N22: 대구광역시 | O22: 수성구 | P22: 천을로 | Q22: 180 | R22: 매호동서타운 | S22: 103동 1302호 (매호동) | T22: 21.839 | U22: 175 | V22: 88 | W22: 80 | X22: 84 | Y22: 144 | Z22: 149
A23: 1303 | B23: 13 | C23: 3 | D23: 정화중 | E23: 권시현 | F23: 이지현 | G23: 모 | H23: 01085979486 | I23: 01086319486 | J23: 990815 | K23: 일반 | N23: 대구광역시 | O23: 수성구 | P23: 청호로 | Q23: 345 | R23: 태왕아너스 | S23: 101동 702호 (황금동) | T23: 26.884 | U23: 216 | V23: 96 | W23: 72 | X23: 92 | Y23: 102 | Z23: 127
A24: 404 | B24: 4 | C24: 4 | D24: 황금중 | E24: 권유경 | F24: 권기영 | G24: 부 | H24: 01038135184 | I24: 01051135184 | J24: 000229 | K24: 일반 | N24: 대구광역시 | O24: 수성구 | P24: 들안로32길 | Q24: 74-15 | S24: 2층 (황금동) | T24: 32.258 | U24: 254 | V24: 84 | W24: 80 | X24: 44 | Y24: 316 | Z24: 314
A25: 502 | B25: 5 | C25: 2 | D25: 정화중 | E25: 권채현 | F25: 현지원 | G25: 모 | H25: 01066679704 | I25: 01033501105 | J25: 991105 | K25: 일반 | N25: 대구광역시 | O25: 수성구 | P25: 청호로84안길 | Q25: 66 | S25: (범어동) | T25: 17.588 | U25: 140 | V25: 68 | W25: 76 | X25: 92 | Y25: 218 | Z25: 202
A26: 102 | B26: 1 | C26: 2 | D26: 대구동부중 | E26: 권태경 | F26: 최경애 | G26: 모 | H26: 01046768338 | I26: 01087668771 | J26: 990730 | K26: 일반 | N26: 대구광역시 | O26: 수성구 | P26: 만촌로28길 | Q26: 26-1 | R26: 창조빌라 | S26: B동 202호 (만촌동) | T26: 56.386 | U26: 404 | V26: 76 | W26: 24 | X26: 60 | Y26: 451 | Z26: 450
A27: 1304 | B27: 13 | C27: 4 | D27: 사대부중 | E27: 권평강 | F27: 권승호 | G27: 부 | H27: 01035499773 | I27: 01079429903 | J27: 990318 | K27: 일반 | N27: 대구광역시 | O27: 동구 | P27: 국채보상로 | Q27: 829 | R27: 신천두산위브 | S27: 102동 2301호 (신천동) | T27: 10.182 | U27: 81 | V27: 80 | W27: 76 | X27: 88 | Y27: 176 | Z27: 158
A28: 203 | B28: 2 | C28: 3 | D28: 정화중 | E28: 권혜령 | F28: 손지숙 | G28: 모 | H28: 01024806288 | I28: 01089389496 | J28: 000117 | K28: 일반 | N28: 대구광역시 | O28: 수성구 | P28: 국채보상로 | Q28: 969-2 | R28: 다세대 | S28: 201호 (만촌동) | T28: 48.241 | U28: 356 | V28: 76 | W28: 76 | X28: 64 | Y28: 290 | Z28: 312
A29: 1204 | B29: 12 | C29: 4 | D29: 동원중 | E29: 권효민 | F29: 김교연 | G29: 모 | H29: 01085626308 | I29: 01040742370 | J29: 990628 | K29: 일반 | N29: 대구광역시 | O29: 동구 | P29: 동북로 | Q29: 500 | R29: 태왕메트로시티 | S29: 107동 702호 (효목동) | T29: 13.167 | U29: 96 | V29: 92 | W29: 92 | X29: 84 | Y29: 67 | Z29: 74
A30: 1001 | B30: 10 | C30: 1 | D30: 동도중 | E30: 금정연 | F30: 금동호 | G30: 부 | H30: 01025299286 | I30: 01025819286 | J30: 990619 | K30: 일반 | N30: 대구광역시 | O30: 수성구 | P30: 달구벌대로496길 | Q30: 88 | R30: 을지맨션 | S30: 101동 105호 (범어동) | T30: 5.87 | U30: 45 | V30: 100 | W30: 96 | X30: 100 | Y30: 3 | Z30: 10
A31: 503 | B31: 5 | C31: 3 | D31: 대구동중 | E31: 길나령 | F31: 박선주 | G31: 모 | H31: 01088843573 | I31: 01040523573 | J31: 990723 | K31: 일반 | N31: 대구광역시 | O31: 수성구 | P31: 동대구로 | Q31: 376 | R31: 범어숲 화성파크드림 S | S31: 103동 1203호 (범어동) | T31: 44.526 | U31: 330 | V31: 72 | W31: 76 | X31: 92 | Y31: 197 | Z31: 222
A32: 405 | B32: 4 | C32: 5 | D32: 동도중 | E32: 김가민 | F32: 박신정 | G32: 모 | H32: 01027055510 | I32: 01073175510 | J32: 991101 | K32: 일반 | N32: 대구광역시 | O32: 수성구 | P32: 청수로 | Q32: 261 | R32: 캐슬골드파크 | S32: 1404동 1101호 (황금동) | T32: 57.652 | U32: 417 | V32: 76 | W32: 76 | X32: 92 | Y32: 176 | Z32: 223
A33: 1305 | B33: 13 | C33: 5 | D33: 신명여중 | E33: 김가은 | F33: 최양선 | G33: 모 | H33: 01028777890 | I33: 01073409290 | J33: 991120 | K33: 일반 | N33: 대구광역시 | O33: 수성구 | P33: 범어천로 | Q33: 190 | R33: 범어동월드메르디앙이스턴카운티 | S33: 101동 802호 (범어동) | T33: 8.382 | U33: 71 | V33: 92 | W33: 88 | X33: 96 | Y33: 45 | Z33: 44
A34: 702 | B34: 7 | C34: 2 | D34: 소선여중 | E34: 김경민 | F34: 곽은경 | G34: 모 | H34: 01082902966 | I34: 01048732965 | J34: 991205 | K34: 일반 | N34: 대구광역시 | O34: 수성구 | P34: 상록로 | Q34: 69 | R34: 래미안수성 | S34: 104동 602호 (범어동) | T34: 72.327 | U34: 474 | V34: 64 | W34: 60 | X34: 76 | Y34: 352 | Z34: 388
A35: 304 | B35: 3 | C35: 4 | D35: 정화중 | E35: 김경민 | F35: 정인향 | G35: 모 | H35: 01035260218 | I35: 01068477582 | J35: 990420 | K35: 일반 | N35: 대구광역시 | O35: 수성구 | P35: 범어로 | Q35: 45 | R35: 청구가든 | S35: 101동 407호 (범어동) | T35: 46.734 | U35: 340 | V35: 80 | W35: 68 | X35: 92 | Y35: 197 | Z35: 224
A36: 1306 | B36: 13 | C36: 6 | D36: 매호중 | E36: 김고은 | F36: 김수정 | G36: 모 | H36: 01067759586 | I36: 01028989586 | J36: 990712 | K36: 일반 | N36: 대구광역시 | O36: 수성구 | P36: 달구벌대로637길 | Q36: 21 | R36: 시지누리타운 | S36: 117동 1502호 (매호동) | T36: 17.045 | U36: 135 | V36: 72 | W36: 52 | X36: 76 | Y36: 352 | Z36: 323
A37: 504 | B37: 5 | C37: 4 | D37: 황금중 | E37: 김고은 | F37: 박선정 | G37: 모 | H37: 01025548829 | I37: 01027718829 | J37: 990517 | K37: 일반 | N37: 대구광역시 | O37: 수성구 | P37: 들안로32길 | Q37: 106-30 | S37: (황금동) | T37: 45.968 | U37: 336 | V37: 60 | W37: 76 | X37: 64 | Y37: 352 | Z37: 362
A38: 1104 | B38: 11 | C38: 4 | D38: 동도중 | E38: 김규나 | F38: 백선아 | G38: 모 | H38: 01035632720 | I38: 01052572720 | J38: 990817 | K38: 일반 | N38: 대구광역시 | O38: 수성구 | P38: 동대구로 | Q38: 300 | R38: 범어 롯데캐슬 | S38: 101동 603호 (범어동) | T38: 60.377 | U38: 428 | V38: 68 | W38: 80 | X38: 88 | Y38: 218 | Z38: 265
A39: 1307 | B39: 13 | C39: 7 | D39: 대구동중 | E39: 김규리 | F39: 구지현 | G39: 모 | H39: 01075776158 | I39: 01063126158 | J39: 990814 | K39: 일반 | N39: 대구광역시 | O39: 수성구 | P39: 상록로 | Q39: 69 | R39: 래미안수성 | S39: 102동 101호 (범어동) | T39: 33.577 | U39: 265 | V39: 72 | W39: 44 | X39: 72 | Y39: 391 | Z39: 379
A40: 103 | B40: 1 | C40: 3 | D40: 범일중 | E40: 김규리 | F40: 김의열 | G40: 부 | H40: 01096441206 | I40: 01022881206 | J40: 991206 | K40: 일반 | N40: 대구광역시 | O40: 수성구 | P40: 지범로40길 | Q40: 11 | R40: 범물서한화성아파트 | S40: 101동 1405호 (범물동) | T40: 30.481 | U40: 244 | V40: 68 | W40: 48 | X40: 76 | Y40: 378 | Z40: 366
A41: 1205 | B41: 12 | C41: 5 | D41: 시지중 | E41: 김규진 | F41: 최복순 | G41: 모 | H41: 01026644649 | I41: 01024024649 | J41: 991218 | K41: 일반 | N41: 대구광역시 | O41: 수성구 | P41: 욱수천로 | Q41: 7 | R41: 시지태왕월드하이츠 | S41: 101동 2302호 (욱수동) | T41: 15.909 | U41: 122 | V41: 72 | W41: 100 | X41: 92 | Y41: 89 | Z41: 98
A42: 204 | B42: 2 | C42: 4 | D42: 범물중 | E42: 김기령 | F42: 김세희 | G42: 부 | H42: 01092650269 | I42: 01055870269 | J42: 990928 | K42: 일반 | N42: 대구광역시 | O42: 수성구 | P42: 지범로 | Q42: 290 | R42: 범물우방미진아파트 | S42: 107동 803호 (범물동) | T42: 55.49 | U42: 400 | V42: 76 | W42: 56 | X42: 80 | Y42: 303 | Z42: 340
A43: 1002 | B43: 10 | C43: 2 | D43: 대구동부중 | E43: 김나경 | F43: 나영순 | G43: 모 | H43: 01050257854 | I43: 01092721826 | J43: 990718 | K43: 일반 | N43: 대구광역시 | O43: 수성구 | P43: 동원로 | Q43: 123 | R43: 메트로팔레스2단지 | S43: 202-1502 (만촌동) | T43: 46.988 | U43: 343 | V43: 72 | W43: 56 | X43: 64 | Y43: 378 | Z43: 385
A44: 104 | B44: 1 | C44: 4 | D44: 동도중 | E44: 김나경 | F44: 김미례 | G44: 모 | H44: 01038045825 | I44: 01026465825 | J44: 991215 | K44: 일반 | N44: 대구광역시 | O44: 수성구 | P44: 동대구로29길 | Q44: 54-24 | S44: 202호 (황금동) | T44: 41.09 | U44: 313 | V44: 76 | W44: 88 | X44: 96 | Y44: 102 | Z44: 143
A45: 305 | B45: 3 | C45: 5 | D45: 정화중 | E45: 김나연 | F45: 임은희 | G45: 모 | H45: 01099368515 | I45: 01099468515 | J45: 991002 | K45: 일반 | N45: 대구광역시 | O45: 수성구 | P45: 청호로 | Q45: 426 | R45: 범어삼성쉐르빌 | S45: 102동 507호 (범어동) | T45: 0.503 | U45: 2 | V45: 96 | W45: 100 | X45: 100 | Y45: 3 | Z45: 3
A46: 505 | B46: 5 | C46: 5 | D46: 동도중 | E46: 김나연 | F46: 원지영 | G46: 모 | H46: 01035261861 | I46: 01034321956 | J46: 990811 | K46: 일반 | N46: 대구광역시 | O46: 수성구 | P46: 동대구로 | Q46: 300 | R46: 범어 롯데캐슬 | S46: 102동 302호 (범어동) | T46: 2.516 | U46: 14 | V46: 100 | W46: 100 | X46: 96 | Y46: 3 | Z46: 5
A47: 1037 | B47: 10 | C47: 37 | D47: 대구일중 | E47: 김나연 | F47: 김근묵 | G47: 부 | H47: 01085777802 | I47: 01040557802 | J47: 990907 | K47: 체특 | L47: 배구 | N47: 대구광역시 | O47: 중구 | P47: 국채보상로139길 | Q47: 31-32 | S47: (동인동1가) | T47: 89.731 | U47: 513 | V47: 0 | W47: 0 | X47: 0 | Y47: 0 | Z47: 0
A48: 1308 | B48: 13 | C48: 8 | D48: 정화중 | E48: 김나영 | F48: 최유정 | G48: 모 | H48: 01034380217 | I48: 01031441675 | J48: 991017 | K48: 일반 | N48: 대구광역시 | O48: 수성구 | P48: 상록로 | Q48: 69 | R48: 래미안 수성 | S48: 103동 1404호 (범어동) | T48: 34.422 | U48: 268 | V48: 56 | W48: 80 | X48: 96 | Y48: 232 | Z48: 239
A49: 1309 | B49: 13 | C49: 9 | D49: 동도중 | E49: 김다영 | F49: 박귀숙 | G49: 모 | H49: 01029117257 | I49: 01027927257 | J49: 990925 | K49: 일반 | N49: 대구광역시 | O49: 수성구 | P49: 청수로 | Q49: 213 | R49: 캐슬골드파크 | S49: 1116동 1505호 (황금동) | T49: 27.254 | U49: 220 | V49: 68 | W49: 88 | X49: 88 | Y49: 176 | Z49: 183
A50: 506 | B50: 5 | C50: 6 | D50: 대구동중 | E50: 김도연 | F50: 배성매 | G50: 모 | H50: 01096903525 | I50: 01066973526 | J50: 990729 | K50: 일반 | N50: 대구광역시 | O50: 수성구 | P50: 신천동로 | Q50: 278 | R50: 수성삼익아파트 | S50: 701호 (수성동1가) | T50: 52.007 | U50: 372 | V50: 64 | W50: 68 | X50: 60 | Y50: 378 | Z50: 390
A51: 602 | B51: 6 | C51: 2 | D51: 동도중 | E51: 김령 | F51: 조외숙 | G51: 모 | H51: 01045258748 | I51: 01082772887 | J51: 990914 | K51: 일반 | N51: 대구광역시 | O51: 수성구 | P51: 동대구로50길 | Q51: 94 | R51: 화성그린빌 | S51: 1002호 (범어동) | T51: 43.606 | U51: 323 | V51: 80 | W51: 72 | X51: 88 | Y51: 197 | Z51: 221
A52: 1310 | B52: 13 | C52: 10 | D52: 동도중 | E52: 김명주 | F52: 임혜숙 | G52: 모 | H52: 01033831732 | I52: 01063473870 | J52: 990903 | K52: 일반 | N52: 대구광역시 | O52: 수성구 | P52: 청호로46길 | Q52: 16 | R52: 우방신천지타운 | S52: 203동 1103호 (황금동) | T52: 38.155 | U52: 289 | V52: 76 | W52: 92 | X52: 80 | Y52: 161 | Z52: 186
A53: 507 | B53: 5 | C53: 7 | D53: 정화중 | E53: 김문진 | F53: 김주현 | G53: 부 | H53: 01050500600 | I53: 01048304981 | J53: 990830 | K53: 일반 | N53: 대구광역시 | O53: 수성구 | P53: 무학로35길 | Q53: 48 | S53: (지산동) | T53: 83.668 | U53: 510 | V53: 64 | W53: 24 | X53: 68 | Y53: 460 | Z53: 475
A54: 1401 | B54: 14 | C54: 1 | D54: 시지중 | E54: 김미경 | F54: 김만식 | G54: 부 | H54: 0115123102 | I54: 01062833102 | J54: 990311 | K54: 일반 | N54: 대구광역시 | O54: 수성구 | P54: 신매로 | Q54: 71 | R54: 시지천마타운 | S54: 226동 305호 (신매동) | T54: 44.545 | U54: 331 | V54: 64 | W54: 64 | X54: 52 | Y54: 418 | Z54: 409
A55: 306 | B55: 3 | C55: 6 | D55: 신명여중 | E55: 김미연 | F55: 윤진옥 | G55: 모 | H55: 01086432645 | I55: 01086472645 | J55: 990330 | K55: 일반 | N55: 대구광역시 | O55: 수성구 | P55: 달구벌대로496길 | Q55: 20 | S55: (범어동) | T55: 2.89 | U55: 20 | V55: 92 | W55: 96 | X55: 92 | Y55: 30 | Z55: 26
A56: 1105 | B56: 11 | C56: 5 | D56: 동원중 | E56: 김미현 | F56: 김연호 | G56: 부 | H56: 01055858596 | I56: 01050978596 | J56: 000202 | K56: 일반 | N56: 대구광역시 | O56: 동구 | P56: 효동로1길 | Q56: 45 | R56: 윤민로즈빌 | S56: 201호 (효목동) | T56: 21.352 | U56: 170 | V56: 52 | W56: 52 | X56: 52 | Y56: 460 | Z56: 412
A57: 1311 | B57: 13 | C57: 11 | D57: 대구동중 | E57: 김민영 | F57: 정정숙 | G57: 모 | H57: 01025344742 | I57: 01048115143 | J57: 990630 | K57: 일반 | N57: 대구광역시 | O57: 수성구 | P57: 범어천로 | Q57: 107 | R57: 범어에스티엑스칸 | S57: 105동 2602호 (범어동) | T57: 64.964 | U57: 448 | V57: 48 | W57: 36 | X57: 92 | Y57: 426 | Z57: 438
A58: 801 | B58: 8 | C58: 1 | D58: 소선여중 | E58: 김민정 | F58: 권은선 | G58: 모 | H58: 01072401004 | I58: 01065831110 | J58: 990817 | K58: 일반 | N58: 대구광역시 | O58: 수성구 | P58: 화랑로34길 | Q58: 141 | R58: 화성파크스위트 | S58: 102동 202호 (만촌동) | T58: 57.233 | U58: 412 | V58: 56 | W58: 72 | X58: 68 | Y58: 366 | Z58: 387
A59: 1402 | B59: 14 | C59: 2 | D59: 신명여중 | E59: 김민정 | F59: 김미경 | G59: 모 | H59: 01023202532 | I59: 01057642532 | J59: 990821 | K59: 일반 | N59: 대구광역시 | O59: 수성구 | P59: 수성로62길 | Q59: 19-7 | S59: (수성동2가) | T59: 28.035 | U59: 227 | V59: 64 | W59: 84 | X59: 76 | Y59: 269 | Z59: 268
A60: 1206 | B60: 12 | C60: 6 | D60: 소선여중 | E60: 김민지 | F60: 김규석 | G60: 부 | H60: 01035352921 | I60: 01037612921 | J60: 991109 | K60: 일반 | N60: 대구광역시 | O60: 수성구 | P60: 범어로 | Q60: 75 | R60: 범어 에스케이 뷰 | S60: 101동 1701호 (범어동) | T60: 83.333 | U60: 509 | V60: 52 | W60: 40 | X60: 68 | Y60: 451 | Z60: 469
A61: 1106 | B61: 11 | C61: 6 | D61: 매호중 | E61: 김민지 | F61: 김병선 | G61: 부 | H61: 01055045780 | I61: 01083125780 | J61: 991001 | K61: 일반 | N61: 대구광역시 | O61: 수성구 | P61: 고산로 | Q61: 123 | R61: 시지하나타운 | S61: 103동 310호 (매호동) | T61: 77.045 | U61: 487 | V61: 44 | W61: 48 | X61: 28 | Y61: 494 | Z61: 497
A62: 205 | B62: 2 | C62: 5 | D62: 대구동중 | E62: 김민지 | F62: 조미화 | G62: 모 | H62: 01046522146 | I62: 01038739045 | J62: 991028 | K62: 일반 | N62: 대구광역시 | O62: 수성구 | P62: 동대구로56길 | Q62: 56 | S62: (범어동) | T62: 28.832 | U62: 231 | V62: 80 | W62: 92 | X62: 84 | Y62: 120 | Z62: 140
A63: 1403 | B63: 14 | C63: 3 | D63: 동도중 | E63: 김민지 | F63: 안미숙 | G63: 모 | H63: 01029839357 | I63: 01029639357 | J63: 991101 | K63: 일반 | N63: 대구광역시 | O63: 수성구 | P63: 청호로 | Q63: 330 | R63: 수성지구2차우방타운 | S63: 206동 411호 (황금동) | T63: 40.042 | U63: 301 | V63: 76 | W63: 88 | X63: 92 | Y63: 120 | Z63: 157
A64: 1404 | B64: 14 | C64: 4 | D64: 신명여중 | E64: 김보련 | F64: 김원숙 | G64: 모 | H64: 01035010886 | I64: 01085500886 | J64: 000215 | K64: 일반 | N64: 대구광역시 | O64: 수성구 | P64: 달구벌대로492길 | Q64: 25-4 | S64: (범어동) | T64: 9.827 | U64: 79 | V64: 92 | W64: 88 | X64: 88 | Y64: 67 | Z64: 71
A65: 903 | B65: 9 | C65: 3 | D65: 대구동부중 | E65: 김보승 | F65: 윤유진 | G65: 모 | H65: 01085863135 | I65: 01071790064 | J65: 990215 | K65: 일반 | N65: 대구광역시 | O65: 수성구 | P65: 청호로85길 | Q65: 24 | R65: 금봉빌라 | S65: 505 (범어동) | T65: 8.193 | U65: 70 | V65: 88 | W65: 72 | X65: 92 | Y65: 144 | Z65: 134
A66: 308 | B66: 3 | C66: 8 | D66: 신명여중 | E66: 김보현 | F66: 조혜숙 | G66: 모 | H66: 01039031245 | I66: 01034400132 | J66: 990408 | K66: 일반 | N66: 대구광역시 | O66: 수성구 | P66: 국채보상로 | Q66: 846 | R66: 청구성조타운 | S66: 102동 901호 (범어동) | T66: 17.919 | U66: 143 | V66: 84 | W66: 76 | X66: 84 | Y66: 176 | Z66: 167
A67: =B67*100+C67 -> 406 | B67: 4 | C67: 6 | D67: 정화중 | E67: 김보현 | F67: 김성열 | G67: 부 | H67: 01038027773 | I67: 01072911301 | J67: 990830 | K67: 일반 | N67: 대구광역시 | O67: 수성구 | P67: 청수로 | Q67: 213 | R67: 캐슬골드파크 1단지 | S67: 1102동 1602호 (황금동) | T67: 2.764 | U67: 19 | V67: 84 | W67: 100 | X67: 96 | Y67: 30 | Z67: 24
A68: 904 | B68: 9 | C68: 4 | D68: 동도중 | E68: 김상은 | F68: 최원욱 | G68: 모 | H68: 01062588992 | I68: 01072525114 | J68: 000114 | K68: 일반 | N68: 대구광역시 | O68: 수성구 | P68: 청수로 | Q68: 261 | R68: 캐슬골드파크 4단지 | S68: 1404동 2102호 (황금동) | T68: 68.553 | U68: 462 | V68: 64 | W68: 72 | X68: 84 | Y68: 276 | Z68: 330
A69: 1003 | B69: 10 | C69: 3 | D69: 대구동중 | E69: 김서현 | F69: 김진석 | G69: 부 | H69: 01028136141 | I69: 01080116141 | J69: 990428 | K69: 일반 | N69: 대구광역시 | O69: 수성구 | P69: 범어천로 | Q69: 197 | R69: 범어 삼환 나우빌 | S69: 101동 1605호 (수성동4가) | T69: 34.307 | U69: 267 | V69: 72 | W69: 72 | X69: 84 | Y69: 256 | Z69: 264
A70: 603 | B70: 6 | C70: 3 | D70: 대구동중 | E70: 김서현 | F70: 허남영 | G70: 모 | H70: 01050528061 | I70: 01053638061 | J70: 991219 | K70: 일반 | N70: 대구광역시 | O70: 수성구 | P70: 범어천로 | Q70: 200 | R70: 월드메르디앙 웨스턴카운티 | S70: 201-1102 (범어동) | T70: 82.664 | U70: 505 | V70: 0 | W70: 0 | X70: 0 | Y70: 0 | Z70: 0
A71: 1107 | B71: 11 | C71: 7 | D71: 소선여중 | E71: 김서희 | F71: 김미숙 | G71: 모 | H71: 01085821941 | I71: 01040561941 | J71: 990909 | K71: 일반 | N71: 대구광역시 | O71: 수성구 | P71: 동대구로14길 | Q71: 75-17 | S71: (지산동) | T71: 70.755 | U71: 467 | V71: 64 | W71: 64 | X71: 64 | Y71: 378 | Z71: 405
A72: 206 | B72: 2 | C72: 6 | D72: 정화중 | E72: 김석희 | F72: 김도윤 | G72: 부 | H72: 01050602809 | I72: 01075792809 | J72: 990824 | K72: 일반 | N72: 대구광역시 | O72: 수성구 | P72: 청호로 | Q72: 345 | R72: 태왕아너스 | S72: 102동 207호 (황금동) | T72: 27.638 | U72: 223 | V72: 80 | W72: 84 | X72: 100 | Y72: 89 | Z72: 116
A73: 1405 | B73: 14 | C73: 5 | D73: 소선여중 | E73: 김성은 | F73: 민헌정 | G73: 모 | H73: 01027893633 | I73: 01066833307 | J73: 990430 | K73: 일반 | N73: 대구광역시 | O73: 수성구 | P73: 청호로 | Q73: 466 | R73: 효성백년가약 궁 | S73: 101동 705호 (범어동) | T73: 19.497 | U73: 159 | V73: 76 | W73: 92 | X73: 88 | Y73: 120 | Z73: 129
A74: 1406 | B74: 14 | C74: 6 | D74: 황금중 | E74: 김세빈 | F74: 박정숙 | G74: 모 | H74: 01055349304 | I74: 01075859911 | J74: 991119 | K74: 쌍둥 | N74: 대구광역시 | O74: 수성구 | P74: 청수로 | Q74: 213 | R74: 캐슬골드파크 1단지 | S74: 1101동 1801호 (황금동) | T74: 44.086 | U74: 327 | V74: 68 | W74: 64 | X74: 60 | Y74: 378 | Z74: 381
A75: 604 | B75: 6 | C75: 4 | D75: 황금중 | E75: 김세영 | F75: 박정숙 | G75: 모 | H75: 01055349304 | I75: 01075599915 | J75: 991119 | K75: 쌍둥 | N75: 대구광역시 | O75: 수성구 | P75: 청수로 | Q75: 213 | R75: 캐슬골드파크 1단지 | S75: 1101동 1801호 (황금동) | T75: 40.86 | U75: 309 | V75: 84 | W75: 96 | X75: 72 | Y75: 144 | Z75: 175
A76: 1407 | B76: 14 | C76: 7 | D76: 시지중 | E76: 김소연 | F76: 김형엽 | G76: 부 | H76: 01099001419 | I76: 01041495288 | J76: 000214 | K76: 일반 | N76: 대구광역시 | O76: 수성구 | P76: 달구벌대로 | Q76: 3308 | R76: 유성푸르나임르노블 | S76: 101동 202호 (신매동) | T76: 56.818 | U76: 410 | V76: 76 | W76: 32 | X76: 64 | Y76: 434 | Z76: 437
A77: 802 | B77: 8 | C77: 2 | D77: 신명여중 | E77: 김소연 | F77: 김상현 | G77: 부 | H77: 01033373588 | I77: 01032491518 | J77: 991207 | K77: 일반 | N77: 대구광역시 | O77: 수성구 | P77: 동대구로 | Q77: 345 | R77: 범어역우방유쉘 | S77: 4007호 (범어동) | T77: 80.058 | U77: 499 | V77: 60 | W77: 36 | X77: 60 | Y77: 460 | Z77: 472
A78: 1312 | B78: 13 | C78: 12 | D78: 동도중 | E78: 김소정 | F78: 손정애 | G78: 모 | H78: 01086019002 | I78: 01050949009 | J78: 990212 | K78: 일반 | N78: 대구광역시 | O78: 수성구 | P78: 청수로 | Q78: 261 | R78: 캐슬골드파크 4단지 | S78: 1416동 803호 (황금동) | T78: 24.738 | U78: 196 | V78: 92 | W78: 96 | X78: 100 | Y78: 11 | Z78: 41
A79: 803 | B79: 8 | C79: 3 | D79: 동도중 | E79: 김소희 | F79: 김영애 | G79: 모 | H79: 01033459123 | I79: 01034959123 | J79: 990508 | K79: 일반 | N79: 대구광역시 | O79: 수성구 | P79: 범어로 | Q79: 73 | R79: 범어 SK VIEW | S79: 204동 702호 (범어동) | T79: 59.748 | U79: 425 | V79: 80 | W79: 88 | X79: 52 | Y79: 276 | Z79: 318
A80: 703 | B80: 7 | C80: 3 | D80: 범일중 | E80: 김수경 | F80: 이광실 | G80: 모 | H80: 01099253407 | I80: 01094753407 | J80: 990715 | K80: 일반 | N80: 대구광역시 | O80: 수성구 | P80: 범안로 | Q80: 40 | R80: 범물청아타운 | S80: 101동 806호 (범물동) | T80: 43.85 | U80: 325 | V80: 56 | W80: 44 | X80: 76 | Y80: 426 | Z80: 416
A81: 407 | B81: 4 | C81: 7 | D81: 소선여중 | E81: 김수민 | F81: 권영숙 | G81: 모 | H81: 01085945574 | I81: 01062075549 | J81: 990424 | K81: 일반 | N81: 대구광역시 | O81: 수성구 | P81: 청수로 | Q81: 214 | R81: 캐슬골드파크 5단지 | S81: 1504동 1501호 (황금동) | T81: 55.346 | U81: 397 | V81: 72 | W81: 44 | X81: 64 | Y81: 418 | Z81: 426
A82: 1207 | B82: 12 | C82: 7 | D82: 소선여중 | E82: 김수민 | F82: 이숙영 | G82: 모 | H82: 01022304796 | I82: 01092779784 | J82: 990508 | K82: 일반 | N82: 대구광역시 | O82: 수성구 | P82: 청솔로16길 | Q82: 14 | S82: (범어동) | T82: 26.73 | U82: 215 | V82: 84 | W82: 76 | X82: 100 | Y82: 102 | Z82: 126
A83: 1108 | B83: 11 | C83: 8 | D83: 대구동부중 | E83: 김수연 | F83: 김윤희 | G83: 모 | H83: 01065280330 | I83: 01040160330 | J83: 990330 | K83: 일반 | N83: 대구광역시 | O83: 수성구 | P83: 공경로5길 | Q83: 8-2 | S83: (만촌동) | T83: 50.602 | U83: 368 | V83: 68 | W83: 72 | X83: 64 | Y83: 335 | Z83: 355
A84: 905 | B84: 9 | C84: 5 | D84: 매호중 | E84: 김수영 | F84: 정은화 | G84: 모 | H84: 01025725180 | I84: 01095163122 | J84: 000210 | K84: 일반 | N84: 대구광역시 | O84: 수성구 | P84: 달구벌대로637길 | Q84: 21 | R84: 시지누리타운 | S84: 116동 507호 (매호동) | T84: 14.545 | U84: 114 | V84: 88 | W84: 72 | X84: 88 | Y84: 161 | Z84: 151
A85: 508 | B85: 5 | C85: 8 | D85: 정화중 | E85: 김수지 | F85: 박혜경 | G85: 모 | H85: 01045292324 | I85: 01022362324 | J85: 990521 | K85: 일반 | N85: 대구광역시 | O85: 수성구 | P85: 동대구로 | Q85: 59 | R85: 대우트럼프월드 수성 | S85: A동 505호 (두산동) | T85: 65.075 | U85: 449 | V85: 60 | W85: 52 | X85: 72 | Y85: 406 | Z85: 427
A86: 1109 | B86: 11 | C86: 9 | D86: 정화중 | E86: 김수진 | F86: 이성례 | G86: 모 | H86: 01035772948 | I86: 01095592948 | J86: 990103 | K86: 일반 | N86: 대구광역시 | O86: 수성구 | P86: 범어로 | Q86: 75 | R86: 범어 SK VIEW | S86: 101동 603호 (범어동) | T86: 4.523 | U86: 31 | V86: 92 | W86: 100 | X86: 100 | Y86: 9 | Z86: 11
A87: 509 | B87: 5 | C87: 9 | D87: 시지중 | E87: 김수현 | F87: 서애경 | G87: 모 | H87: 01034485048 | I87: 01053392153 | J87: 990427 | K87: 일반 | N87: 대구광역시 | O87: 수성구 | P87: 달구벌대로 | Q87: 3304 | R87: 사월화성파크드림 | S87: 104동 1302호 (신매동) | T87: 5.455 | U87: 42 | V87: 84 | W87: 92 | X87: 92 | Y87: 67 | Z87: 62
A88: 1208 | B88: 12 | C88: 8 | D88: 신명여중 | E88: 김수현 | F88: 송영옥 | G88: 모 | H88: 01067771207 | I88: 01030825111 | J88: 991212 | K88: 일반 | N88: 대구광역시 | O88: 수성구 | P88: 달구벌대로496길 | Q88: 88 | R88: 을지맨션 | S88: 102동 703호 (범어동) | T88: 59.538 | U88: 424 | V88: 84 | W88: 88 | X88: 76 | Y88: 161 | Z88: 215
A89: 804 | B89: 8 | C89: 4 | D89: 수성중 | E89: 김수현 | F89: 김기룡 | G89: 부 | H89: 01043328482 | I89: 01054473104 | J89: 990318 | K89: 일반 | N89: 대구광역시 | O89: 수성구 | P89: 파동로 | Q89: 84 | R89: 2차대자연아파트 | S89: 5-408 (파동) | T89: 54.483 | U89: 394 | V89: 48 | W89: 84 | X89: 52 | Y89: 406 | Z89: 415
A90: 805 | B90: 8 | C90: 5 | D90: 고산중 | E90: 김시연 | F90: 이금진 | G90: 모 | H90: 01099155661 | I90: 01092152271 | J90: 990531 | K90: 일반 | N90: 대구광역시 | O90: 수성구 | P90: 시지로 | Q90: 21 | R90: 노변청구타운 | S90: 101동 1205호 (시지동) | T90: 39.54 | U90: 298 | V90: 76 | W90: 88 | X90: 72 | Y90: 218 | Z90: 234
A91: 510 | B91: 5 | C91: 10 | D91: 대구동부중 | E91: 김시원 | F91: 장선옥 | G91: 모 | H91: 01044270510 | I91: 01046148497 | J91: 990210 | K91: 일반 | N91: 대구광역시 | O91: 수성구 | P91: 세진로 | Q91: 23-5 | S91: (범어동) | T91: 43.614 | U91: 324 | V91: 68 | W91: 52 | X91: 64 | Y91: 406 | Z91: 399
A92: 1110 | B92: 11 | C92: 10 | D92: 동도중 | E92: 김연수 | F92: 박종숙 | G92: 모 | H92: 01025062275 | I92: 01097502275 | J92: 990601 | K92: 일반 | N92: 대구광역시 | O92: 수성구 | P92: 청호로 | Q92: 370 | R92: 장원맨션 | S92: 101동 507호 (범어동) | T92: 13.627 | U92: 102 | V92: 88 | W92: 92 | X92: 100 | Y92: 30 | Z92: 39
A93: 738 | B93: 7 | C93: 38 | D93: 황금중 | E93: 김연진 | F93: 김성학 | G93: 부 | H93: 01053007150 | I93: 01054057150 | J93: 990728 | K93: 체특 | L93: 정구 | N93: 대구광역시 | O93: 동구 | P93: 송라로10길 | Q93: 15-3 | S93: (신천동) | T93: 90.591 | U93: 514 | V93: 12 | W93: 20 | X93: 20 | Y93: 503 | Z93: 503
A94: 704 | B94: 7 | C94: 4 | D94: 동원중 | E94: 김예원 | F94: 김종원 | G94: 부 | H94: 01073726232 | I94: 01066676232 | J94: 990405 | K94: 일반 | N94: 대구광역시 | O94: 동구 | P94: 화랑로88길 | Q94: 30 | R94: 보성강남타운 | S94: 102동 1306호 (방촌동) | T94: 30.961 | U94: 247 | V94: 64 | W94: 52 | X94: 60 | Y94: 426 | Z94: 401
A95: 1313 | B95: 13 | C95: 13 | D95: 동도중 | E95: 김예원 | F95: 이정숙 | G95: 모 | H95: 01037893877 | I95: 01037155826 | J95: 990401 | K95: 일반 | N95: 대구광역시 | O95: 수성구 | P95: 청수로 | Q95: 261 | R95: 캐슬골드파크 4단지 | S95: 1408동 605호 (황금동) | T95: 1.468 | U95: 6 | V95: 92 | W95: 96 | X95: 96 | Y95: 17 | Z95: 13
A96: 906 | B96: 9 | C96: 6 | D96: 정화중 | E96: 김예지 | F96: 김현주 | G96: 모 | H96: 01049333854 | I96: 01063473854 | J96: 990714 | K96: 일반 | N96: 대구광역시 | O96: 수성구 | P96: 청수로 | Q96: 261 | R96: 캐슬골드파크 | S96: 1414동 2001호 (황금동) | T96: 29.648 | U96: 236 | V96: 92 | W96: 96 | X96: 100 | Y96: 11 | Z96: 48
A97: 806 | B97: 8 | C97: 6 | D97: 지산중 | E97: 김예진 | F97: 최정옥 | G97: 모 | H97: 01028118783 | I97: 01028158783 | J97: 000215 | K97: 일반 | N97: 대구광역시 | O97: 수성구 | P97: 청수로36길 | Q97: 31 | R97: 유일빌라 | S97: A동 301호 (지산동) | T97: 27.011 | U97: 217 | V97: 64 | W97: 64 | X97: 44 | Y97: 434 | Z97: 402
A98: 705 | B98: 7 | C98: 5 | D98: 고산중 | E98: 김우주 | F98: 임옥화 | G98: 모 | H98: 01065552304 | I98: 01075122304 | J98: 991011 | K98: 일반 | N98: 대구광역시 | O98: 수성구 | P98: 천을로 | Q98: 49 | R98: 제림은탑아파트 | S98: 102동 1901호 (시지동) | T98: 5.747 | U98: 43 | V98: 92 | W98: 92 | X98: 80 | Y98: 89 | Z98: 80
A99: 1408 | B99: 14 | C99: 8 | D99: 황금중 | E99: 김유진 | F99: 이승애 | G99: 모 | H99: 01026870068 | I99: 01073195010 | J99: 990503 | K99: 일반 | N99: 대구광역시 | O99: 수성구 | P99: 들안로32길 | Q99: 73-6 | S99: 501호 (황금동) | T99: 71.774 | U99: 472 | V99: 60 | W99: 68 | X99: 52 | Y99: 418 | Z99: 436
A100: 605 | B100: 6 | C100: 5 | D100: 고산중 | E100: 김유진 | F100: 이윤정 | G100: 모 | H100: 01038981123 | I100: 01087830939 | J100: 990929 | K100: 일반 | N100: 대구광역시 | O100: 수성구 | P100: 고산로 | Q100: 70 | R100: 청솔타운 | S100: 216동 1201호 (신매동) | T100: 53.333 | U100: 384 | V100: 76 | W100: 80 | X100: 44 | Y100: 352 | Z100: 372
A101: 807 | B101: 8 | C101: 7 | D101: 고산중 | E101: 김유진 | F101: 정은영 | G101: 모 | H101: 01088496239 | I101: 01046946293 | J101: 991121 | K101: 일반 | N101: 대구광역시 | O101: 수성구 | P101: 천을로 | Q101: 91 | R101: 시지태왕아너스 | S101: 103동 302호 (시지동) | T101: 19.08 | U101: 156 | V101: 84 | W101: 84 | X101: 80 | Y101: 161 | Z101: 163
A102: 105 | B102: 1 | C102: 5 | D102: 소선여중 | E102: 김윤주 | F102: 김수창 | G102: 부 | H102: 01066429310 | I102: 01086349310 | J102: 990922 | K102: 일반 | N102: 대구광역시 | O102: 수성구 | P102: 교학로11길 | Q102: 46 | R102: 만촌우방타운 | S102: 101동 1607호 (만촌동) | T102: 63.836 | U102: 442 | V102: 72 | W102: 40 | X102: 72 | Y102: 406 | Z102: 423
A103: 511 | B103: 5 | C103: 11 | D103: 신명여중 | E103: 김윤지 | F103: 김공주 | G103: 모 | H103: 01050464380 | I103: 01071304380 | J103: 000209 | K103: 일반 | N103: 대구광역시 | O103: 수성구 | P103: 달구벌대로 | Q103: 2315 | R103: 수성롯데캐슬 | S103: 101동 1001호 (수성동4가) | T103: 45.376 | U103: 333 | V103: 0 | W103: 0 | X103: 0 | Y103: 0 | Z103: 0
A104: 706 | B104: 7 | C104: 6 | D104: 신명여중 | E104: 김윤지 | F104: 이영화 | G104: 모 | H104: 01075505896 | I104: 0107505896 | J104: 991126 | K104: 일반 | N104: 대구광역시 | O104: 수성구 | P104: 들안로 | Q104: 300 | R104: 수성코오롱하늘채 | S104: 107동 501호 (수성동3가) | T104: 47.977 | U104: 351 | V104: 80 | W104: 60 | X104: 92 | Y104: 232 | Z104: 261
A105: 808 | B105: 8 | C105: 8 | D105: 매호중 | E105: 김윤지 | F105: 김희도 | G105: 부 | H105: 01035022401 | I105: 01029797958 | J105: 990303 | K105: 일반 | N105: 대구광역시 | O105: 수성구 | P105: 천을로23길 | Q105: 31 | R105: 매호효성백년가약 | S105: 106동 301호 (매호동) | T105: 13.864 | U105: 107 | V105: 88 | W105: 64 | X105: 88 | Y105: 197 | Z105: 178
A106: 838 | B106: 8 | C106: 38 | D106: 황금중 | E106: 김윤희 | F106: 김학성 | G106: 부 | H106: 01096782482 | I106: 01092069755 | J106: 991025 | K106: 체특 | L106: 정구 | N106: 대구광역시 | O106: 동구 | P106: 범안로 | Q106: 876 | S106: (율하동) | T106: 97.849 | U106: 518 | V106: 0 | W106: 0 | X106: 0 | Y106: 0 | Z106: 0
A107: 1111 | B107: 11 | C107: 11 | D107: 대구동부중 | E107: 김은지 | F107: 정경숙 | G107: 모 | H107: 01067570360 | I107: 01066870360 | J107: 991201 | K107: 일반 | N107: 대구광역시 | O107: 동구 | P107: 동촌로14길 | Q107: 14 | R107: 문화아파트 | S107: 2동 208호 (검사동) | T107: 71.084 | U107: 469 | V107: 52 | W107: 36 | X107: 40 | Y107: 487 | Z107: 490
A108: 309 | B108: 3 | C108: 9 | D108: 신명여중 | E108: 김은혜 | F108: 박윤정 | G108: 모 | H108: 01028757333 | I108: 01075727332 | J108: 990309 | K108: 일반 | N108: 대구광역시 | O108: 수성구 | P108: 들안로60길 | Q108: 17 | R108: 화성파크드림 1단지 | S108: 101동 202호 (수성동3가) | T108: 38.439 | U108: 292 | V108: 80 | W108: 84 | X108: 80 | Y108: 176 | Z108: 196
A109: 207 | B109: 2 | C109: 7 | D109: 대구동중 | E109: 김은희 | F109: 조진희 | G109: 모 | H109: 01028124035 | I109: 01092764035 | J109: 990304 | K109: 일반 | N109: 대구광역시 | O109: 수성구 | P109: 국채보상로 | Q109: 846 | R109: 청구성조타운 | S109: 102동 202호 (범어동) | T109: 16.788 | U109: 133 | V109: 76 | W109: 72 | X109: 88 | Y109: 218 | Z109: 200
A110: 512 | B110: 5 | C110: 12 | D110: 노변중 | E110: 김정민 | F110: 김병수 | G110: 부 | H110: 01038096608 | I110: 01053659691 | J110: 990427 | K110: 일반 | N110: 대구광역시 | O110: 수성구 | P110: 노변공원로 | Q110: 22 | R110: 노변동서우방타운 | S110: 103동 1602호 (시지동) | T110: 16.271 | U110: 127 | V110: 80 | W110: 88 | X110: 76 | Y110: 176 | Z110: 166
A111: 1112 | B111: 11 | C111: 12 | D111: 동도중 | E111: 김정윤 | F111: 최정아 | G111: 모 | H111: 01028211234 | I111: 01096927950 | J111: 991217 | K111: 일반 | N111: 대구광역시 | O111: 수성구 | P111: 청호로 | Q111: 365 | R111: 3차가든하이츠 | S111: 302동 1105호 (범어동) | T111: 47.379 | U111: 345 | V111: 76 | W111: 76 | X111: 84 | Y111: 218 | Z111: 244
A112: 606 | B112: 6 | C112: 6 | D112: 덕원중 | E112: 김정은 | F112: 김대만 | G112: 부 | H112: 01033084070 | I112: 01023354070 | J112: 000111 | K112: 일반 | N112: 대구광역시 | O112: 수성구 | P112: 동대구로 | Q112: 345 | R112: 범어역 우방유쉘 | S112: 102동 2007호 (범어동) | T112: 26.563 | U112: 213 | V112: 80 | W112: 60 | X112: 88 | Y112: 256 | Z112: 248
A113: 907 | B113: 9 | C113: 7 | D113: 매호중 | E113: 김정임 | F113: 이명진 | G113: 모 | H113: 01029527469 | I113: 01040647469 | J113: 990619 | K113: 일반 | N113: 대구광역시 | O113: 수성구 | P113: 달구벌대로669길 | Q113: 80 | R113: 시지대성유니드 | S113: 103동 1307호 (사월동) | T113: 40.909 | U113: 310 | V113: 88 | W113: 28 | X113: 72 | Y113: 391 | Z113: 386
A114: 607 | B114: 6 | C114: 7 | D114: 정화중 | E114: 김주연 | F114: 김정희 | G114: 모 | H114: 01094042653 | I114: 01074992653 | J114: 990607 | K114: 일반 | N114: 대구광역시 | O114: 수성구 | P114: 청수로 | Q114: 261 | R114: 캐슬골드파크 4단지 | S114: 1403동 306호 (황금동) | T114: 80.905 | U114: 502 | V114: 44 | W114: 24 | X114: 88 | Y114: 460 | Z114: 474
A115: 608 | B115: 6 | C115: 8 | D115: 신명여중 | E115: 김주희 | F115: 김민정 | G115: 모 | H115: 01055735080 | I115: 01055985080 | J115: 991210 | K115: 일반 | N115: 대구광역시 | O115: 수성구 | P115: 동대구로74안길 | Q115: 15-3 | S115: (범어동) | T115: 16.763 | U115: 132 | V115: 96 | W115: 76 | X115: 96 | Y115: 67 | Z115: 81
A116: 707 | B116: 7 | C116: 7 | D116: 신명여중 | E116: 김지아 | F116: 안지희 | G116: 모 | H116: 01064097586 | I116: 01029977586 | J116: 990515 | K116: 일반 | N116: 대구광역시 | O116: 수성구 | P116: 동대구로 | Q116: 230 | R116: 우방범어타운 | S116: 1동 501호 (범어동) | T116: 32.37 | U116: 256 | V116: 80 | W116: 92 | X116: 96 | Y116: 67 | Z116: 108
A117: 408 | B117: 4 | C117: 8 | D117: 소선여중 | E117: 김지원 | F117: 배은정 | G117: 모 | H117: 01065548259 | I117: 01092048259 | J117: 000219 | K117: 일반 | N117: 대구광역시 | O117: 수성구 | P117: 달구벌대로492길 | Q117: 12 | R117: 우방3차아파트 | S117: 1동 503호 (범어동) | T117: 19.182 | U117: 157 | V117: 80 | W117: 84 | X117: 88 | Y117: 144 | Z117: 146
A118: 1314 | B118: 13 | C118: 14 | D118: 매호중 | E118: 김지원 | F118: 박미숙 | G118: 모 | H118: 01031540625 | I118: 01066816360 | J118: 991113 | K118: 일반 | N118: 대구광역시 | O118: 수성구 | P118: 달구벌대로 | Q118: 3280-1 | R118: 시지 효성 백년가약 2단지 | S118: 201동 1105호 (신매동) | T118: 47.727 | U118: 348 | V118: 68 | W118: 76 | X118: 76 | Y118: 276 | Z118: 295
A119: 106 | B119: 1 | C119: 6 | D119: 성산중 | E119: 김지윤 | F119: 이남미 | G119: 모 | H119: 01071658253 | I119: 01088947875 | J119: 990627 | K119: 일반 | N119: 대구광역시 | O119: 수성구 | P119: 교학로11길 | Q119: 91 | R119: 만촌우방2차타운 | S119: 207동 702호 (만촌동) | T119: 32.326 | U119: 255 | V119: 64 | W119: 40 | X119: 76 | Y119: 418 | Z119: 394
A120: 1004 | B120: 10 | C120: 4 | D120: 대구제일중 | E120: 김지현 | F120: 김시훈 | G120: 부 | H120: 01066725773 | I120: 01095055773 | J120: 990921 | K120: 일반 | N120: 대구광역시 | O120: 중구 | P120: 봉산문화길 | Q120: 69 | R120: 봉산뜨란채 | S120: 101동 602호 (봉산동) | T120: 31.481 | U120: 250 | V120: 56 | W120: 80 | X120: 60 | Y120: 366 | Z120: 357
A121: 409 | B121: 4 | C121: 9 | D121: 동도중 | E121: 김지혜 | F121: 안인순 | G121: 모 | H121: 01085661805 | I121: 01087741805 | J121: 990311 | K121: 일반 | N121: 대구광역시 | O121: 수성구 | P121: 들안로8길 | Q121: 80 | R121: 유진 트윈빌 | S121: 101동 301호 (두산동) | T121: 75.262 | U121: 483 | V121: 60 | W121: 88 | X121: 60 | Y121: 316 | Z121: 363
A122: 609 | B122: 6 | C122: 9 | D122: 고산중 | E122: 김채연 | F122: 강경렬 | G122: 모 | H122: 01056620926 | I122: 01028883885 | J122: 990913 | K122: 일반 | N122: 대구광역시 | O122: 수성구 | P122: 청수로 | Q122: 214 | R122: 캐슬골드파크 5단지 | S122: 1502동 1402호 (황금동) | T122: 5.287 | U122: 39 | V122: 84 | W122: 88 | X122: 88 | Y122: 102 | Z122: 92
A123: 139 | B123: 1 | C123: 39 | D123: 정화중 | E123: 김채연 | F123: 홍은자 | G123: 모 | H123: 01035935453 | I123: 01084710702 | J123: 990702 | K123: 전출예정 | N123: 대구광역시 | O123: 수성구 | P123: 청수로 | Q123: 257 | R123: 캐슬골드파크 | S123: 1310동 803호 (황금동) | T123: 67.588 | U123: 456 | V123: 68 | W123: 28 | X123: 68 | Y123: 442 | Z123: 453
A124: 1409 | B124: 14 | C124: 9 | D124: 고산중 | E124: 김해미 | F124: 황해경 | G124: 모 | H124: 01095150205 | I124: 01026208016 | J124: 990122 | K124: 일반 | N124: 대구광역시 | O124: 수성구 | P124: 달구벌대로669길 | Q124: 50 | S124: 102동 1407호 (사월동) | T124: 52.644 | U124: 380 | V124: 52 | W124: 40 | X124: 52 | Y124: 475 | Z124: 466
A125: 610 | B125: 6 | C125: 10 | D125: 정화중 | E125: 김현정 | F125: 이종숙 | G125: 모 | H125: 01085698721 | I125: 01065658587 | J125: 990629 | K125: 일반 | N125: 대구광역시 | O125: 수성구 | P125: 청호로 | Q125: 330 | R125: 수성지구2차우방타운 | S125: 205동 106호 (황금동) | T125: 69.095 | U125: 465 | V125: 52 | W125: 48 | X125: 76 | Y125: 426 | Z125: 445
A126: 1410 | B126: 14 | C126: 10 | D126: 경일여중 | E126: 김현지 | F126: 김은경 | G126: 모 | H126: 01066597303 | I126: 01066197303 | J126: 990409 | K126: 일반 | N126: 대구광역시 | O126: 수성구 | P126: 지범로21길 | Q126: 3 | R126: 지산보성맨션 | S126: 106동 307호 (지산동) | T126: 13.462 | U126: 100 | V126: 84 | W126: 88 | X126: 88 | Y126: 102 | Z126: 102
A127: 1315 | B127: 13 | C127: 15 | D127: 소선여중 | E127: 김현지 | F127: 허인숙 | G127: 모 | H127: 01093567458 | I127: 01035647458 | J127: 990319 | K127: 일반 | N127: 대구광역시 | O127: 수성구 | P127: 교학로11길 | Q127: 46 | R127: 만촌우방타운 | S127: 106동 605호 (만촌동) | T127: 52.201 | U127: 374 | V127: 72 | W127: 76 | X127: 84 | Y127: 232 | Z127: 266
A128: 708 | B128: 7 | C128: 8 | D128: 정화중 | E128: 김현진 | F128: 이종숙 | G128: 모 | H128: 01085698721 | I128: 01053198721 | J128: 990629 | K128: 일반 | N128: 대구광역시 | O128: 수성구 | P128: 청호로 | Q128: 330 | R128: 수성지구 2차우방타운 | S128: 205동 106호 (황금동) | T128: 69.095 | U128: 465 | V128: 68 | W128: 56 | X128: 80 | Y128: 335 | Z128: 373
A129: 809 | B129: 8 | C129: 9 | D129: 덕화중 | E129: 김혜영 | F129: 고영숙 | G129: 모 | H129: 01073333340 | I129: 01045547200 | J129: 000221 | K129: 일반 | N129: 대구광역시 | O129: 수성구 | P129: 들안로8길 | Q129: 9-28 | S129: (두산동) | T129: 20.942 | U129: 167 | V129: 56 | W129: 68 | X129: 84 | Y129: 316 | Z129: 290
A130: 1209 | B130: 12 | C130: 9 | D130: 고산중 | E130: 김호정 | F130: 최은자 | G130: 모 | H130: 01085768228 | I130: 01066428210 | J130: 991007 | K130: 일반 | N130: 대구광역시 | O130: 수성구 | P130: 달구벌대로651길 | Q130: 23 | R130: 시지3차신매보성타운 | S130: 101동 1210호 (신매동) | T130: 26.437 | U130: 211 | V130: 88 | W130: 84 | X130: 72 | Y130: 176 | Z130: 181
A131: =B131*100+C131 -> 1210 | B131: 12 | C131: 10 | D131: 대구동중 | E131: 김효영 | F131: 김성곤 | G131: 부 | H131: 01099810974 | I131: 01051062804 | J131: 990915 | K131: 일반 | N131: 대구광역시 | O131: 수성구 | P131: 동대구로50길 | Q131: 37 | R131: 범어유림노르웨이숲 | S131: 104동 401호 (범어동) | T131: 66.423 | U131: 452 | V131: 56 | W131: 56 | X131: 64 | Y131: 426 | Z131: 439
A132: 310 | B132: 3 | C132: 10 | D132: 고산중 | E132: 김효정 | F132: 김태규 | G132: 부 | H132: 01050798671 | I132: 01050798671 | J132: 991010 | K132: 일반 | N132: 대구광역시 | O132: 수성구 | P132: 천을로 | Q132: 70 | R132: 시지월드메르디앙 | S132: 104동 1603호 (시지동) | T132: 13.563 | U132: 101 | V132: 96 | W132: 84 | X132: 76 | Y132: 120 | Z132: 117
A133: 909 | B133: 9 | C133: 9 | D133: 덕원중 | E133: 김효주 | F133: 김수진 | G133: 부 | H133: 01092492089 | I133: 01049952089 | J133: 000130 | K133: 일반 | N133: 대구광역시 | O133: 수성구 | P133: 달구벌대로 | Q133: 3280 | R133: 시지효성백년가약1단지 | S133: 101동 901호 (신매동) | T133: 20.938 | U133: 166 | V133: 68 | W133: 72 | X133: 96 | Y133: 218 | Z133: 207
A134: 208 | B134: 2 | C134: 8 | D134: 시지중 | E134: 김효진 | F134: 김창홍 | G134: 부 | H134: 01094465547 | I134: 01095025547 | J134: 990817 | K134: 일반 | N134: 대구광역시 | O134: 수성구 | P134: 달구벌대로649길 | Q134: 14 | R134: 아이프라임신매 | S134: 102동 401호 (신매동) | T134: 35.909 | U134: 274 | V134: 76 | W134: 88 | X134: 88 | Y134: 144 | Z134: 169
A135: 810 | B135: 8 | C135: 10 | D135: 수성중 | E135: 나영 | F135: 박연순 | G135: 모 | H135: 01092118263 | I135: 01097228263 | J135: 990611 | K135: 일반 | N135: 대구광역시 | O135: 수성구 | P135: 파동로12길 | Q135: 29-6 | R135: 그린빌라 | S135: 301호 (파동) | T135: 82.759 | U135: 506 | V135: 28 | W135: 52 | X135: 64 | Y135: 475 | Z135: 487
A136: 611 | B136: 6 | C136: 11 | D136: 고산중 | E136: 나유경 | F136: 김은진 | G136: 모 | H136: 01025303475 | I136: 01032113475 | J136: 990503 | K136: 일반 | N136: 대구광역시 | O136: 수성구 | P136: 달구벌대로651길 | Q136: 33 | R136: 시지신매우방타운 | S136: 101동 911호 (신매동) | T136: 25.747 | U136: 204 | V136: 64 | W136: 76 | X136: 72 | Y136: 303 | Z136: 288
A137: 1113 | B137: 11 | C137: 13 | D137: 고산중 | E137: 남경희 | F137: 배영숙 | G137: 모 | H137: 01094529198 | I137: 01093909198 | J137: 990319 | K137: 일반 | N137: 대구광역시 | O137: 수성구 | P137: 천을로 | Q137: 131 | R137: 두레타운 | S137: 112-1511 (매호동) | T137: 46.667 | U137: 339 | V137: 72 | W137: 84 | X137: 64 | Y137: 276 | Z137: 293
A138: 513 | B138: 5 | C138: 13 | D138: 지산중 | E138: 남연수 | F138: 송금채 | G138: 모 | H138: 01032184214 | I138: 01071684214 | J138: 000128 | K138: 일반 | N138: 대구광역시 | O138: 수성구 | P138: 무학로 | Q138: 189 | R138: 녹원맨션 | S138: 106동 205호 (지산동) | T138: 20.977 | U138: 168 | V138: 72 | W138: 68 | X138: 80 | Y138: 276 | Z138: 259
A139: 1316 | B139: 13 | C139: 16 | D139: 황금중 | E139: 남연정 | F139: 남태문 | G139: 부 | H139: 01044755118 | I139: 01085372747 | J139: 990530 | K139: 일반 | N139: 대구광역시 | O139: 수성구 | P139: 청수로 | Q139: 214 | R139: 캐슬골드파크 | S139: 1511동 1206호 (황금동) | T139: 31.989 | U139: 251 | V139: 68 | W139: 76 | X139: 68 | Y139: 303 | Z139: 298
A140: 311 | B140: 3 | C140: 11 | D140: 소선여중 | E140: 남지은 | F140: 하헌순 | G140: 모 | H140: 01085865402 | I140: 01055845402 | J140: 990409 | K140: 일반 | N140: 대구광역시 | O140: 수성구 | P140: 달구벌대로522길 | Q140: 33 | R140: 수성2차e편한세상 | S140: 103동 901호 (만촌동) | T140: 48.113 | U140: 352 | V140: 68 | W140: 76 | X140: 64 | Y140: 316 | Z140: 341
A141: 514 | B141: 5 | C141: 14 | D141: 고산중 | E141: 남현지 | F141: 박진아 | G141: 모 | H141: 01056743634 | I141: 01056803634 | J141: 991007 | K141: 일반 | N141: 대구광역시 | O141: 수성구 | P141: 천을로 | Q141: 70 | R141: 시지월드메르디앙 | S141: 102동 802호 (시지동) | T141: 11.724 | U141: 90 | V141: 80 | W141: 92 | X141: 92 | Y141: 89 | Z141: 91
A142: 1114 | B142: 11 | C142: 14 | D142: 황금중 | E142: 노원경 | F142: 정우희 | G142: 모 | H142: 01076186655 | I142: 01074651999 | J142: 990604 | K142: 일반 | N142: 대구광역시 | O142: 수성구 | P142: 청수로40길 | Q142: 29 | R142: 화성고려파크뷰 | S142: 101-1008 (황금동) | T142: 18.011 | U142: 145 | V142: 92 | W142: 84 | X142: 100 | Y142: 45 | Z142: 67
A143: 1005 | B143: 10 | C143: 5 | D143: 정화중 | E143: 노은채 | F143: 노공출 | G143: 부 | H143: 01050721032 | I143: 01088624123 | J143: 990818 | K143: 일반 | N143: 대구광역시 | O143: 수성구 | P143: 동대구로38길 | Q143: 80 | R143: 아진아파트 | S143: 5동 409호 (범어동) | T143: 64.322 | U143: 446 | V143: 76 | W143: 56 | X143: 56 | Y143: 391 | Z143: 412
A144: 515 | B144: 5 | C144: 15 | D144: 지산중 | E144: 류수민 | F144: 류연기 | G144: 부 | H144: 01071697696 | I144: 01050457696 | J144: 991102 | K144: 일반 | N144: 대구광역시 | O144: 수성구 | P144: 용학로 | Q144: 189 | R144: 지산시영1단지 | S144: 109동 409호 (지산동) | T144: 17.241 | U144: 136 | V144: 76 | W144: 80 | X144: 64 | Y144: 276 | Z144: 250
A145: 209 | B145: 2 | C145: 9 | D145: 지산중 | E145: 류인지 | F145: 황지연 | G145: 모 | H145: 01055266000 | I145: 01056030789 | J145: 990501 | K145: 일반 | N145: 대구광역시 | O145: 수성구 | P145: 상화로 | Q145: 134-12 | S145: (두산동) | T145: 26.149 | U145: 209 | V145: 68 | W145: 84 | X145: 88 | Y145: 197 | Z145: 197
A146: 312 | B146: 3 | C146: 12 | D146: 매호중 | E146: 류효림 | F146: 이정순 | G146: 모 | H146: 01085983202 | I146: 01033753202 | J146: 991020 | K146: 일반 | N146: 대구광역시 | O146: 수성구 | P146: 신매로 | Q146: 91 | R146: 시지삼주타운 | S146: 210동 906호 (신매동) | T146: 21.364 | U146: 171 | V146: 88 | W146: 84 | X146: 96 | Y146: 67 | Z146: 89
A147: 210 | B147: 2 | C147: 10 | D147: 정화중 | E147: 마채영 | F147: 이은영 | G147: 모 | H147: 01038142534 | I147: 01094552534 | J147: 990512 | K147: 일반 | N147: 대구광역시 | O147: 수성구 | P147: 달구벌대로 | Q147: 2570 | R147: 수성 아크로타워 | S147: A동 2004호 (만촌동) | T147: 25.628 | U147: 202 | V147: 72 | W147: 72 | X147: 88 | Y147: 232 | Z147: 225
A148: 516 | B148: 5 | C148: 16 | D148: 정화중 | E148: 문채은 | F148: 오정민 | G148: 모 | H148: 01051592868 | I148: 01062462868 | J148: 990414 | K148: 일반 | N148: 대구광역시 | O148: 수성구 | P148: 명덕로 | Q148: 477 | R148: 범어 쌍용 예가 | S148: 101동 406호 (범어동) | T148: 23.367 | U148: 191 | V148: 88 | W148: 84 | X148: 100 | Y148: 53 | Z148: 82
A149: 107 | B149: 1 | C149: 7 | D149: 동도중 | E149: 박경연 | F149: 박진일 | G149: 부 | H149: 01051262727 | I149: 01090195126 | J149: 991111 | K149: 일반 | N149: 대구광역시 | O149: 수성구 | P149: 청수로 | Q149: 257 | R149: 캐슬골드파크 | S149: 1303동 1802호 (황금동) | T149: 10.063 | U149: 80 | V149: 92 | W149: 92 | X149: 100 | Y149: 17 | Z149: 28
A150: 612 | B150: 6 | C150: 12 | D150: 범일중 | E150: 박규리 | F150: 이혜경 | G150: 모 | H150: 01085774601 | I150: 01053614601 | J150: 991020 | K150: 일반 | N150: 대구광역시 | O150: 수성구 | P150: 지범로39길 | Q150: 56 | R150: 범물보성타운 | S150: 101동 901호 (범물동) | T150: 51.337 | U150: 371 | V150: 72 | W150: 56 | X150: 64 | Y150: 378 | Z150: 389
A151: 410 | B151: 4 | C151: 10 | D151: 덕화중 | E151: 박규리 | F151: 박태일 | G151: 부 | H151: 01038241247 | I151: 01073702528 | J151: 990731 | K151: 일반 | N151: 대구광역시 | O151: 수성구 | P151: 동대구로 | Q151: 59 | R151: 대우트럼프월드 수성 | S151: F-2802 (두산동) | T151: 27.749 | U151: 225 | V151: 76 | W151: 44 | X151: 60 | Y151: 418 | Z151: 391
A152: 910 | B152: 9 | C152: 10 | D152: 신명여중 | E152: 박규리 | F152: 박춘수 | G152: 부 | H152: 01038138984 | I152: 01086678984 | J152: 990807 | K152: 일반 | N152: 대구광역시 | O152: 수성구 | P152: 범어천로 | Q152: 64-2 | S152: (범어동) | T152: 66.185 | U152: 451 | V152: 40 | W152: 44 | X152: 40 | Y152: 490 | Z152: 488
A153: 517 | B153: 5 | C153: 17 | D153: 매호중 | E153: 박근아 | F153: 김영희 | G153: 모 | H153: 01029304075 | I153: 01067764076 | J153: 990319 | K153: 일반 | N153: 대구광역시 | O153: 수성구 | P153: 달구벌대로649길 | Q153: 14 | R153: 신매동효성백년가야청 | S153: 103동 1205호 (신매동) | T153: 22.5 | U153: 181 | V153: 84 | W153: 68 | X153: 92 | Y153: 176 | Z153: 175
A154: 1115 | B154: 11 | C154: 15 | D154: 사대부중 | E154: 박근희 | F154: 이숙진 | G154: 모 | H154: 01090684009 | I154: 01093864009 | J154: 990630 | K154: 일반 | N154: 대구광역시 | O154: 중구 | P154: 국채보상로150길 | Q154: 75-11 | R154: 하얏트웰빙타운 | S154: (삼덕동3가) | T154: 41.091 | U154: 314 | V154: 84 | W154: 44 | X154: 64 | Y154: 378 | Z154: 377
A155: 211 | B155: 2 | C155: 11 | D155: 소선여중 | E155: 박나현 | F155: 박임용 | G155: 부 | H155: 01085637781 | I155: 01020197781 | J155: 000121 | K155: 일반 | N155: 대구광역시 | O155: 수성구 | P155: 국채보상로 | Q155: 945 | S155: (만촌동) | T155: 68.553 | U155: 462 | V155: 76 | W155: 80 | X155: 84 | Y155: 197 | Z155: 253
A156: 911 | B156: 9 | C156: 11 | D156: 노변중 | E156: 박도연 | F156: 김치신 | G156: 모 | H156: 01064017159 | I156: 01042937159 | J156: 990420 | K156: 일반 | N156: 대구광역시 | O156: 수성구 | P156: 천을로 | Q156: 91 | R156: 시지태왕아너스 | S156: 101동 1405호 (시지동) | T156: 13.22 | U156: 97 | V156: 92 | W156: 92 | X156: 96 | Y156: 30 | Z156: 37
A157: 709 | B157: 7 | C157: 9 | D157: 매호중 | E157: 박무진 | F157: 박철현 | G157: 부 | H157: 01097820760 | I157: 01094539490 | J157: 990425 | K157: 일반 | N157: 대구광역시 | O157: 수성구 | P157: 고산로 | Q157: 162 | R157: 한일유엔아이아파트 | S157: 106동 1902호 (매호동) | T157: 2.727 | U157: 18 | V157: 92 | W157: 88 | X157: 88 | Y157: 67 | Z157: 50
A158: 1006 | B158: 10 | C158: 6 | D158: 범물중 | E158: 박민선 | F158: 김영미 | G158: 모 | H158: 01038179043 | I158: 01048179043 | J158: 991014 | K158: 일반 | N158: 대구광역시 | O158: 수성구 | P158: 지범로22길 | Q158: 23 | R158: 지산협화맨션 | S158: 103동 507호 (지산동) | T158: 67.359 | U158: 454 | V158: 76 | W158: 56 | X158: 48 | Y158: 418 | Z158: 432
A159: 108 | B159: 1 | C159: 8 | D159: 정화중 | E159: 박민영 | F159: 오혜영 | G159: 모 | H159: 01045226830 | I159: 01050086830 | J159: 991011 | K159: 일반 | N159: 대구광역시 | O159: 수성구 | P159: 동대구로 | Q159: 274 | R159: 궁전맨션 | S159: 2동 308호 (범어동) | T159: 13.065 | U159: 95 | V159: 88 | W159: 88 | X159: 96 | Y159: 53 | Z159: 58
A160: 518 | B160: 5 | C160: 18 | D160: 매호중 | E160: 박민주 | F160: 이수정 | G160: 모 | H160: 01033449226 | I160: 01087529226 | J160: 990302 | K160: 일반 | N160: 대구광역시 | O160: 수성구 | P160: 천을로31길 | Q160: 8 | R160: 시지2차서한타운 | S160: 101동 1803호 (매호동) | T160: 6.364 | U160: 53 | V160: 84 | W160: 92 | X160: 72 | Y160: 161 | Z160: 138
A161: 710 | B161: 7 | C161: 10 | D161: 황금중 | E161: 박서현 | F161: 박권무 | G161: 부 | H161: 01026664804 | I161: 01090134803 | J161: 990408 | K161: 일반 | N161: 대구광역시 | O161: 수성구 | P161: 청수로 | Q161: 261 | R161: 캐슬골드파크 4단지 | S161: 1410동 1002호 (황금동) | T161: 4.032 | U161: 27 | V161: 96 | W161: 100 | X161: 100 | Y161: 3 | Z161: 7
A162: 313 | B162: 3 | C162: 13 | D162: 대구동중 | E162: 박설아 | F162: 차현숙 | G162: 모 | H162: 01029803170 | I162: 0537533170 | J162: 990818 | K162: 일반 | N162: 대구광역시 | O162: 수성구 | P162: 동대구로 | Q162: 300 | R162: 범어롯데캐슬 | S162: 103동 1701호 (범어동) | T162: 71.898 | U162: 473 | V162: 60 | W162: 28 | X162: 60 | Y162: 472 | Z162: 477
A163: 1007 | B163: 10 | C163: 7 | D163: 고산중 | E163: 박성미 | F163: 김은숙 | G163: 모 | H163: 01097345855 | I163: 01065935585 | J163: 990104 | K163: 일반 | N163: 대구광역시 | O163: 수성구 | P163: 천을로 | Q163: 49 | R163: 은탑맨션 | S163: 101동 2003호 (시지동) | T163: 17.241 | U163: 136 | V163: 80 | W163: 88 | X163: 88 | Y163: 120 | Z163: 124
A164: 1411 | B164: 14 | C164: 11 | D164: 덕원중 | E164: 박성지 | F164: 박효철 | G164: 부 | H164: 01087040611 | I164: 01097410611 | J164: 991130 | K164: 일반 | N164: 대구광역시 | O164: 수성구 | P164: 천을로23길 | Q164: 31 | R164: 매호효성백년가약 | S164: 101동 1802호 (매호동) | T164: 11.563 | U164: 89 | V164: 96 | W164: 80 | X164: 84 | Y164: 102 | Z164: 100
A165: 1317 | B165: 13 | C165: 17 | D165: 소선여중 | E165: 박세빈 | F165: 이상애 | G165: 모 | H165: 01055960031 | I165: 01034279335 | J165: 991013 | K165: 일반 | N165: 대구광역시 | O165: 수성구 | P165: 동원로11길 | Q165: 16-10 | S165: (범어동) | T165: 16.667 | U165: 130 | V165: 88 | W165: 88 | X165: 96 | Y165: 53 | Z165: 70
A166: 811 | B166: 8 | C166: 11 | D166: 황금중 | E166: 박세영 | F166: 김은정 | G166: 모 | H166: 01037793993 | I166: 01048471406 | J166: 991217 | K166: 일반 | N166: 대구광역시 | O166: 수성구 | P166: 무학로21길 | Q166: 70 | R166: 신혼빌라 | S166: 101호 (두산동) | T166: 83.871 | U166: 511 | V166: 48 | W166: 28 | X166: 48 | Y166: 490 | Z166: 500
A167: 1318 | B167: 13 | C167: 18 | D167: 대구동부중 | E167: 박소미 | F167: 김명희 | G167: 모 | H167: 01092788179 | I167: 01035930971 | J167: 990306 | K167: 일반 | N167: 대구광역시 | O167: 수성구 | P167: 국채보상로186길 | Q167: 43 | S167: 301호 (범어동) | T167: 55.422 | U167: 398 | V167: 72 | W167: 28 | X167: 48 | Y167: 472 | Z167: 467
A168: 1116 | B168: 11 | C168: 16 | D168: 황금중 | E168: 박소연 | F168: 정은미 | G168: 모 | H168: 01093510123 | I168: 01031635696 | J168: 990918 | K168: 일반 | N168: 대구광역시 | O168: 수성구 | P168: 동대구로50길 | Q168: 37 | R168: 범어유림노르웨이숲 | S168: 107동 802호 (범어동) | T168: 37.366 | U168: 283 | V168: 80 | W168: 68 | X168: 92 | Y168: 197 | Z168: 216
A169: 912 | B169: 9 | C169: 12 | D169: 율원중 | E169: 박소윤 | F169: 정순임 | G169: 모 | H169: 01066747333 | I169: 01071943427 | J169: 991103 | K169: 일반 | N169: 대구광역시 | O169: 수성구 | P169: 천을로 | Q169: 35 | R169: 시지미래하이츠 | S169: 103동 1201호 (시지동) | T169: 18.077 | U169: 146 | V169: 80 | W169: 80 | X169: 68 | Y169: 256 | Z169: 234
A170: 812 | B170: 8 | C170: 12 | D170: 매호중 | E170: 박소현 | F170: 박우찬 | G170: 부 | H170: 01048808416 | I170: 01048408416 | J170: 990618 | K170: 일반 | N170: 대구광역시 | O170: 수성구 | P170: 천을로23길 | Q170: 31 | R170: 매호효성백년가약 | S170: 106동 1104호 (매호동) | T170: 26.136 | U170: 208 | V170: 84 | W170: 76 | X170: 68 | Y170: 256 | Z170: 247
A171: 213 | B171: 2 | C171: 13 | D171: 덕원중 | E171: 박소희 | F171: 박민호 | G171: 부 | H171: 01065230910 | I171: 01024580918 | J171: 990918 | K171: 일반 | N171: 대구광역시 | O171: 수성구 | P171: 달구벌대로645길 | Q171: 22 | R171: 시지우방하이츠 | S171: 101동 206호 (매호동) | T171: 21.875 | U171: 176 | V171: 92 | W171: 52 | X171: 68 | Y171: 303 | Z171: 281
A172: 411 | B172: 4 | C172: 11 | D172: 동도중 | E172: 박수연 | F172: 노덕희 | G172: 모 | H172: 01020796245 | I172: 01094896245 | J172: 000110 | K172: 일반 | N172: 대구광역시 | O172: 수성구 | P172: 동대구로50길 | Q172: 37 | R172: 범어유림노르웨이숲 | S172: 101동 2102호 (범어동) | T172: 37.736 | U172: 286 | V172: 84 | W172: 84 | X172: 100 | Y172: 67 | Z172: 111
A173: 1319 | B173: 13 | C173: 19 | D173: 서변중 | E173: 박수진 | F173: 장현희 | G173: 모 | H173: 01095113027 | I173: 01035233027 | J173: 991006 | K173: 일반 | N173: 대구광역시 | O173: 북구 | P173: 서변로 | Q173: 26 | R173: 동서변월드메르디앙아파트 | S173: 707동 907호 (서변동) | T173: 25.275 | U173: 199 | V173: 92 | W173: 80 | X173: 80 | Y173: 144 | Z173: 155
A174: 1211 | B174: 12 | C174: 11 | D174: 대구제일중 | E174: 박수현 | F174: 구미은 | G174: 모 | H174: 01073077940 | I174: 01026907940 | J174: 991228 | K174: 일반 | N174: 대구광역시 | O174: 중구 | P174: 명륜로11길 | Q174: 35-6 | S174: (남산동) | T174: 37.963 | U174: 287 | V174: 72 | W174: 56 | X174: 60 | Y174: 391 | Z174: 383
A175: 711 | B175: 7 | C175: 11 | D175: 대구동부중 | E175: 박영연 | F175: 김연희 | G175: 모 | H175: 01075314468 | I175: 01075304468 | J175: 000209 | K175: 일반 | N175: 대구광역시 | O175: 수성구 | P175: 동원로11길 | Q175: 16-12 | S175: (범어동) | T175: 22.651 | U175: 184 | V175: 52 | W175: 84 | X175: 68 | Y175: 335 | Z175: 317
A176: 813 | B176: 8 | C176: 13 | D176: 시지중 | E176: 박예림 | F176: 박병호 | G176: 부 | H176: 0115267327 | I176: 01031391363 | J176: 990527 | K176: 일반 | N176: 대구광역시 | O176: 수성구 | P176: 고산로 | Q176: 70 | R176: 시지청솔타운 | S176: 219동 904호 (신매동) | T176: 8.182 | U176: 69 | V176: 92 | W176: 96 | X176: 84 | Y176: 53 | Z176: 49
A177: 712 | B177: 7 | C177: 12 | D177: 신명여중 | E177: 박예진 | F177: 안남주 | G177: 모 | H177: 01046924293 | I177: 01050425457 | J177: 990412 | K177: 보훈 | M177: 23-301521 | N177: 대구광역시 | O177: 수성구 | P177: 범어로 | Q177: 13 | R177: 경남타운 | S177: 9동 107호 (황금동) | T177: 2.601 | U177: 16 | V177: 100 | W177: 80 | X177: 96 | Y177: 45 | Z177: 35
A178: 713 | B178: 7 | C178: 13 | D178: 소선여중 | E178: 박용희 | F178: 박재현 | G178: 부 | H178: 01085808581 | I178: 01072118581 | J178: 990402 | K178: 일반 | N178: 대구광역시 | O178: 수성구 | P178: 청호로 | Q178: 466 | R178: 효성백년가약궁 | S178: 101동 1703호 (범어동) | T178: 47.799 | U178: 349 | V178: 88 | W178: 64 | X178: 72 | Y178: 269 | Z178: 289
A179: 1008 | B179: 10 | C179: 8 | D179: 대구동중 | E179: 박유정 | F179: 변순복 | G179: 모 | H179: 01050466112 | I179: 01040626112 | J179: 991020 | K179: 일반 | N179: 대구광역시 | O179: 수성구 | P179: 상록로 | Q179: 69 | R179: 래미안수성 | S179: 104동 1405호 (범어동) | T179: 28.467 | U179: 230 | V179: 68 | W179: 56 | X179: 88 | Y179: 303 | Z179: 292
A180: 214 | B180: 2 | C180: 14 | D180: 덕원중 | E180: 박윤아 | F180: 양지원 | G180: 모 | H180: 01088655300 | I180: 01094675221 | J180: 990222 | K180: 일반 | N180: 대구광역시 | O180: 수성구 | P180: 노변공원로 | Q180: 34 | R180: 노변목련타운 | S180: 103동 1104호 (시지동) | T180: 9.375 | U180: 78 | V180: 92 | W180: 92 | X180: 80 | Y180: 89 | Z180: 88
A181: 412 | B181: 4 | C181: 12 | D181: 소선여중 | E181: 박정민 | F181: 박철 | G181: 부 | H181: 01050217741 | I181: 01050227741 | J181: 990605 | K181: 일반 | N181: 경상북도 | O181: 경산시 | P181: 대학로16길 | Q181: 6 | R181: 우방맨션 | S181: 102동 405호 (정평동) | T181: 22.327 | U181: 179 | V181: 84 | W181: 80 | X181: 96 | Y181: 102 | Z181: 118
A182: 109 | B182: 1 | C182: 9 | D182: 정화중 | E182: 박정빈 | F182: 이소영 | G182: 모 | H182: 01093430207 | I182: 01031890207 | J182: 990130 | K182: 일반 | N182: 대구광역시 | O182: 수성구 | P182: 범어로 | Q182: 75 | R182: 범어 에스케이 뷰 | S182: 102동 704호 (범어동) | T182: 33.92 | U182: 266 | V182: 56 | W182: 72 | X182: 76 | Y182: 335 | Z182: 338
A183: 1009 | B183: 10 | C183: 9 | D183: 황금중 | E183: 박정은 | F183: 강은경 | G183: 모 | H183: 01065410097 | I183: 01065400097 | J183: 990606 | K183: 일반 | N183: 대구광역시 | O183: 수성구 | P183: 동대구로 | Q183: 95 | R183: 수성 SK 리더스뷰 | S183: 105동 3601호 (두산동) | T183: 68.011 | U183: 458 | V183: 72 | W183: 52 | X183: 96 | Y183: 276 | Z183: 329
A184: 1010 | B184: 10 | C184: 10 | D184: 시지중 | E184: 박주미 | F184: 박군택 | G184: 부 | H184: 01020476934 | I184: 01030166934 | J184: 990617 | K184: 일반 | N184: 대구광역시 | O184: 수성구 | P184: 달구벌대로 | Q184: 3233 | R184: 신매동효성백년가약청 | S184: 101동 1502호 (신매동) | T184: 37.273 | U184: 282 | V184: 80 | W184: 88 | X184: 88 | Y184: 120 | Z184: 152
A185: 215 | B185: 2 | C185: 15 | D185: 동원중 | E185: 박주연 | F185: 박기현 | G185: 부 | H185: 01039230923 | I185: 01083145999 | J185: 990824 | K185: 일반 | N185: 대구광역시 | O185: 동구 | P185: 효목로 | Q185: 70 | R185: 럭키3차아파트 | S185: 410호 (효목동) | T185: 7.829 | U185: 65 | V185: 80 | W185: 72 | X185: 52 | Y185: 335 | Z185: 283
A186: 216 | B186: 2 | C186: 16 | D186: 동도중 | E186: 박지수 | F186: 박수진 | G186: 모 | H186: 01050617936 | I186: 01033157936 | J186: 990511 | K186: 일반 | N186: 대구광역시 | O186: 수성구 | P186: 청수로 | Q186: 261 | R186: 캐슬골드파크 4단지 | S186: 1408동 403호 (황금동) | T186: 46.122 | U186: 337 | V186: 76 | W186: 76 | X186: 80 | Y186: 232 | Z186: 256
A187: 1117 | B187: 11 | C187: 17 | D187: 정화중 | E187: 박지윤 | F187: 김정미 | G187: 모 | H187: 01055226117 | I187: 01055669547 | J187: 990531 | K187: 일반 | N187: 대구광역시 | O187: 수성구 | P187: 동대구로62길 | Q187: 46 | S187: (범어동) | T187: 49.246 | U187: 362 | V187: 84 | W187: 80 | X187: 56 | Y187: 276 | Z187: 300
A188: 613 | B188: 6 | C188: 13 | D188: 신명여중 | E188: 박지현 | F188: 유수경 | G188: 모 | H188: 01093645755 | I188: 01064795755 | J188: 990522 | K188: 일반 | N188: 대구광역시 | O188: 수성구 | P188: 달구벌대로 | Q188: 2317 | R188: 우방사랑마을 | S188: 103동 1505호 (수성동4가) | T188: 6.358 | U188: 52 | V188: 80 | W188: 76 | X188: 100 | Y188: 120 | Z188: 109
A189: 110 | B189: 1 | C189: 10 | D189: 고산중 | E189: 박지현 | F189: 권승아 | G189: 모 | H189: 01052713434 | I189: 01093215271 | J189: 990310 | K189: 일반 | N189: 대구광역시 | O189: 수성구 | P189: 욱수천로 | Q189: 133 | R189: 사월보성아파트 | S189: 105동 506호 (사월동) | T189: 25.057 | U189: 198 | V189: 72 | W189: 52 | X189: 76 | Y189: 352 | Z189: 339
A190: 1320 | B190: 13 | C190: 20 | D190: 범물중 | E190: 박진수 | F190: 강정미 | G190: 모 | H190: 01035574872 | I190: 01051000445 | J190: 990809 | K190: 일반 | N190: 대구광역시 | O190: 수성구 | P190: 용학로42길 | Q190: 13 | R190: 목련아파트 | S190: 9동 302호 (지산동) | T190: 22.552 | U190: 183 | V190: 76 | W190: 80 | X190: 80 | Y190: 218 | Z190: 211
A191: 614 | B191: 6 | C191: 14 | D191: 정화중 | E191: 박진영 | F191: 임수진 | G191: 모 | H191: 01067075199 | I191: 01030255199 | J191: 991109 | K191: 일반 | N191: 대구광역시 | O191: 수성구 | P191: 청호로 | Q191: 466 | R191: 효성백년가약 궁 | S191: 101동 1301호 (범어동) | T191: 71.106 | U191: 470 | V191: 72 | W191: 24 | X191: 92 | Y191: 391 | Z191: 417
A192: 413 | B192: 4 | C192: 13 | D192: 노변중 | E192: 박채린 | F192: 손현숙 | G192: 모 | H192: 01089097412 | I192: 01068597412 | J192: 991202 | K192: 일반 | N192: 대구광역시 | O192: 수성구 | P192: 노변로 | Q192: 11 | R192: 노변대백맨션 | S192: 101동 207호 (노변동) | T192: 53.22 | U192: 383 | V192: 60 | W192: 64 | X192: 64 | Y192: 391 | Z192: 398
A193: 1011 | B193: 10 | C193: 11 | D193: 동도중 | E193: 박채린 | F193: 지향숙 | G193: 모 | H193: 01050171525 | I193: 01047631594 | J193: 991203 | K193: 일반 | N193: 대구광역시 | O193: 수성구 | P193: 동대구로 | Q193: 376 | R193: 범어숲 화성파크드림 S | S193: 101동 2202호 (범어동) | T193: 70.86 | U193: 468 | V193: 32 | W193: 28 | X193: 68 | Y193: 487 | Z193: 489
A194: 519 | B194: 5 | C194: 19 | D194: 신명여중 | E194: 박채연 | F194: 김정원 | G194: 모 | H194: 01048727528 | I194: 01047237528 | J194: 991215 | K194: 일반 | N194: 대구광역시 | O194: 수성구 | P194: 신천동로 | Q194: 320 | R194: 신세계타운 | S194: 12동 901호 (수성동1가) | T194: 14.451 | U194: 112 | V194: 84 | W194: 84 | X194: 88 | Y194: 120 | Z194: 119
A195: =B195*100+C195 -> 314 | B195: 3 | C195: 14 | D195: 대구동중 | E195: 박하민 | F195: 이민정 | G195: 모 | H195: 01094911397 | I195: 01026811397 | J195: 991229 | K195: 일반 | N195: 대구광역시 | O195: 수성구 | P195: 동대구로 | Q195: 210 | R195: 한화 오벨리스크 | S195: 1601호 (황금동) | T195: 4.562 | U195: 32 | V195: 88 | W195: 84 | X195: 96 | Y195: 67 | Z195: 55
A196: 1012 | B196: 10 | C196: 12 | D196: 정화중 | E196: 박혜진 | F196: 권지희 | G196: 모 | H196: 01024664212 | I196: 01024004212 | J196: 991017 | K196: 일반 | N196: 대구광역시 | O196: 수성구 | P196: 청수로 | Q196: 214 | R196: 캐슬골드파크 5단지 | S196: 1511동 1105호 (황금동) | T196: 13.819 | U196: 106 | V196: 88 | W196: 76 | X196: 96 | Y196: 102 | Z196: 105
A197: 217 | B197: 2 | C197: 17 | D197: 경일여중 | E197: 박희연 | F197: 정선녕 | G197: 모 | H197: 01020455177 | I197: 01040345177 | J197: 000118 | K197: 일반 | N197: 대구광역시 | O197: 남구 | P197: 명덕로68길 | Q197: 19 | R197: 이천강변타운 | S197: 103동 1303호 (이천동) | T197: 48.462 | U197: 358 | V197: 72 | W197: 76 | X197: 52 | Y197: 352 | Z197: 368
A198: 913 | B198: 9 | C198: 13 | D198: 정화중 | E198: 방선윤 | F198: 서경남 | G198: 모 | H198: 01093837383 | I198: 01045391933 | J198: 991217 | K198: 일반 | N198: 대구광역시 | O198: 수성구 | P198: 청호로 | Q198: 340 | R198: 목련아파트 | S198: 4동 308호 (범어동) | T198: 4.774 | U198: 34 | V198: 88 | W198: 88 | X198: 88 | Y198: 89 | Z198: 78
A199: 1118 | B199: 11 | C199: 18 | D199: 경명여중 | E199: 배다현 | F199: 장순미 | G199: 모 | H199: 01055082198 | I199: 01066902198 | J199: 990903 | K199: 일반 | N199: 대구광역시 | O199: 수성구 | P199: 청수로 | Q199: 274 | R199: 수성지구우방타운 | S199: 8동 105호 (황금동) | T199: 17.672 | U199: 142 | V199: 88 | W199: 92 | X199: 76 | Y199: 120 | Z199: 125
A200: 714 | B200: 7 | C200: 14 | D200: 정화중 | E200: 배세인 | F200: 이상일 | G200: 모 | H200: 01066830966 | I200: 01076830966 | J200: 990917 | K200: 일반 | N200: 대구광역시 | O200: 수성구 | P200: 청호로69길 | Q200: 71-3 | R200: 부국빌라 | S200: 1층B호 (황금동) | T200: 41.709 | U200: 316 | V200: 72 | W200: 76 | X200: 92 | Y200: 197 | Z200: 220
... 337 more rows

Sheet 전체명렬 (hidden)
B1: 1 | C1: 2 | D1: 3 | E1: 4 | F1: 5 | G1: 6 | H1: 7 | I1: 8 | J1: 9 | K1: 10 | L1: 11 | M1: 12 | N1: 13 | O1: 14
A2: 담임 | B2: 권영륜 | C2: 서은경 | D2: 최동길 | E2: 이현숙 | F2: 임태영 | G2: 이수진 | H2: 김홍찬 | I2: 박정미 | J2: 이경 | K2: 김영애 | L2: 박청욱 | M2: 장은지 | N2: 송민 | O2: 김현효
A3: 1 | B3: 강주영 | C3: 고영경 | D3: 강연주 | E3: 강진하 | F3: 공다현 | G3: 권민서 | H3: 권수정 | I3: 김민정 | J3: 강연희 | K3: 금정연 | L3: 강나연 | M3: 강민주 | N3: 강나영 | O3: 김미경
A4: 2 | B4: 권태경 | C4: 권민주 | D4: 공여진 | E4: 공다은 | F4: 권채현 | G4: 김령 | H4: 김경민 | I4: 김소연 | J4: 강태인 | K4: 김나경 | L4: 곽소영 | M4: 구문정 | N4: 권세아 | O4: 김민정
A5: 3 | B5: 김규리 | C5: 권혜령 | D5: 구보민 | E5: 권민주 | F5: 길나령 | G5: 김서현 | H5: 김수경 | I5: 김소희 | J5: 김보승 | K5: 김서현 | L5: 권민성 | M5: 권세현 | N5: 권시현 | O5: 김민지
A6: 4 | B6: 김나경 | C6: 김기령 | D6: 김경민 | E6: 권유경 | F6: 김고은 | G6: 김세영 | H6: 김예원 | I6: 김수현 | J6: 김상은 | K6: 김지현 | L6: 김규나 | M6: 권효민 | N6: 권평강 | O6: 김보련
A7: 5 | B7: 김윤주 | C7: 김민지 | D7: 김나연 | E7: 김가민 | F7: 김나연 | G7: 김유진 | H7: 김우주 | I7: 김시연 | J7: 김수영 | K7: 노은채 | L7: 김미현 | M7: 김규진 | N7: 김가은 | O7: 김성은
A8: 6 | B8: 김지윤 | C8: 김석희 | D8: 김미연 | E8: 김보현 | F8: 김도연 | G8: 김정은 | H8: 김윤지 | I8: 김예진 | J8: 김예지 | K8: 박민선 | L8: 김민지 | M8: 김민지 | N8: 김고은 | O8: 김세빈
A9: 7 | B9: 박경연 | C9: 김은희 | D9: 김보민 | E9: 김수민 | F9: 김문진 | G9: 김주연 | H9: 김지아 | I9: 김유진 | J9: 김정임 | K9: 박성미 | L9: 김서희 | M9: 김수민 | N9: 김규리 | O9: 김소연
A10: 8 | B10: 박민영 | C10: 김효진 | D10: 김보현 | E10: 김지원 | F10: 김수지 | G10: 김주희 | H10: 김현진 | I10: 김윤지 | J10: 김지인 | K10: 박유정 | L10: 김수연 | M10: 김수현 | N10: 김나영 | O10: 김유진
A11: 9 | B11: 박정빈 | C11: 류인지 | D11: 김은혜 | E11: 김지혜 | F11: 김수현 | G11: 김채연 | H11: 박무진 | I11: 김혜영 | J11: 김효주 | K11: 박정은 | L11: 김수진 | M11: 김호정 | N11: 김다영 | O11: 김해미
A12: 10 | B12: 박지현 | C12: 마채영 | D12: 김효정 | E12: 박규리 | F12: 김시원 | G12: 김현정 | H12: 박서현 | I12: 나영 | J12: 박규리 | K12: 박주미 | L12: 김연수 | M12: 김효영 | N12: 김명주 | O12: 김현지
A13: 11 | B13: 배하연 | C13: 박나현 | D13: 남지은 | E13: 박수연 | F13: 김윤지 | G13: 나유경 | H13: 박영연 | I13: 박세영 | J13: 박도연 | K13: 박채린 | L13: 김은지 | M13: 박수현 | N13: 김민영 | O13: 박성지
A14: 12 | B14: 백승비 | C14: 박민주 | D14: 류효림 | E14: 박정민 | F14: 김정민 | G14: 박규리 | H14: 박예진 | I14: 박소현 | J14: 박소윤 | K14: 박혜진 | L14: 김정윤 | M14: 송영서 | N14: 김소정 | O14: 서효정
A15: 13 | B15: 손유진 | C15: 박소희 | D15: 박설아 | E15: 박채린 | F15: 남연수 | G15: 박지현 | H15: 박용희 | I15: 박예림 | J15: 방선윤 | K15: 손수빈 | L15: 남경희 | M15: 안지원 | N15: 김예원 | O15: 설강이
A16: 14 | B16: 신정아 | C16: 박윤아 | D16: 박하민 | E16: 배주영 | F16: 남현지 | G16: 박진영 | H16: 배세인 | I16: 배윤아 | J16: 배윤주 | K16: 송수진 | L16: 노원경 | M16: 유예지 | N16: 김지원 | O16: 송서연
A17: 15 | B17: 신혜인 | C17: 박주연 | D17: 사수빈 | E17: 송하늘 | F17: 류수민 | G17: 서지수 | H17: 서희정 | I17: 배은빈 | J17: 백다현 | K17: 신은영 | L17: 박근희 | M17: 유하영 | N17: 김현지 | O17: 송유진
A18: 16 | B18: 안다인 | C18: 박지수 | D18: 성가현 | E18: 신준희 | F18: 문채은 | G18: 양혜수 | H18: 신해원 | I18: 배정민 | J18: 백지은 | K18: 신지현 | L18: 박소연 | M18: 이가은 | N18: 남연정 | O18: 신정음
A19: 17 | B19: 여승윤 | C19: 박희연 | D19: 시민정 | E19: 양민아 | F19: 박근아 | G19: 우혜지 | H19: 양은지 | I19: 서정은 | J19: 서명진 | K19: 심은진 | L19: 박지윤 | M19: 이윤서 | N19: 박세빈 | O19: 윤소예
A20: 18 | B20: 오소연 | C20: 배호정 | D20: 신세인 | E20: 양수진 | F20: 박민주 | G20: 윤성원 | H20: 오유진 | I20: 성지원 | J20: 서채원 | K20: 오유진 | L20: 배다현 | M20: 이정은 | N20: 박소미 | O20: 은지수
A21: 19 | B21: 이가은 | C21: 사공주희 | D21: 신지민 | E21: 우애슐리연정 | F21: 박채연 | G21: 윤시현 | H21: 유수진 | I21: 신승 | J21: 손민경 | K21: 윤인아 | L21: 서유빈 | M21: 이주현 | N21: 박수진 | O21: 이나영
A22: 20 | B22: 이영주 | C22: 서보경 | D22: 양다현 | E22: 윤다현 | F22: 서승지 | G22: 윤지현 | H22: 윤수연 | I22: 여지훈 | J22: 우승연 | K22: 이규영 | L22: 송문경 | M22: 이현지 | N22: 박진수 | O22: 이서영
A23: 21 | B23: 이예린 | C23: 서지민 | D23: 엄수미 | E23: 이경아 | F23: 성민경 | G23: 이서윤 | H23: 이경민 | I23: 오나은 | J23: 원소빈 | K23: 이소연 | L23: 신혜인 | M23: 이효린 | N23: 백다애 | O23: 이승연
A24: 22 | B24: 이예인 | C24: 신부용 | D24: 이승원 | E24: 이다혜 | F24: 손가현 | G24: 이수미 | H24: 이소현 | I24: 오세인 | J24: 유명산 | K24: 이수현 | L24: 오은진 | M24: 장소빈 | N24: 서예주 | O24: 이정아
A25: 23 | B25: 이준영 | C25: 심송은 | D25: 이유정 | E25: 이민주 | F25: 신예은 | G25: 이수아 | H25: 이아현 | I25: 윤은경 | J25: 이나경 | K25: 이여진 | L25: 우예빈 | M25: 장혜진 | N25: 서지현 | O25: 이지민
A26: 24 | B26: 이현정 | C26: 여상은 | D26: 이지은 | E26: 이상은 | F26: 심윤주 | G26: 이신애 | H26: 이은정 | I26: 윤지연 | J26: 이윤민 | K26: 이채은 | L26: 윤유경 | M26: 정다은 | N26: 양윤정 | O26: 이지우
A27: 25 | B27: 이혜인 | C27: 유세빈 | D27: 이채원 | E27: 이정림 | F27: 안수민 | G27: 이연주 | H27: 이은진 | I27: 이민지 | J27: 이지민 | K27: 장보민 | L27: 이서연 | M27: 정빈 | N27: 유정민 | O27: 임보윤
A28: 26 | B28: 장서현 | C28: 이수민 | D28: 이채은 | E28: 이채림 | F28: 이나연 | G28: 이예나 | H28: 이해가 | I28: 이시은 | J28: 이채명 | K28: 장윤영 | L28: 이승은 | M28: 정수연 | N28: 윤예랑 | O28: 임희정
A29: 27 | B29: 정인서 | C29: 이예은 | D29: 이하림 | E29: 정보경 | F29: 이수정 | G29: 장한이 | H29: 전하은 | I29: 이주희 | J29: 이혜인 | K29: 전희성 | L29: 이애은 | M29: 정온유 | N29: 윤하은 | O29: 전수빈
A30: 28 | B30: 정자현 | C30: 이지원 | D30: 이한희 | E30: 정지수 | F30: 이지연 | G30: 정연정 | H30: 정은영 | I30: 이지영 | J30: 이효주 | K30: 정나은 | L30: 이예원 | M30: 정은지 | N30: 은수진 | O30: 전수연
A31: 29 | B31: 정지연 | C31: 임수정 | D31: 이혜지 | E31: 정지영 | F31: 이지우 | G31: 정효원 | H31: 진민정 | I31: 이해린 | J31: 장지연 | K31: 정혜빈 | L31: 이지현 | M31: 조유진 | N31: 이유진 | O31: 전혜원
A32: 30 | B32: 정지원 | C32: 임지민 | D32: 채승리 | E32: 차수민 | F32: 이채원 | G32: 조언영 | H32: 진연지 | I32: 이현민 | J32: 정미선 | K32: 조유현 | L32: 이채원 | M32: 조해연 | N32: 이지원 | O32: 정수현
A33: 31 | B33: 정하은 | C33: 전소현 | D33: 최명진 | E33: 차정민 | F33: 장윤진 | G33: 조한나 | H33: 채은경 | I33: 전수현 | J33: 정채린 | K33: 지수민 | L33: 장서현 | M33: 주예빈 | N33: 이휘진 | O33: 최소영
A34: 32 | B34: 진하은 | C34: 조민영 | D34: 최자윤 | E34: 천지영 | F34: 전예린 | G34: 최은서 | H34: 천유진 | I34: 정은지 | J34: 조민경 | K34: 지혜빈 | L34: 장의진 | M34: 채민 | N34: 장예은 | O34: 최찬미
A35: 33 | B35: 최소미 | C35: 최은영 | D35: 최정민 | E35: 최민지 | F35: 정가을 | G35: 최자윤 | H35: 최지원 | I35: 정지수 | J35: 조수민 | K35: 최소은 | L35: 정혜원 | M35: 최단희 | N35: 장은영 | O35: 하지윤
A36: 34 | B36: 최윤진 | C36: 최정윤 | D36: 최정원 | E36: 최주연 | F36: 천승연 | G36: 허세은 | H36: 하나래 | I36: 천서영 | J36: 최세경 | K36: 최진실 | L36: 조연화 | M36: 최수현 | N36: 정성주 | O36: 허경서
A37: 35 | B37: 최은영 | C37: 하수정 | D37: 편소현 | E37: 허윤선 | F37: 최나영 | G37: 홍정원 | H37: 허정인 | I37: 최효진 | J37: 최유진 | K37: 최호정 | L37: 조주현 | M37: 최은빈 | N37: 정재우 | O37: 허다정
A38: 36 | B38: 추수민 | C38: 한영은 | D38: 한성지 | E38: 허지안 | F38: 최문성 | G38: 홍채현 | H38: 황신운 | I38: 홍지민 | J38: 최현수 | K38: 허지수 | L38: 탁효주 | M38: 최재희 | N38: 조경민 | O38: 홍성민
A39: 37 | B39: 하정아 | C39: 한해규 | D39: 한승연 | E39: 황소희 | F39: 한규미 | G39: 홍하연 | H39: 황지인 | I39: 황채원 | J39: 홍인비 | K39: 김나연(배구부) | L39: 오진이(배구부) | M39: 전희주(배구부) | N39: 진규은 | O39: 황소영
A40: 38 | B40: 황윤선 | C40: 김근하 | D40: 김유민 | E40: 조민기 | F40: 최서윤 | G40: 박서리 | H40: 김연진(정구부) | I40: 김윤희(정구부) | J40: 고민지(배구부) | K40: 권지혜 | L40: 박현정 | N40: 한유정
A41: 39
A42: 40
A43: 41
A44: 42
A45: 43
A46: 44
A47: 45 | B47: 0 | C47: 0 | D47: 0 | E47: 0 | F47: 0 | G47: 0 | H47: 0 | O47: 0
A48: 46

Sheet 명렬전체
B1: 1 | C1: 2 | D1: 3 | E1: 4 | F1: 5 | G1: 6 | H1: 7 | I1: 8 | J1: 9
A2: 번호
A3: 1
A4: 2
A5: 3
A6: 4
A7: 5
A8: 6
A9: 7
A10: 8
A11: 9
A12: 10
A13: 11
A14: 12
A15: 13
A16: 14
A17: 15
A18: 16
A19: 17
A20: 18
A21: 19
A22: 20
A23: 21
A24: 22
A25: 23
A26: 24
A27: 25
A28: 26
A29: 27
A30: 28
A31: 29
A32: 30
A33: 31
A34: 32
A35: 33
A36: 34
A37: 35

Sheet 자율(이용안내)
A1: 번호 | B1: 이름 | C1: 자율활동(총 1500 바이트 - 500자) 바이트계산 : 한글 3, 영문숫자 1, 엔터키 2 | E1: 바이트 | F1: 총 바이트 | G1: 반입력 | H1: 9
A2: 1 | B2: =HLOOKUP($H$1,명렬전체!$B$1:$K$32,3,FALSE) -> 0 | D2: =LEN(C2) -> 0 | E2: =LENB(C2) -> 0 | F2: =((E2-D2)*3+(D2)*2-(E2)) -> 0
A3: =A2+1 -> 2 | B3: =HLOOKUP($H$1,명렬전체!$B$1:$K$32,4,FALSE) -> 0 | D3: =LEN(C3) -> 0 | E3: =LENB(C3) -> 0 | F3: =((E3-D3)*3+(D3)*2-(E3)) -> 0
A4: 3 | B4: =HLOOKUP($H$1,명렬전체!$B$1:$K$32,5,FALSE) -> 0 | D4: 0 | E4: 0 | F4: 0
A5: 4 | B5: =HLOOKUP($H$1,명렬전체!$B$1:$K$32,6,FALSE) -> 0 | D5: 0 | E5: 0 | F5: 0
A6: 5 | B6: =HLOOKUP($H$1,명렬전체!$B$1:$K$32,7,FALSE) -> 0 | D6: 0 | E6: 0 | F6: 0
A7: 6 | B7: =HLOOKUP($H$1,명렬전체!$B$1:$K$32,8,FALSE) -> 0 | D7: 0 | E7: 0 | F7: 0
A8: 7 | B8: =HLOOKUP($H$1,명렬전체!$B$1:$K$32,9,FALSE) -> 0 | D8: 0 | E8: 0 | F8: 0
A9: 8 | B9: =HLOOKUP($H$1,명렬전체!$B$1:$K$32,10,FALSE) -> 0 | D9: 0 | E9: 0 | F9: 0
A10: 9 | B10: =HLOOKUP($H$1,명렬전체!$B$1:$K$32,11,FALSE) -> 0 | D10: 0 | E10: 0 | F10: 0
A11: 10 | B11: =HLOOKUP($H$1,명렬전체!$B$1:$K$32,12,FALSE) -> 0 | D11: 0 | E11: 0 | F11: 0
A12: 11 | B12: =HLOOKUP($H$1,명렬전체!$B$1:$K$32,13,FALSE) -> 0 | D12: 0 | E12: 0 | F12: 0
A13: 12 | B13: =HLOOKUP($H$1,명렬전체!$B$1:$K$32,14,FALSE) -> 0 | D13: 0 | E13: 0 | F13: 0
A14: 13 | B14: =HLOOKUP($H$1,명렬전체!$B$1:$K$32,15,FALSE) -> 0 | D14: 0 | E14: 0 | F14: 0
A15: 14 | B15: =HLOOKUP($H$1,명렬전체!$B$1:$K$32,16,FALSE) -> 0 | D15: 0 | E15: 0 | F15: 0
A16: 15 | B16: =HLOOKUP($H$1,명렬전체!$B$1:$K$32,17,FALSE) -> 0 | D16: 0 | E16: 0 | F16: 0
A17: 16 | B17: =HLOOKUP($H$1,명렬전체!$B$1:$K$32,18,FALSE) -> 0 | D17: 0 | E17: 0 | F17: 0
A18: 17 | B18: =HLOOKUP($H$1,명렬전체!$B$1:$K$32,19,FALSE) -> 0 | D18: 0 | E18: 0 | F18: 0
A19: 18 | B19: =HLOOKUP($H$1,명렬전체!$B$1:$K$32,20,FALSE) -> 0 | D19: 0 | E19: 0 | F19: 0
A20: 19 | B20: =HLOOKUP($H$1,명렬전체!$B$1:$K$32,21,FALSE) -> 0 | D20: =LEN(C20) -> 0 | E20: =LENB(C20) -> 0 | F20: =((E20-D20)*3+(D20)*2-(E20)) -> 0
A21: 20 | B21: =HLOOKUP($H$1,명렬전체!$B$1:$K$32,22,FALSE) -> 0 | D21: 0 | E21: 0 | F21: 0
A22: 21 | B22: =HLOOKUP($H$1,명렬전체!$B$1:$K$32,23,FALSE) -> 0 | D22: 0 | E22: 0 | F22: 0
A23: 22 | B23: =HLOOKUP($H$1,명렬전체!$B$1:$K$32,24,FALSE) -> 0 | D23: 0 | E23: 0 | F23: 0
A24: 23 | B24: =HLOOKUP($H$1,명렬전체!$B$1:$K$32,25,FALSE) -> 0 | D24: 0 | E24: 0 | F24: 0
A25: 24 | B25: =HLOOKUP($H$1,명렬전체!$B$1:$K$32,26,FALSE) -> 0 | D25: 0 | E25: 0 | F25: 0
A26: 25 | B26: =HLOOKUP($H$1,명렬전체!$B$1:$K$32,27,FALSE) -> 0 | D26: 0 | E26: 0 | F26: 0
A27: 26 | B27: =HLOOKUP($H$1,명렬전체!$B$1:$K$32,28,FALSE) -> 0 | D27: 0 | E27: 0 | F27: 0
A28: 27 | B28: =HLOOKUP($H$1,명렬전체!$B$1:$K$32,29,FALSE) -> 0 | D28: 0 | E28: 0 | F28: 0
A29: 28 | B29: =HLOOKUP($H$1,명렬전체!$B$1:$K$32,30,FALSE) -> 0 | D29: 0 | E29: 0 | F29: 0
A30: 29 | B30: =HLOOKUP($H$1,명렬전체!$B$1:$K$32,31,FALSE) -> 0 | D30: =LEN(C30) -> 0 | E30: =LENB(C30) -> 0 | F30: =((E30-D30)*3+(D30)*2-(E30)) -> 0
A31: 30 | B31: =HLOOKUP($H$1,명렬전체!$B$1:$K$32,32,FALSE) -> 0 | D31: 0 | E31: 0 | F31: 0
A32: 31 | B32: =IFERROR(HLOOKUP($H$1,명렬전체!$B$1:$K$32,33,FALSE),"") ->  | D32: 0 | E32: 0 | F32: 0
A33: 32 | B33: =IFERROR(HLOOKUP($H$1,명렬전체!$B$1:$K$32,34,FALSE),"") ->  | D33: 0 | E33: 0 | F33: 0
A34: 33 | B34: =IFERROR(HLOOKUP($H$1,명렬전체!$B$1:$K$32,35,FALSE),"") ->  | D34: 0 | E34: 0 | F34: 0

Sheet 진로
A1: 번호 | B1: 이름 | C1: 진로활동(총 2100 바이트 - 700자) 바이트계산 : 한글 3, 영문숫자 1, 엔터키 2 | D1: 문자열 | E1: 바이트 | F1: 총 바이트 | G1: 반입력 | H1: ='자율(이용안내)'!$H$1 -> 9
A2: 1 | B2: =HLOOKUP($H$1,명렬전체!$B$1:$K$32,3,FALSE) -> 0 | D2: =LEN(C2) -> 0 | E2: =LENB(C2) -> 0 | F2: =((E2-D2)*3+(D2)*2-(E2)) -> 0
A3: =A2+1 -> 2 | B3: =HLOOKUP($H$1,명렬전체!$B$1:$K$32,4,FALSE) -> 0 | D3: =LEN(C3) -> 0 | E3: =LENB(C3) -> 0 | F3: =((E3-D3)*3+(D3)*2-(E3)) -> 0
A4: 3 | B4: =HLOOKUP($H$1,명렬전체!$B$1:$K$32,5,FALSE) -> 0 | D4: 0 | E4: 0 | F4: 0
A5: 4 | B5: =HLOOKUP($H$1,명렬전체!$B$1:$K$32,6,FALSE) -> 0 | D5: 0 | E5: 0 | F5: 0
A6: 5 | B6: =HLOOKUP($H$1,명렬전체!$B$1:$K$32,7,FALSE) -> 0 | D6: 0 | E6: 0 | F6: 0
A7: 6 | B7: =HLOOKUP($H$1,명렬전체!$B$1:$K$32,8,FALSE) -> 0 | D7: 0 | E7: 0 | F7: 0
A8: 7 | B8: =HLOOKUP($H$1,명렬전체!$B$1:$K$32,9,FALSE) -> 0 | D8: 0 | E8: 0 | F8: 0
A9: 8 | B9: =HLOOKUP($H$1,명렬전체!$B$1:$K$32,10,FALSE) -> 0 | D9: 0 | E9: 0 | F9: 0
A10: 9 | B10: =HLOOKUP($H$1,명렬전체!$B$1:$K$32,11,FALSE) -> 0 | D10: 0 | E10: 0 | F10: 0
A11: 10 | B11: =HLOOKUP($H$1,명렬전체!$B$1:$K$32,12,FALSE) -> 0 | D11: 0 | E11: 0 | F11: 0
A12: 11 | B12: =HLOOKUP($H$1,명렬전체!$B$1:$K$32,13,FALSE) -> 0 | D12: 0 | E12: 0 | F12: 0
A13: 12 | B13: =HLOOKUP($H$1,명렬전체!$B$1:$K$32,14,FALSE) -> 0 | D13: 0 | E13: 0 | F13: 0
A14: 13 | B14: =HLOOKUP($H$1,명렬전체!$B$1:$K$32,15,FALSE) -> 0 | D14: 0 | E14: 0 | F14: 0
A15: 14 | B15: =HLOOKUP($H$1,명렬전체!$B$1:$K$32,16,FALSE) -> 0 | D15: 0 | E15: 0 | F15: 0
A16: 15 | B16: =HLOOKUP($H$1,명렬전체!$B$1:$K$32,17,FALSE) -> 0 | D16: 0 | E16: 0 | F16: 0
A17: 16 | B17: =HLOOKUP($H$1,명렬전체!$B$1:$K$32,18,FALSE) -> 0 | D17: 0 | E17: 0 | F17: 0
A18: 17 | B18: =HLOOKUP($H$1,명렬전체!$B$1:$K$32,19,FALSE) -> 0 | D18: 0 | E18: 0 | F18: 0
A19: 18 | B19: =HLOOKUP($H$1,명렬전체!$B$1:$K$32,20,FALSE) -> 0 | D19: 0 | E19: 0 | F19: 0
A20: 19 | B20: =HLOOKUP($H$1,명렬전체!$B$1:$K$32,21,FALSE) -> 0 | D20: 0 | E20: 0 | F20: 0
A21: 20 | B21: =HLOOKUP($H$1,명렬전체!$B$1:$K$32,22,FALSE) -> 0 | D21: 0 | E21: 0 | F21: 0
A22: 21 | B22: =HLOOKUP($H$1,명렬전체!$B$1:$K$32,23,FALSE) -> 0 | D22: 0 | E22: 0 | F22: 0
A23: 22 | B23: =HLOOKUP($H$1,명렬전체!$B$1:$K$32,24,FALSE) -> 0 | D23: 0 | E23: 0 | F23: 0
A24: 23 | B24: =HLOOKUP($H$1,명렬전체!$B$1:$K$32,25,FALSE) -> 0 | D24: 0 | E24: 0 | F24: 0
A25: 24 | B25: =HLOOKUP($H$1,명렬전체!$B$1:$K$32,26,FALSE) -> 0 | D25: 0 | E25: 0 | F25: 0
A26: 25 | B26: =HLOOKUP($H$1,명렬전체!$B$1:$K$32,27,FALSE) -> 0 | D26: 0 | E26: 0 | F26: 0
A27: 26 | B27: =HLOOKUP($H$1,명렬전체!$B$1:$K$32,28,FALSE) -> 0 | D27: 0 | E27: 0 | F27: 0
A28: 27 | B28: =HLOOKUP($H$1,명렬전체!$B$1:$K$32,29,FALSE) -> 0 | D28: 0 | E28: 0 | F28: 0
A29: 28 | B29: =HLOOKUP($H$1,명렬전체!$B$1:$K$32,30,FALSE) -> 0 | D29: 0 | E29: 0 | F29: 0
A30: 29 | B30: =HLOOKUP($H$1,명렬전체!$B$1:$K$32,31,FALSE) -> 0 | D30: 0 | E30: 0 | F30: 0
A31: 30 | B31: =HLOOKUP($H$1,명렬전체!$B$1:$K$32,32,FALSE) -> 0 | D31: 0 | E31: 0 | F31: 0
A32: 31 | B32: =IFERROR(HLOOKUP($H$1,명렬전체!$B$1:$K$32,33,FALSE),"") ->  | D32: 0 | E32: 0 | F32: 0
A33: 32 | B33: =IFERROR(HLOOKUP($H$1,명렬전체!$B$1:$K$32,34,FALSE),"") ->  | D33: 0 | E33: 0 | F33: 0
A34: 33 | B34: =IFERROR(HLOOKUP($H$1,명렬전체!$B$1:$K$32,35,FALSE),"") ->  | D34: 0 | E34: 0 | F34: 0

Sheet 종합의견
A1: 번호 | B1: 이름 | C1: 종합의견(총 1500 바이트 - 500자) 바이트계산 : 한글 3, 영문숫자 1, 엔터키 2 | D1: 문자열 | E1: 바이트 | F1: 총 바이트 | G1: 반입력 | H1: ='자율(이용안내)'!$H$1 -> 9
A2: 1 | B2: =HLOOKUP($H$1,명렬전체!$B$1:$K$32,3,FALSE) -> 0 | D2: =LEN(C2) -> 0 | E2: =LENB(C2) -> 0 | F2: =((E2-D2)*3+(D2)*2-(E2)) -> 0
A3: =A2+1 -> 2 | B3: =HLOOKUP($H$1,명렬전체!$B$1:$K$32,4,FALSE) -> 0 | D3: =LEN(C3) -> 0 | E3: =LENB(C3) -> 0 | F3: =((E3-D3)*3+(D3)*2-(E3)) -> 0
A4: 3 | B4: =HLOOKUP($H$1,명렬전체!$B$1:$K$32,5,FALSE) -> 0 | D4: 0 | E4: 0 | F4: 0
A5: 4 | B5: =HLOOKUP($H$1,명렬전체!$B$1:$K$32,6,FALSE) -> 0 | D5: 0 | E5: 0 | F5: 0
A6: 5 | B6: =HLOOKUP($H$1,명렬전체!$B$1:$K$32,7,FALSE) -> 0 | D6: 0 | E6: 0 | F6: 0
A7: 6 | B7: =HLOOKUP($H$1,명렬전체!$B$1:$K$32,8,FALSE) -> 0 | D7: 0 | E7: 0 | F7: 0
A8: 7 | B8: =HLOOKUP($H$1,명렬전체!$B$1:$K$32,9,FALSE) -> 0 | D8: 0 | E8: 0 | F8: 0
A9: 8 | B9: =HLOOKUP($H$1,명렬전체!$B$1:$K$32,10,FALSE) -> 0 | D9: 0 | E9: 0 | F9: 0
A10: 9 | B10: =HLOOKUP($H$1,명렬전체!$B$1:$K$32,11,FALSE) -> 0 | D10: 0 | E10: 0 | F10: 0
A11: 10 | B11: =HLOOKUP($H$1,명렬전체!$B$1:$K$32,12,FALSE) -> 0 | D11: 0 | E11: 0 | F11: 0
A12: 11 | B12: =HLOOKUP($H$1,명렬전체!$B$1:$K$32,13,FALSE) -> 0 | D12: 0 | E12: 0 | F12: 0
A13: 12 | B13: =HLOOKUP($H$1,명렬전체!$B$1:$K$32,14,FALSE) -> 0 | D13: 0 | E13: 0 | F13: 0
A14: 13 | B14: =HLOOKUP($H$1,명렬전체!$B$1:$K$32,15,FALSE) -> 0 | D14: 0 | E14: 0 | F14: 0
A15: 14 | B15: =HLOOKUP($H$1,명렬전체!$B$1:$K$32,16,FALSE) -> 0 | D15: 0 | E15: 0 | F15: 0
A16: 15 | B16: =HLOOKUP($H$1,명렬전체!$B$1:$K$32,17,FALSE) -> 0 | D16: 0 | E16: 0 | F16: 0
A17: 16 | B17: =HLOOKUP($H$1,명렬전체!$B$1:$K$32,18,FALSE) -> 0 | D17: 0 | E17: 0 | F17: 0
A18: 17 | B18: =HLOOKUP($H$1,명렬전체!$B$1:$K$32,19,FALSE) -> 0 | D18: 0 | E18: 0 | F18: 0
A19: 18 | B19: =HLOOKUP($H$1,명렬전체!$B$1:$K$32,20,FALSE) -> 0 | D19: 0 | E19: 0 | F19: 0
A20: 19 | B20: =HLOOKUP($H$1,명렬전체!$B$1:$K$32,21,FALSE) -> 0 | D20: 0 | E20: 0 | F20: 0
A21: 20 | B21: =HLOOKUP($H$1,명렬전체!$B$1:$K$32,22,FALSE) -> 0 | D21: 0 | E21: 0 | F21: 0
A22: 21 | B22: =HLOOKUP($H$1,명렬전체!$B$1:$K$32,23,FALSE) -> 0 | D22: 0 | E22: 0 | F22: 0
A23: 22 | B23: =HLOOKUP($H$1,명렬전체!$B$1:$K$32,24,FALSE) -> 0 | D23: 0 | E23: 0 | F23: 0
A24: 23 | B24: =HLOOKUP($H$1,명렬전체!$B$1:$K$32,25,FALSE) -> 0 | D24: 0 | E24: 0 | F24: 0
A25: 24 | B25: =HLOOKUP($H$1,명렬전체!$B$1:$K$32,26,FALSE) -> 0 | D25: 0 | E25: 0 | F25: 0
A26: 25 | B26: =HLOOKUP($H$1,명렬전체!$B$1:$K$32,27,FALSE) -> 0 | D26: 0 | E26: 0 | F26: 0
A27: 26 | B27: =HLOOKUP($H$1,명렬전체!$B$1:$K$32,28,FALSE) -> 0 | D27: 0 | E27: 0 | F27: 0
A28: 27 | B28: =HLOOKUP($H$1,명렬전체!$B$1:$K$32,29,FALSE) -> 0 | D28: 0 | E28: 0 | F28: 0
A29: 28 | B29: =HLOOKUP($H$1,명렬전체!$B$1:$K$32,30,FALSE) -> 0 | D29: 0 | E29: 0 | F29: 0
A30: 29 | B30: =HLOOKUP($H$1,명렬전체!$B$1:$K$32,31,FALSE) -> 0 | D30: 0 | E30: 0 | F30: 0
A31: 30 | B31: =HLOOKUP($H$1,명렬전체!$B$1:$K$32,32,FALSE) -> 0 | D31: 0 | E31: 0 | F31: 0
A32: 31 | B32: =IFERROR(HLOOKUP($H$1,명렬전체!$B$1:$K$32,33,FALSE),"") ->  | D32: 0 | E32: 0 | F32: 0
A33: 32 | B33: =IFERROR(HLOOKUP($H$1,명렬전체!$B$1:$K$32,34,FALSE),"") ->  | D33: 0 | E33: 0 | F33: 0
A34: 33 | B34: =IFERROR(HLOOKUP($H$1,명렬전체!$B$1:$K$32,35,FALSE),"") ->  | D34: 0 | E34: 0 | F34: 0

Sheet 교과세특
A1: 반 | B1: 반 | C1: 반 | D1: 이름 | E1: 과목세특(1500바이트 - 글자수 500자) 한글 3바이트, 영문숫자 1바이트, 엔터키 2바이트 | F1: 1한글수 | G1: 1바이트 | H1: 총 바이트
A2: =10000+B2*100+C2 -> 10101 | B2: 1 | C2: 1 | D2: =IF(A2=10000,"",VLOOKUP(RIGHT(A2,2)+0,명렬전체!$A$2:$K$40,MID(A2,2,2)+1,FALSE)) -> 0 | F2: =LEN(E2) -> 0 | G2: =LENB(E2) -> 0 | H2: =((G2-F2)*3+(F2)*2-(G2)) -> 0
A3: =10000+B3*100+C3 -> 10102 | B3: 1 | C3: 2 | D3: =IF(A3=10000,"",VLOOKUP(RIGHT(A3,2)+0,명렬전체!$A$2:$K$40,MID(A3,2,2)+1,FALSE)) -> 0 | F3: =LEN(E3) -> 0 | G3: =LENB(E3) -> 0 | H3: =((G3-F3)*3+(F3)*2-(G3)) -> 0
A4: 10103 | B4: 1 | C4: 3 | D4: =IF(A4=10000,"",VLOOKUP(RIGHT(A4,2)+0,명렬전체!$A$2:$K$40,MID(A4,2,2)+1,FALSE)) -> 0 | F4: 0 | G4: 0 | H4: 0
A5: 10104 | B5: 1 | C5: 4 | D5: =IF(A5=10000,"",VLOOKUP(RIGHT(A5,2)+0,명렬전체!$A$2:$K$40,MID(A5,2,2)+1,FALSE)) -> 0 | F5: 0 | G5: 0 | H5: 0
A6: 10105 | B6: 1 | C6: 5 | D6: =IF(A6=10000,"",VLOOKUP(RIGHT(A6,2)+0,명렬전체!$A$2:$K$40,MID(A6,2,2)+1,FALSE)) -> 0 | F6: 0 | G6: 0 | H6: 0
A7: 10106 | B7: 1 | C7: 6 | D7: =IF(A7=10000,"",VLOOKUP(RIGHT(A7,2)+0,명렬전체!$A$2:$K$40,MID(A7,2,2)+1,FALSE)) -> 0 | F7: 0 | G7: 0 | H7: 0
A8: 10107 | B8: 1 | C8: 7 | D8: =IF(A8=10000,"",VLOOKUP(RIGHT(A8,2)+0,명렬전체!$A$2:$K$40,MID(A8,2,2)+1,FALSE)) -> 0 | F8: 0 | G8: 0 | H8: 0
A9: 10108 | B9: 1 | C9: 8 | D9: =IF(A9=10000,"",VLOOKUP(RIGHT(A9,2)+0,명렬전체!$A$2:$K$40,MID(A9,2,2)+1,FALSE)) -> 0 | F9: 0 | G9: 0 | H9: 0
A10: 10109 | B10: 1 | C10: 9 | D10: =IF(A10=10000,"",VLOOKUP(RIGHT(A10,2)+0,명렬전체!$A$2:$K$40,MID(A10,2,2)+1,FALSE)) -> 0 | F10: 0 | G10: 0 | H10: 0
A11: 10110 | B11: 1 | C11: 10 | D11: =IF(A11=10000,"",VLOOKUP(RIGHT(A11,2)+0,명렬전체!$A$2:$K$40,MID(A11,2,2)+1,FALSE)) -> 0 | F11: 0 | G11: 0 | H11: 0
A12: 10111 | B12: 1 | C12: 11 | D12: =IF(A12=10000,"",VLOOKUP(RIGHT(A12,2)+0,명렬전체!$A$2:$K$40,MID(A12,2,2)+1,FALSE)) -> 0 | F12: 0 | G12: 0 | H12: 0
A13: 10112 | B13: 1 | C13: 12 | D13: =IF(A13=10000,"",VLOOKUP(RIGHT(A13,2)+0,명렬전체!$A$2:$K$40,MID(A13,2,2)+1,FALSE)) -> 0 | F13: 0 | G13: 0 | H13: 0
A14: 10113 | B14: 1 | C14: 13 | D14: =IF(A14=10000,"",VLOOKUP(RIGHT(A14,2)+0,명렬전체!$A$2:$K$40,MID(A14,2,2)+1,FALSE)) -> 0 | F14: 0 | G14: 0 | H14: 0
A15: 10114 | B15: 1 | C15: 14 | D15: =IF(A15=10000,"",VLOOKUP(RIGHT(A15,2)+0,명렬전체!$A$2:$K$40,MID(A15,2,2)+1,FALSE)) -> 0 | F15: 0 | G15: 0 | H15: 0
A16: 10115 | B16: 1 | C16: 15 | D16: =IF(A16=10000,"",VLOOKUP(RIGHT(A16,2)+0,명렬전체!$A$2:$K$40,MID(A16,2,2)+1,FALSE)) -> 0 | F16: 0 | G16: 0 | H16: 0
A17: 10116 | B17: 1 | C17: 16 | D17: =IF(A17=10000,"",VLOOKUP(RIGHT(A17,2)+0,명렬전체!$A$2:$K$40,MID(A17,2,2)+1,FALSE)) -> 0 | F17: 0 | G17: 0 | H17: 0
A18: 10117 | B18: 1 | C18: 17 | D18: =IF(A18=10000,"",VLOOKUP(RIGHT(A18,2)+0,명렬전체!$A$2:$K$40,MID(A18,2,2)+1,FALSE)) -> 0 | F18: 0 | G18: 0 | H18: 0
A19: 10118 | B19: 1 | C19: 18 | D19: =IF(A19=10000,"",VLOOKUP(RIGHT(A19,2)+0,명렬전체!$A$2:$K$40,MID(A19,2,2)+1,FALSE)) -> 0 | F19: 0 | G19: 0 | H19: 0
A20: 10119 | B20: 1 | C20: 19 | D20: =IF(A20=10000,"",VLOOKUP(RIGHT(A20,2)+0,명렬전체!$A$2:$K$40,MID(A20,2,2)+1,FALSE)) -> 0 | F20: 0 | G20: 0 | H20: 0
A21: 10120 | B21: 1 | C21: 20 | D21: =IF(A21=10000,"",VLOOKUP(RIGHT(A21,2)+0,명렬전체!$A$2:$K$40,MID(A21,2,2)+1,FALSE)) -> 0 | F21: 0 | G21: 0 | H21: 0
A22: 10121 | B22: 1 | C22: 21 | D22: =IF(A22=10000,"",VLOOKUP(RIGHT(A22,2)+0,명렬전체!$A$2:$K$40,MID(A22,2,2)+1,FALSE)) -> 0 | F22: 0 | G22: 0 | H22: 0
A23: 10122 | B23: 1 | C23: 22 | D23: =IF(A23=10000,"",VLOOKUP(RIGHT(A23,2)+0,명렬전체!$A$2:$K$40,MID(A23,2,2)+1,FALSE)) -> 0 | F23: 0 | G23: 0 | H23: 0
A24: 10123 | B24: 1 | C24: 23 | D24: =IF(A24=10000,"",VLOOKUP(RIGHT(A24,2)+0,명렬전체!$A$2:$K$40,MID(A24,2,2)+1,FALSE)) -> 0 | F24: 0 | G24: 0 | H24: 0
A25: 10124 | B25: 1 | C25: 24 | D25: =IF(A25=10000,"",VLOOKUP(RIGHT(A25,2)+0,명렬전체!$A$2:$K$40,MID(A25,2,2)+1,FALSE)) -> 0 | F25: 0 | G25: 0 | H25: 0
A26: 10125 | B26: 1 | C26: 25 | D26: =IF(A26=10000,"",VLOOKUP(RIGHT(A26,2)+0,명렬전체!$A$2:$K$40,MID(A26,2,2)+1,FALSE)) -> 0 | F26: 0 | G26: 0 | H26: 0
A27: 10126 | B27: 1 | C27: 26 | D27: =IF(A27=10000,"",VLOOKUP(RIGHT(A27,2)+0,명렬전체!$A$2:$K$40,MID(A27,2,2)+1,FALSE)) -> 0 | F27: 0 | G27: 0 | H27: 0
A28: 10127 | B28: 1 | C28: 27 | D28: =IF(A28=10000,"",VLOOKUP(RIGHT(A28,2)+0,명렬전체!$A$2:$K$40,MID(A28,2,2)+1,FALSE)) -> 0 | F28: 0 | G28: 0 | H28: 0
A29: 10128 | B29: 1 | C29: 28 | D29: =IF(A29=10000,"",VLOOKUP(RIGHT(A29,2)+0,명렬전체!$A$2:$K$40,MID(A29,2,2)+1,FALSE)) -> 0 | F29: 0 | G29: 0 | H29: 0
A30: 10129 | B30: 1 | C30: 29 | D30: =IF(A30=10000,"",VLOOKUP(RIGHT(A30,2)+0,명렬전체!$A$2:$K$40,MID(A30,2,2)+1,FALSE)) -> 0 | F30: 0 | G30: 0 | H30: 0
A31: 10130 | B31: 1 | C31: 30 | D31: =IF(A31=10000,"",VLOOKUP(RIGHT(A31,2)+0,명렬전체!$A$2:$K$40,MID(A31,2,2)+1,FALSE)) -> 0 | F31: 0 | G31: 0 | H31: 0
A32: 10201 | B32: 2 | C32: 1 | D32: =IF(A32=10000,"",VLOOKUP(RIGHT(A32,2)+0,명렬전체!$A$2:$K$40,MID(A32,2,2)+1,FALSE)) -> 0 | F32: 0 | G32: 0 | H32: 0
A33: 10202 | B33: 2 | C33: 2 | D33: =IF(A33=10000,"",VLOOKUP(RIGHT(A33,2)+0,명렬전체!$A$2:$K$40,MID(A33,2,2)+1,FALSE)) -> 0 | F33: 0 | G33: 0 | H33: 0
A34: 10203 | B34: 2 | C34: 3 | D34: =IF(A34=10000,"",VLOOKUP(RIGHT(A34,2)+0,명렬전체!$A$2:$K$40,MID(A34,2,2)+1,FALSE)) -> 0 | F34: 0 | G34: 0 | H34: 0
A35: 10204 | B35: 2 | C35: 4 | D35: =IF(A35=10000,"",VLOOKUP(RIGHT(A35,2)+0,명렬전체!$A$2:$K$40,MID(A35,2,2)+1,FALSE)) -> 0 | F35: 0 | G35: 0 | H35: 0
A36: 10205 | B36: 2 | C36: 5 | D36: =IF(A36=10000,"",VLOOKUP(RIGHT(A36,2)+0,명렬전체!$A$2:$K$40,MID(A36,2,2)+1,FALSE)) -> 0 | F36: 0 | G36: 0 | H36: 0
A37: 10206 | B37: 2 | C37: 6 | D37: =IF(A37=10000,"",VLOOKUP(RIGHT(A37,2)+0,명렬전체!$A$2:$K$40,MID(A37,2,2)+1,FALSE)) -> 0 | F37: 0 | G37: 0 | H37: 0
A38: 10207 | B38: 2 | C38: 7 | D38: =IF(A38=10000,"",VLOOKUP(RIGHT(A38,2)+0,명렬전체!$A$2:$K$40,MID(A38,2,2)+1,FALSE)) -> 0 | F38: 0 | G38: 0 | H38: 0
A39: 10208 | B39: 2 | C39: 8 | D39: =IF(A39=10000,"",VLOOKUP(RIGHT(A39,2)+0,명렬전체!$A$2:$K$40,MID(A39,2,2)+1,FALSE)) -> 0 | F39: 0 | G39: 0 | H39: 0
A40: 10209 | B40: 2 | C40: 9 | D40: =IF(A40=10000,"",VLOOKUP(RIGHT(A40,2)+0,명렬전체!$A$2:$K$40,MID(A40,2,2)+1,FALSE)) -> 0 | F40: 0 | G40: 0 | H40: 0
A41: 10210 | B41: 2 | C41: 10 | D41: =IF(A41=10000,"",VLOOKUP(RIGHT(A41,2)+0,명렬전체!$A$2:$K$40,MID(A41,2,2)+1,FALSE)) -> 0 | F41: 0 | G41: 0 | H41: 0
A42: 10211 | B42: 2 | C42: 11 | D42: =IF(A42=10000,"",VLOOKUP(RIGHT(A42,2)+0,명렬전체!$A$2:$K$40,MID(A42,2,2)+1,FALSE)) -> 0 | F42: 0 | G42: 0 | H42: 0
A43: 10212 | B43: 2 | C43: 12 | D43: =IF(A43=10000,"",VLOOKUP(RIGHT(A43,2)+0,명렬전체!$A$2:$K$40,MID(A43,2,2)+1,FALSE)) -> 0 | F43: 0 | G43: 0 | H43: 0
A44: 10213 | B44: 2 | C44: 13 | D44: =IF(A44=10000,"",VLOOKUP(RIGHT(A44,2)+0,명렬전체!$A$2:$K$40,MID(A44,2,2)+1,FALSE)) -> 0 | F44: 0 | G44: 0 | H44: 0
A45: 10214 | B45: 2 | C45: 14 | D45: =IF(A45=10000,"",VLOOKUP(RIGHT(A45,2)+0,명렬전체!$A$2:$K$40,MID(A45,2,2)+1,FALSE)) -> 0 | F45: 0 | G45: 0 | H45: 0
A46: 10215 | B46: 2 | C46: 15 | D46: =IF(A46=10000,"",VLOOKUP(RIGHT(A46,2)+0,명렬전체!$A$2:$K$40,MID(A46,2,2)+1,FALSE)) -> 0 | F46: 0 | G46: 0 | H46: 0
A47: 10216 | B47: 2 | C47: 16 | D47: =IF(A47=10000,"",VLOOKUP(RIGHT(A47,2)+0,명렬전체!$A$2:$K$40,MID(A47,2,2)+1,FALSE)) -> 0 | F47: 0 | G47: 0 | H47: 0
A48: 10217 | B48: 2 | C48: 17 | D48: =IF(A48=10000,"",VLOOKUP(RIGHT(A48,2)+0,명렬전체!$A$2:$K$40,MID(A48,2,2)+1,FALSE)) -> 0 | F48: 0 | G48: 0 | H48: 0
A49: 10218 | B49: 2 | C49: 18 | D49: =IF(A49=10000,"",VLOOKUP(RIGHT(A49,2)+0,명렬전체!$A$2:$K$40,MID(A49,2,2)+1,FALSE)) -> 0 | F49: 0 | G49: 0 | H49: 0
A50: 10219 | B50: 2 | C50: 19 | D50: =IF(A50=10000,"",VLOOKUP(RIGHT(A50,2)+0,명렬전체!$A$2:$K$40,MID(A50,2,2)+1,FALSE)) -> 0 | F50: 0 | G50: 0 | H50: 0
A51: 10220 | B51: 2 | C51: 20 | D51: =IF(A51=10000,"",VLOOKUP(RIGHT(A51,2)+0,명렬전체!$A$2:$K$40,MID(A51,2,2)+1,FALSE)) -> 0 | F51: 0 | G51: 0 | H51: 0
A52: 10221 | B52: 2 | C52: 21 | D52: =IF(A52=10000,"",VLOOKUP(RIGHT(A52,2)+0,명렬전체!$A$2:$K$40,MID(A52,2,2)+1,FALSE)) -> 0 | F52: 0 | G52: 0 | H52: 0
A53: 10222 | B53: 2 | C53: 22 | D53: =IF(A53=10000,"",VLOOKUP(RIGHT(A53,2)+0,명렬전체!$A$2:$K$40,MID(A53,2,2)+1,FALSE)) -> 0 | F53: 0 | G53: 0 | H53: 0
A54: 10223 | B54: 2 | C54: 23 | D54: =IF(A54=10000,"",VLOOKUP(RIGHT(A54,2)+0,명렬전체!$A$2:$K$40,MID(A54,2,2)+1,FALSE)) -> 0 | F54: 0 | G54: 0 | H54: 0
A55: 10224 | B55: 2 | C55: 24 | D55: =IF(A55=10000,"",VLOOKUP(RIGHT(A55,2)+0,명렬전체!$A$2:$K$40,MID(A55,2,2)+1,FALSE)) -> 0 | F55: 0 | G55: 0 | H55: 0
A56: 10225 | B56: 2 | C56: 25 | D56: =IF(A56=10000,"",VLOOKUP(RIGHT(A56,2)+0,명렬전체!$A$2:$K$40,MID(A56,2,2)+1,FALSE)) -> 0 | F56: 0 | G56: 0 | H56: 0
A57: 10226 | B57: 2 | C57: 26 | D57: =IF(A57=10000,"",VLOOKUP(RIGHT(A57,2)+0,명렬전체!$A$2:$K$40,MID(A57,2,2)+1,FALSE)) -> 0 | F57: 0 | G57: 0 | H57: 0
A58: 10227 | B58: 2 | C58: 27 | D58: =IF(A58=10000,"",VLOOKUP(RIGHT(A58,2)+0,명렬전체!$A$2:$K$40,MID(A58,2,2)+1,FALSE)) -> 0 | F58: 0 | G58: 0 | H58: 0
A59: 10228 | B59: 2 | C59: 28 | D59: =IF(A59=10000,"",VLOOKUP(RIGHT(A59,2)+0,명렬전체!$A$2:$K$40,MID(A59,2,2)+1,FALSE)) -> 0 | F59: 0 | G59: 0 | H59: 0
A60: 10229 | B60: 2 | C60: 29 | D60: =IF(A60=10000,"",VLOOKUP(RIGHT(A60,2)+0,명렬전체!$A$2:$K$40,MID(A60,2,2)+1,FALSE)) -> 0 | F60: 0 | G60: 0 | H60: 0
A61: 10230 | B61: 2 | C61: 30 | D61: =IF(A61=10000,"",VLOOKUP(RIGHT(A61,2)+0,명렬전체!$A$2:$K$40,MID(A61,2,2)+1,FALSE)) -> 0 | F61: 0 | G61: 0 | H61: 0
A62: 10301 | B62: 3 | C62: 1 | D62: =IF(A62=10000,"",VLOOKUP(RIGHT(A62,2)+0,명렬전체!$A$2:$K$40,MID(A62,2,2)+1,FALSE)) -> 0 | F62: 0 | G62: 0 | H62: 0
A63: 10302 | B63: 3 | C63: 2 | D63: =IF(A63=10000,"",VLOOKUP(RIGHT(A63,2)+0,명렬전체!$A$2:$K$40,MID(A63,2,2)+1,FALSE)) -> 0 | F63: 0 | G63: 0 | H63: 0
A64: 10303 | B64: 3 | C64: 3 | D64: =IF(A64=10000,"",VLOOKUP(RIGHT(A64,2)+0,명렬전체!$A$2:$K$40,MID(A64,2,2)+1,FALSE)) -> 0 | F64: 0 | G64: 0 | H64: 0
A65: 10304 | B65: 3 | C65: 4 | D65: =IF(A65=10000,"",VLOOKUP(RIGHT(A65,2)+0,명렬전체!$A$2:$K$40,MID(A65,2,2)+1,FALSE)) -> 0 | F65: 0 | G65: 0 | H65: 0
A66: 10305 | B66: 3 | C66: 5 | D66: =IF(A66=10000,"",VLOOKUP(RIGHT(A66,2)+0,명렬전체!$A$2:$K$40,MID(A66,2,2)+1,FALSE)) -> 0 | F66: 0 | G66: 0 | H66: 0
A67: =10000+B67*100+C67 -> 10306 | B67: 3 | C67: 6 | D67: =IF(A67=10000,"",VLOOKUP(RIGHT(A67,2)+0,명렬전체!$A$2:$K$40,MID(A67,2,2)+1,FALSE)) -> 0 | F67: =LEN(E67) -> 0 | G67: =LENB(E67) -> 0 | H67: =((G67-F67)*3+(F67)*2-(G67)) -> 0
A68: 10307 | B68: 3 | C68: 7 | D68: =IF(A68=10000,"",VLOOKUP(RIGHT(A68,2)+0,명렬전체!$A$2:$K$40,MID(A68,2,2)+1,FALSE)) -> 0 | F68: 0 | G68: 0 | H68: 0
A69: 10308 | B69: 3 | C69: 8 | D69: =IF(A69=10000,"",VLOOKUP(RIGHT(A69,2)+0,명렬전체!$A$2:$K$40,MID(A69,2,2)+1,FALSE)) -> 0 | F69: 0 | G69: 0 | H69: 0
A70: 10309 | B70: 3 | C70: 9 | D70: =IF(A70=10000,"",VLOOKUP(RIGHT(A70,2)+0,명렬전체!$A$2:$K$40,MID(A70,2,2)+1,FALSE)) -> 0 | F70: 0 | G70: 0 | H70: 0
A71: 10310 | B71: 3 | C71: 10 | D71: =IF(A71=10000,"",VLOOKUP(RIGHT(A71,2)+0,명렬전체!$A$2:$K$40,MID(A71,2,2)+1,FALSE)) -> 0 | F71: 0 | G71: 0 | H71: 0
A72: 10311 | B72: 3 | C72: 11 | D72: =IF(A72=10000,"",VLOOKUP(RIGHT(A72,2)+0,명렬전체!$A$2:$K$40,MID(A72,2,2)+1,FALSE)) -> 0 | F72: 0 | G72: 0 | H72: 0
A73: 10312 | B73: 3 | C73: 12 | D73: =IF(A73=10000,"",VLOOKUP(RIGHT(A73,2)+0,명렬전체!$A$2:$K$40,MID(A73,2,2)+1,FALSE)) -> 0 | F73: 0 | G73: 0 | H73: 0
A74: 10313 | B74: 3 | C74: 13 | D74: =IF(A74=10000,"",VLOOKUP(RIGHT(A74,2)+0,명렬전체!$A$2:$K$40,MID(A74,2,2)+1,FALSE)) -> 0 | F74: 0 | G74: 0 | H74: 0
A75: 10314 | B75: 3 | C75: 14 | D75: =IF(A75=10000,"",VLOOKUP(RIGHT(A75,2)+0,명렬전체!$A$2:$K$40,MID(A75,2,2)+1,FALSE)) -> 0 | F75: 0 | G75: 0 | H75: 0
A76: 10315 | B76: 3 | C76: 15 | D76: =IF(A76=10000,"",VLOOKUP(RIGHT(A76,2)+0,명렬전체!$A$2:$K$40,MID(A76,2,2)+1,FALSE)) -> 0 | F76: 0 | G76: 0 | H76: 0
A77: 10316 | B77: 3 | C77: 16 | D77: =IF(A77=10000,"",VLOOKUP(RIGHT(A77,2)+0,명렬전체!$A$2:$K$40,MID(A77,2,2)+1,FALSE)) -> 0 | F77: 0 | G77: 0 | H77: 0
A78: 10317 | B78: 3 | C78: 17 | D78: =IF(A78=10000,"",VLOOKUP(RIGHT(A78,2)+0,명렬전체!$A$2:$K$40,MID(A78,2,2)+1,FALSE)) -> 0 | F78: 0 | G78: 0 | H78: 0
A79: 10318 | B79: 3 | C79: 18 | D79: =IF(A79=10000,"",VLOOKUP(RIGHT(A79,2)+0,명렬전체!$A$2:$K$40,MID(A79,2,2)+1,FALSE)) -> 0 | F79: 0 | G79: 0 | H79: 0
A80: 10319 | B80: 3 | C80: 19 | D80: =IF(A80=10000,"",VLOOKUP(RIGHT(A80,2)+0,명렬전체!$A$2:$K$40,MID(A80,2,2)+1,FALSE)) -> 0 | F80: 0 | G80: 0 | H80: 0
A81: 10320 | B81: 3 | C81: 20 | D81: =IF(A81=10000,"",VLOOKUP(RIGHT(A81,2)+0,명렬전체!$A$2:$K$40,MID(A81,2,2)+1,FALSE)) -> 0 | F81: 0 | G81: 0 | H81: 0
A82: 10321 | B82: 3 | C82: 21 | D82: =IF(A82=10000,"",VLOOKUP(RIGHT(A82,2)+0,명렬전체!$A$2:$K$40,MID(A82,2,2)+1,FALSE)) -> 0 | F82: 0 | G82: 0 | H82: 0
A83: 10322 | B83: 3 | C83: 22 | D83: =IF(A83=10000,"",VLOOKUP(RIGHT(A83,2)+0,명렬전체!$A$2:$K$40,MID(A83,2,2)+1,FALSE)) -> 0 | F83: 0 | G83: 0 | H83: 0
A84: 10323 | B84: 3 | C84: 23 | D84: =IF(A84=10000,"",VLOOKUP(RIGHT(A84,2)+0,명렬전체!$A$2:$K$40,MID(A84,2,2)+1,FALSE)) -> 0 | F84: 0 | G84: 0 | H84: 0
A85: 10324 | B85: 3 | C85: 24 | D85: =IF(A85=10000,"",VLOOKUP(RIGHT(A85,2)+0,명렬전체!$A$2:$K$40,MID(A85,2,2)+1,FALSE)) -> 0 | F85: 0 | G85: 0 | H85: 0
A86: 10325 | B86: 3 | C86: 25 | D86: =IF(A86=10000,"",VLOOKUP(RIGHT(A86,2)+0,명렬전체!$A$2:$K$40,MID(A86,2,2)+1,FALSE)) -> 0 | F86: 0 | G86: 0 | H86: 0
A87: 10326 | B87: 3 | C87: 26 | D87: =IF(A87=10000,"",VLOOKUP(RIGHT(A87,2)+0,명렬전체!$A$2:$K$40,MID(A87,2,2)+1,FALSE)) -> 0 | F87: 0 | G87: 0 | H87: 0
A88: 10327 | B88: 3 | C88: 27 | D88: =IF(A88=10000,"",VLOOKUP(RIGHT(A88,2)+0,명렬전체!$A$2:$K$40,MID(A88,2,2)+1,FALSE)) -> 0 | F88: 0 | G88: 0 | H88: 0
A89: 10328 | B89: 3 | C89: 28 | D89: =IF(A89=10000,"",VLOOKUP(RIGHT(A89,2)+0,명렬전체!$A$2:$K$40,MID(A89,2,2)+1,FALSE)) -> 0 | F89: 0 | G89: 0 | H89: 0
A90: 10329 | B90: 3 | C90: 29 | D90: =IF(A90=10000,"",VLOOKUP(RIGHT(A90,2)+0,명렬전체!$A$2:$K$40,MID(A90,2,2)+1,FALSE)) -> 0 | F90: 0 | G90: 0 | H90: 0
A91: =10000+B91*100+C91 -> 10330 | B91: 3 | C91: 30 | D91: =IF(A91=10000,"",VLOOKUP(RIGHT(A91,2)+0,명렬전체!$A$2:$K$40,MID(A91,2,2)+1,FALSE)) -> 0 | F91: =LEN(E91) -> 0 | G91: =LENB(E91) -> 0 | H91: =((G91-F91)*3+(F91)*2-(G91)) -> 0
A92: 10401 | B92: 4 | C92: 1 | D92: =IF(A92=10000,"",VLOOKUP(RIGHT(A92,2)+0,명렬전체!$A$2:$K$40,MID(A92,2,2)+1,FALSE)) -> 0 | F92: 0 | G92: 0 | H92: 0
A93: 10402 | B93: 4 | C93: 2 | D93: =IF(A93=10000,"",VLOOKUP(RIGHT(A93,2)+0,명렬전체!$A$2:$K$40,MID(A93,2,2)+1,FALSE)) -> 0 | F93: 0 | G93: 0 | H93: 0
A94: 10403 | B94: 4 | C94: 3 | D94: =IF(A94=10000,"",VLOOKUP(RIGHT(A94,2)+0,명렬전체!$A$2:$K$40,MID(A94,2,2)+1,FALSE)) -> 0 | F94: 0 | G94: 0 | H94: 0
A95: 10404 | B95: 4 | C95: 4 | D95: =IF(A95=10000,"",VLOOKUP(RIGHT(A95,2)+0,명렬전체!$A$2:$K$40,MID(A95,2,2)+1,FALSE)) -> 0 | F95: 0 | G95: 0 | H95: 0
A96: 10405 | B96: 4 | C96: 5 | D96: =IF(A96=10000,"",VLOOKUP(RIGHT(A96,2)+0,명렬전체!$A$2:$K$40,MID(A96,2,2)+1,FALSE)) -> 0 | F96: 0 | G96: 0 | H96: 0
A97: 10406 | B97: 4 | C97: 6 | D97: =IF(A97=10000,"",VLOOKUP(RIGHT(A97,2)+0,명렬전체!$A$2:$K$40,MID(A97,2,2)+1,FALSE)) -> 0 | F97: 0 | G97: 0 | H97: 0
A98: 10407 | B98: 4 | C98: 7 | D98: =IF(A98=10000,"",VLOOKUP(RIGHT(A98,2)+0,명렬전체!$A$2:$K$40,MID(A98,2,2)+1,FALSE)) -> 0 | F98: 0 | G98: 0 | H98: 0
A99: 10408 | B99: 4 | C99: 8 | D99: =IF(A99=10000,"",VLOOKUP(RIGHT(A99,2)+0,명렬전체!$A$2:$K$40,MID(A99,2,2)+1,FALSE)) -> 0 | F99: 0 | G99: 0 | H99: 0
A100: 10409 | B100: 4 | C100: 9 | D100: =IF(A100=10000,"",VLOOKUP(RIGHT(A100,2)+0,명렬전체!$A$2:$K$40,MID(A100,2,2)+1,FALSE)) -> 0 | F100: 0 | G100: 0 | H100: 0
A101: 10410 | B101: 4 | C101: 10 | D101: =IF(A101=10000,"",VLOOKUP(RIGHT(A101,2)+0,명렬전체!$A$2:$K$40,MID(A101,2,2)+1,FALSE)) -> 0 | F101: 0 | G101: 0 | H101: 0
A102: 10411 | B102: 4 | C102: 11 | D102: =IF(A102=10000,"",VLOOKUP(RIGHT(A102,2)+0,명렬전체!$A$2:$K$40,MID(A102,2,2)+1,FALSE)) -> 0 | F102: 0 | G102: 0 | H102: 0
A103: 10412 | B103: 4 | C103: 12 | D103: =IF(A103=10000,"",VLOOKUP(RIGHT(A103,2)+0,명렬전체!$A$2:$K$40,MID(A103,2,2)+1,FALSE)) -> 0 | F103: 0 | G103: 0 | H103: 0
A104: 10413 | B104: 4 | C104: 13 | D104: =IF(A104=10000,"",VLOOKUP(RIGHT(A104,2)+0,명렬전체!$A$2:$K$40,MID(A104,2,2)+1,FALSE)) -> 0 | F104: 0 | G104: 0 | H104: 0
A105: 10414 | B105: 4 | C105: 14 | D105: =IF(A105=10000,"",VLOOKUP(RIGHT(A105,2)+0,명렬전체!$A$2:$K$40,MID(A105,2,2)+1,FALSE)) -> 0 | F105: 0 | G105: 0 | H105: 0
A106: 10415 | B106: 4 | C106: 15 | D106: =IF(A106=10000,"",VLOOKUP(RIGHT(A106,2)+0,명렬전체!$A$2:$K$40,MID(A106,2,2)+1,FALSE)) -> 0 | F106: 0 | G106: 0 | H106: 0
A107: 10416 | B107: 4 | C107: 16 | D107: =IF(A107=10000,"",VLOOKUP(RIGHT(A107,2)+0,명렬전체!$A$2:$K$40,MID(A107,2,2)+1,FALSE)) -> 0 | F107: 0 | G107: 0 | H107: 0
A108: 10417 | B108: 4 | C108: 17 | D108: =IF(A108=10000,"",VLOOKUP(RIGHT(A108,2)+0,명렬전체!$A$2:$K$40,MID(A108,2,2)+1,FALSE)) -> 0 | F108: 0 | G108: 0 | H108: 0
A109: 10418 | B109: 4 | C109: 18 | D109: =IF(A109=10000,"",VLOOKUP(RIGHT(A109,2)+0,명렬전체!$A$2:$K$40,MID(A109,2,2)+1,FALSE)) -> 0 | F109: 0 | G109: 0 | H109: 0
A110: 10419 | B110: 4 | C110: 19 | D110: =IF(A110=10000,"",VLOOKUP(RIGHT(A110,2)+0,명렬전체!$A$2:$K$40,MID(A110,2,2)+1,FALSE)) -> 0 | F110: 0 | G110: 0 | H110: 0
A111: 10420 | B111: 4 | C111: 20 | D111: =IF(A111=10000,"",VLOOKUP(RIGHT(A111,2)+0,명렬전체!$A$2:$K$40,MID(A111,2,2)+1,FALSE)) -> 0 | F111: 0 | G111: 0 | H111: 0
A112: 10421 | B112: 4 | C112: 21 | D112: =IF(A112=10000,"",VLOOKUP(RIGHT(A112,2)+0,명렬전체!$A$2:$K$40,MID(A112,2,2)+1,FALSE)) -> 0 | F112: 0 | G112: 0 | H112: 0
A113: 10422 | B113: 4 | C113: 22 | D113: =IF(A113=10000,"",VLOOKUP(RIGHT(A113,2)+0,명렬전체!$A$2:$K$40,MID(A113,2,2)+1,FALSE)) -> 0 | F113: 0 | G113: 0 | H113: 0
A114: 10423 | B114: 4 | C114: 23 | D114: =IF(A114=10000,"",VLOOKUP(RIGHT(A114,2)+0,명렬전체!$A$2:$K$40,MID(A114,2,2)+1,FALSE)) -> 0 | F114: 0 | G114: 0 | H114: 0
A115: 10424 | B115: 4 | C115: 24 | D115: =IF(A115=10000,"",VLOOKUP(RIGHT(A115,2)+0,명렬전체!$A$2:$K$40,MID(A115,2,2)+1,FALSE)) -> 0 | F115: 0 | G115: 0 | H115: 0
A116: 10425 | B116: 4 | C116: 25 | D116: =IF(A116=10000,"",VLOOKUP(RIGHT(A116,2)+0,명렬전체!$A$2:$K$40,MID(A116,2,2)+1,FALSE)) -> 0 | F116: 0 | G116: 0 | H116: 0
A117: 10426 | B117: 4 | C117: 26 | D117: =IF(A117=10000,"",VLOOKUP(RIGHT(A117,2)+0,명렬전체!$A$2:$K$40,MID(A117,2,2)+1,FALSE)) -> 0 | F117: 0 | G117: 0 | H117: 0
A118: 10427 | B118: 4 | C118: 27 | D118: =IF(A118=10000,"",VLOOKUP(RIGHT(A118,2)+0,명렬전체!$A$2:$K$40,MID(A118,2,2)+1,FALSE)) -> 0 | F118: 0 | G118: 0 | H118: 0
A119: 10428 | B119: 4 | C119: 28 | D119: =IF(A119=10000,"",VLOOKUP(RIGHT(A119,2)+0,명렬전체!$A$2:$K$40,MID(A119,2,2)+1,FALSE)) -> 0 | F119: 0 | G119: 0 | H119: 0
A120: 10429 | B120: 4 | C120: 29 | D120: =IF(A120=10000,"",VLOOKUP(RIGHT(A120,2)+0,명렬전체!$A$2:$K$40,MID(A120,2,2)+1,FALSE)) -> 0 | F120: 0 | G120: 0 | H120: 0
A121: 10430 | B121: 4 | C121: 30 | D121: =IF(A121=10000,"",VLOOKUP(RIGHT(A121,2)+0,명렬전체!$A$2:$K$40,MID(A121,2,2)+1,FALSE)) -> 0 | F121: 0 | G121: 0 | H121: 0
A122: 10501 | B122: 5 | C122: 1 | D122: =IF(A122=10000,"",VLOOKUP(RIGHT(A122,2)+0,명렬전체!$A$2:$K$40,MID(A122,2,2)+1,FALSE)) -> 0 | F122: 0 | G122: 0 | H122: 0
A123: 10502 | B123: 5 | C123: 2 | D123: =IF(A123=10000,"",VLOOKUP(RIGHT(A123,2)+0,명렬전체!$A$2:$K$40,MID(A123,2,2)+1,FALSE)) -> 0 | F123: 0 | G123: 0 | H123: 0
A124: 10503 | B124: 5 | C124: 3 | D124: =IF(A124=10000,"",VLOOKUP(RIGHT(A124,2)+0,명렬전체!$A$2:$K$40,MID(A124,2,2)+1,FALSE)) -> 0 | F124: 0 | G124: 0 | H124: 0
A125: 10504 | B125: 5 | C125: 4 | D125: =IF(A125=10000,"",VLOOKUP(RIGHT(A125,2)+0,명렬전체!$A$2:$K$40,MID(A125,2,2)+1,FALSE)) -> 0 | F125: 0 | G125: 0 | H125: 0
A126: 10505 | B126: 5 | C126: 5 | D126: =IF(A126=10000,"",VLOOKUP(RIGHT(A126,2)+0,명렬전체!$A$2:$K$40,MID(A126,2,2)+1,FALSE)) -> 0 | F126: 0 | G126: 0 | H126: 0
A127: 10506 | B127: 5 | C127: 6 | D127: =IF(A127=10000,"",VLOOKUP(RIGHT(A127,2)+0,명렬전체!$A$2:$K$40,MID(A127,2,2)+1,FALSE)) -> 0 | F127: 0 | G127: 0 | H127: 0
A128: 10507 | B128: 5 | C128: 7 | D128: =IF(A128=10000,"",VLOOKUP(RIGHT(A128,2)+0,명렬전체!$A$2:$K$40,MID(A128,2,2)+1,FALSE)) -> 0 | F128: 0 | G128: 0 | H128: 0
A129: 10508 | B129: 5 | C129: 8 | D129: =IF(A129=10000,"",VLOOKUP(RIGHT(A129,2)+0,명렬전체!$A$2:$K$40,MID(A129,2,2)+1,FALSE)) -> 0 | F129: 0 | G129: 0 | H129: 0
A130: 10509 | B130: 5 | C130: 9 | D130: =IF(A130=10000,"",VLOOKUP(RIGHT(A130,2)+0,명렬전체!$A$2:$K$40,MID(A130,2,2)+1,FALSE)) -> 0 | F130: 0 | G130: 0 | H130: 0
A131: 10510 | B131: 5 | C131: 10 | D131: =IF(A131=10000,"",VLOOKUP(RIGHT(A131,2)+0,명렬전체!$A$2:$K$40,MID(A131,2,2)+1,FALSE)) -> 0 | F131: 0 | G131: 0 | H131: 0
A132: =10000+B132*100+C132 -> 10511 | B132: 5 | C132: 11 | D132: =IF(A132=10000,"",VLOOKUP(RIGHT(A132,2)+0,명렬전체!$A$2:$K$40,MID(A132,2,2)+1,FALSE)) -> 0 | F132: =LEN(E132) -> 0 | G132: =LENB(E132) -> 0 | H132: =((G132-F132)*3+(F132)*2-(G132)) -> 0
A133: 10512 | B133: 5 | C133: 12 | D133: =IF(A133=10000,"",VLOOKUP(RIGHT(A133,2)+0,명렬전체!$A$2:$K$40,MID(A133,2,2)+1,FALSE)) -> 0 | F133: 0 | G133: 0 | H133: 0
A134: 10513 | B134: 5 | C134: 13 | D134: =IF(A134=10000,"",VLOOKUP(RIGHT(A134,2)+0,명렬전체!$A$2:$K$40,MID(A134,2,2)+1,FALSE)) -> 0 | F134: 0 | G134: 0 | H134: 0
A135: 10514 | B135: 5 | C135: 14 | D135: =IF(A135=10000,"",VLOOKUP(RIGHT(A135,2)+0,명렬전체!$A$2:$K$40,MID(A135,2,2)+1,FALSE)) -> 0 | F135: 0 | G135: 0 | H135: 0
A136: 10515 | B136: 5 | C136: 15 | D136: =IF(A136=10000,"",VLOOKUP(RIGHT(A136,2)+0,명렬전체!$A$2:$K$40,MID(A136,2,2)+1,FALSE)) -> 0 | F136: 0 | G136: 0 | H136: 0
A137: 10516 | B137: 5 | C137: 16 | D137: =IF(A137=10000,"",VLOOKUP(RIGHT(A137,2)+0,명렬전체!$A$2:$K$40,MID(A137,2,2)+1,FALSE)) -> 0 | F137: 0 | G137: 0 | H137: 0
A138: 10517 | B138: 5 | C138: 17 | D138: =IF(A138=10000,"",VLOOKUP(RIGHT(A138,2)+0,명렬전체!$A$2:$K$40,MID(A138,2,2)+1,FALSE)) -> 0 | F138: 0 | G138: 0 | H138: 0
A139: 10518 | B139: 5 | C139: 18 | D139: =IF(A139=10000,"",VLOOKUP(RIGHT(A139,2)+0,명렬전체!$A$2:$K$40,MID(A139,2,2)+1,FALSE)) -> 0 | F139: 0 | G139: 0 | H139: 0
A140: 10519 | B140: 5 | C140: 19 | D140: =IF(A140=10000,"",VLOOKUP(RIGHT(A140,2)+0,명렬전체!$A$2:$K$40,MID(A140,2,2)+1,FALSE)) -> 0 | F140: 0 | G140: 0 | H140: 0
A141: 10520 | B141: 5 | C141: 20 | D141: =IF(A141=10000,"",VLOOKUP(RIGHT(A141,2)+0,명렬전체!$A$2:$K$40,MID(A141,2,2)+1,FALSE)) -> 0 | F141: 0 | G141: 0 | H141: 0
A142: 10521 | B142: 5 | C142: 21 | D142: =IF(A142=10000,"",VLOOKUP(RIGHT(A142,2)+0,명렬전체!$A$2:$K$40,MID(A142,2,2)+1,FALSE)) -> 0 | F142: 0 | G142: 0 | H142: 0
A143: 10522 | B143: 5 | C143: 22 | D143: =IF(A143=10000,"",VLOOKUP(RIGHT(A143,2)+0,명렬전체!$A$2:$K$40,MID(A143,2,2)+1,FALSE)) -> 0 | F143: 0 | G143: 0 | H143: 0
A144: 10523 | B144: 5 | C144: 23 | D144: =IF(A144=10000,"",VLOOKUP(RIGHT(A144,2)+0,명렬전체!$A$2:$K$40,MID(A144,2,2)+1,FALSE)) -> 0 | F144: 0 | G144: 0 | H144: 0
A145: 10524 | B145: 5 | C145: 24 | D145: =IF(A145=10000,"",VLOOKUP(RIGHT(A145,2)+0,명렬전체!$A$2:$K$40,MID(A145,2,2)+1,FALSE)) -> 0 | F145: 0 | G145: 0 | H145: 0
A146: 10525 | B146: 5 | C146: 25 | D146: =IF(A146=10000,"",VLOOKUP(RIGHT(A146,2)+0,명렬전체!$A$2:$K$40,MID(A146,2,2)+1,FALSE)) -> 0 | F146: 0 | G146: 0 | H146: 0
A147: 10526 | B147: 5 | C147: 26 | D147: =IF(A147=10000,"",VLOOKUP(RIGHT(A147,2)+0,명렬전체!$A$2:$K$40,MID(A147,2,2)+1,FALSE)) -> 0 | F147: 0 | G147: 0 | H147: 0
A148: 10527 | B148: 5 | C148: 27 | D148: =IF(A148=10000,"",VLOOKUP(RIGHT(A148,2)+0,명렬전체!$A$2:$K$40,MID(A148,2,2)+1,FALSE)) -> 0 | F148: 0 | G148: 0 | H148: 0
A149: 10528 | B149: 5 | C149: 28 | D149: =IF(A149=10000,"",VLOOKUP(RIGHT(A149,2)+0,명렬전체!$A$2:$K$40,MID(A149,2,2)+1,FALSE)) -> 0 | F149: 0 | G149: 0 | H149: 0
A150: =10000+B150*100+C150 -> 10529 | B150: 5 | C150: 29 | D150: =IF(A150=10000,"",VLOOKUP(RIGHT(A150,2)+0,명렬전체!$A$2:$K$40,MID(A150,2,2)+1,FALSE)) -> 0
A151: 10530 | B151: 5 | C151: 30 | D151: =IF(A151=10000,"",VLOOKUP(RIGHT(A151,2)+0,명렬전체!$A$2:$K$40,MID(A151,2,2)+1,FALSE)) -> 0 | F151: 0 | G151: 0 | H151: 0
A152: 10601 | B152: 6 | C152: 1 | D152: =IF(A152=10000,"",VLOOKUP(RIGHT(A152,2)+0,명렬전체!$A$2:$K$40,MID(A152,2,2)+1,FALSE)) -> 0 | F152: 0 | G152: 0 | H152: 0
A153: 10602 | B153: 6 | C153: 2 | D153: =IF(A153=10000,"",VLOOKUP(RIGHT(A153,2)+0,명렬전체!$A$2:$K$40,MID(A153,2,2)+1,FALSE)) -> 0 | F153: 0 | G153: 0 | H153: 0
A154: 10603 | B154: 6 | C154: 3 | D154: =IF(A154=10000,"",VLOOKUP(RIGHT(A154,2)+0,명렬전체!$A$2:$K$40,MID(A154,2,2)+1,FALSE)) -> 0 | F154: 0 | G154: 0 | H154: 0
A155: 10604 | B155: 6 | C155: 4 | D155: =IF(A155=10000,"",VLOOKUP(RIGHT(A155,2)+0,명렬전체!$A$2:$K$40,MID(A155,2,2)+1,FALSE)) -> 0 | F155: 0 | G155: 0 | H155: 0
A156: 10605 | B156: 6 | C156: 5 | D156: =IF(A156=10000,"",VLOOKUP(RIGHT(A156,2)+0,명렬전체!$A$2:$K$40,MID(A156,2,2)+1,FALSE)) -> 0 | F156: 0 | G156: 0 | H156: 0
A157: 10606 | B157: 6 | C157: 6 | D157: =IF(A157=10000,"",VLOOKUP(RIGHT(A157,2)+0,명렬전체!$A$2:$K$40,MID(A157,2,2)+1,FALSE)) -> 0 | F157: 0 | G157: 0 | H157: 0
A158: 10607 | B158: 6 | C158: 7 | D158: =IF(A158=10000,"",VLOOKUP(RIGHT(A158,2)+0,명렬전체!$A$2:$K$40,MID(A158,2,2)+1,FALSE)) -> 0 | F158: 0 | G158: 0 | H158: 0
A159: 10608 | B159: 6 | C159: 8 | D159: =IF(A159=10000,"",VLOOKUP(RIGHT(A159,2)+0,명렬전체!$A$2:$K$40,MID(A159,2,2)+1,FALSE)) -> 0 | F159: 0 | G159: 0 | H159: 0
A160: 10609 | B160: 6 | C160: 9 | D160: =IF(A160=10000,"",VLOOKUP(RIGHT(A160,2)+0,명렬전체!$A$2:$K$40,MID(A160,2,2)+1,FALSE)) -> 0 | F160: 0 | G160: 0 | H160: 0
A161: 10610 | B161: 6 | C161: 10 | D161: =IF(A161=10000,"",VLOOKUP(RIGHT(A161,2)+0,명렬전체!$A$2:$K$40,MID(A161,2,2)+1,FALSE)) -> 0 | F161: 0 | G161: 0 | H161: 0
A162: 10611 | B162: 6 | C162: 11 | D162: =IF(A162=10000,"",VLOOKUP(RIGHT(A162,2)+0,명렬전체!$A$2:$K$40,MID(A162,2,2)+1,FALSE)) -> 0 | F162: 0 | G162: 0 | H162: 0
A163: 10612 | B163: 6 | C163: 12 | D163: =IF(A163=10000,"",VLOOKUP(RIGHT(A163,2)+0,명렬전체!$A$2:$K$40,MID(A163,2,2)+1,FALSE)) -> 0 | F163: 0 | G163: 0 | H163: 0
A164: 10613 | B164: 6 | C164: 13 | D164: =IF(A164=10000,"",VLOOKUP(RIGHT(A164,2)+0,명렬전체!$A$2:$K$40,MID(A164,2,2)+1,FALSE)) -> 0 | F164: 0 | G164: 0 | H164: 0
A165: 10614 | B165: 6 | C165: 14 | D165: =IF(A165=10000,"",VLOOKUP(RIGHT(A165,2)+0,명렬전체!$A$2:$K$40,MID(A165,2,2)+1,FALSE)) -> 0 | F165: 0 | G165: 0 | H165: 0
A166: 10615 | B166: 6 | C166: 15 | D166: =IF(A166=10000,"",VLOOKUP(RIGHT(A166,2)+0,명렬전체!$A$2:$K$40,MID(A166,2,2)+1,FALSE)) -> 0 | F166: 0 | G166: 0 | H166: 0
A167: 10616 | B167: 6 | C167: 16 | D167: =IF(A167=10000,"",VLOOKUP(RIGHT(A167,2)+0,명렬전체!$A$2:$K$40,MID(A167,2,2)+1,FALSE)) -> 0 | F167: 0 | G167: 0 | H167: 0
A168: 10617 | B168: 6 | C168: 17 | D168: =IF(A168=10000,"",VLOOKUP(RIGHT(A168,2)+0,명렬전체!$A$2:$K$40,MID(A168,2,2)+1,FALSE)) -> 0 | F168: 0 | G168: 0 | H168: 0
A169: 10618 | B169: 6 | C169: 18 | D169: =IF(A169=10000,"",VLOOKUP(RIGHT(A169,2)+0,명렬전체!$A$2:$K$40,MID(A169,2,2)+1,FALSE)) -> 0 | F169: 0 | G169: 0 | H169: 0
A170: 10619 | B170: 6 | C170: 19 | D170: =IF(A170=10000,"",VLOOKUP(RIGHT(A170,2)+0,명렬전체!$A$2:$K$40,MID(A170,2,2)+1,FALSE)) -> 0 | F170: 0 | G170: 0 | H170: 0
A171: 10620 | B171: 6 | C171: 20 | D171: =IF(A171=10000,"",VLOOKUP(RIGHT(A171,2)+0,명렬전체!$A$2:$K$40,MID(A171,2,2)+1,FALSE)) -> 0 | F171: 0 | G171: 0 | H171: 0
A172: 10621 | B172: 6 | C172: 21 | D172: =IF(A172=10000,"",VLOOKUP(RIGHT(A172,2)+0,명렬전체!$A$2:$K$40,MID(A172,2,2)+1,FALSE)) -> 0 | F172: 0 | G172: 0 | H172: 0
A173: 10622 | B173: 6 | C173: 22 | D173: =IF(A173=10000,"",VLOOKUP(RIGHT(A173,2)+0,명렬전체!$A$2:$K$40,MID(A173,2,2)+1,FALSE)) -> 0 | F173: 0 | G173: 0 | H173: 0
A174: 10623 | B174: 6 | C174: 23 | D174: =IF(A174=10000,"",VLOOKUP(RIGHT(A174,2)+0,명렬전체!$A$2:$K$40,MID(A174,2,2)+1,FALSE)) -> 0 | F174: 0 | G174: 0 | H174: 0
A175: 10624 | B175: 6 | C175: 24 | D175: =IF(A175=10000,"",VLOOKUP(RIGHT(A175,2)+0,명렬전체!$A$2:$K$40,MID(A175,2,2)+1,FALSE)) -> 0 | F175: 0 | G175: 0 | H175: 0
A176: 10625 | B176: 6 | C176: 25 | D176: =IF(A176=10000,"",VLOOKUP(RIGHT(A176,2)+0,명렬전체!$A$2:$K$40,MID(A176,2,2)+1,FALSE)) -> 0 | F176: 0 | G176: 0 | H176: 0
A177: 10626 | B177: 6 | C177: 26 | D177: =IF(A177=10000,"",VLOOKUP(RIGHT(A177,2)+0,명렬전체!$A$2:$K$40,MID(A177,2,2)+1,FALSE)) -> 0 | F177: 0 | G177: 0 | H177: 0
A178: 10627 | B178: 6 | C178: 27 | D178: =IF(A178=10000,"",VLOOKUP(RIGHT(A178,2)+0,명렬전체!$A$2:$K$40,MID(A178,2,2)+1,FALSE)) -> 0 | F178: 0 | G178: 0 | H178: 0
A179: 10628 | B179: 6 | C179: 28 | D179: =IF(A179=10000,"",VLOOKUP(RIGHT(A179,2)+0,명렬전체!$A$2:$K$40,MID(A179,2,2)+1,FALSE)) -> 0 | F179: 0 | G179: 0 | H179: 0
A180: 10629 | B180: 6 | C180: 29 | D180: =IF(A180=10000,"",VLOOKUP(RIGHT(A180,2)+0,명렬전체!$A$2:$K$40,MID(A180,2,2)+1,FALSE)) -> 0 | F180: 0 | G180: 0 | H180: 0
A181: 10630 | B181: 6 | C181: 30 | D181: =IF(A181=10000,"",VLOOKUP(RIGHT(A181,2)+0,명렬전체!$A$2:$K$40,MID(A181,2,2)+1,FALSE)) -> 0 | F181: 0 | G181: 0 | H181: 0
A182: 10701 | B182: 7 | C182: 1 | D182: =IF(A182=10000,"",VLOOKUP(RIGHT(A182,2)+0,명렬전체!$A$2:$K$40,MID(A182,2,2)+1,FALSE)) -> 0 | F182: 0 | G182: 0 | H182: 0
A183: 10702 | B183: 7 | C183: 2 | D183: =IF(A183=10000,"",VLOOKUP(RIGHT(A183,2)+0,명렬전체!$A$2:$K$40,MID(A183,2,2)+1,FALSE)) -> 0 | F183: 0 | G183: 0 | H183: 0
A184: 10703 | B184: 7 | C184: 3 | D184: =IF(A184=10000,"",VLOOKUP(RIGHT(A184,2)+0,명렬전체!$A$2:$K$40,MID(A184,2,2)+1,FALSE)) -> 0 | F184: 0 | G184: 0 | H184: 0
A185: 10704 | B185: 7 | C185: 4 | D185: =IF(A185=10000,"",VLOOKUP(RIGHT(A185,2)+0,명렬전체!$A$2:$K$40,MID(A185,2,2)+1,FALSE)) -> 0 | F185: 0 | G185: 0 | H185: 0
A186: 10705 | B186: 7 | C186: 5 | D186: =IF(A186=10000,"",VLOOKUP(RIGHT(A186,2)+0,명렬전체!$A$2:$K$40,MID(A186,2,2)+1,FALSE)) -> 0 | F186: 0 | G186: 0 | H186: 0
A187: 10706 | B187: 7 | C187: 6 | D187: =IF(A187=10000,"",VLOOKUP(RIGHT(A187,2)+0,명렬전체!$A$2:$K$40,MID(A187,2,2)+1,FALSE)) -> 0 | F187: 0 | G187: 0 | H187: 0
A188: 10707 | B188: 7 | C188: 7 | D188: =IF(A188=10000,"",VLOOKUP(RIGHT(A188,2)+0,명렬전체!$A$2:$K$40,MID(A188,2,2)+1,FALSE)) -> 0 | F188: 0 | G188: 0 | H188: 0
A189: 10708 | B189: 7 | C189: 8 | D189: =IF(A189=10000,"",VLOOKUP(RIGHT(A189,2)+0,명렬전체!$A$2:$K$40,MID(A189,2,2)+1,FALSE)) -> 0 | F189: 0 | G189: 0 | H189: 0
A190: 10709 | B190: 7 | C190: 9 | D190: =IF(A190=10000,"",VLOOKUP(RIGHT(A190,2)+0,명렬전체!$A$2:$K$40,MID(A190,2,2)+1,FALSE)) -> 0 | F190: 0 | G190: 0 | H190: 0
A191: 10710 | B191: 7 | C191: 10 | D191: =IF(A191=10000,"",VLOOKUP(RIGHT(A191,2)+0,명렬전체!$A$2:$K$40,MID(A191,2,2)+1,FALSE)) -> 0 | F191: 0 | G191: 0 | H191: 0
A192: 10711 | B192: 7 | C192: 11 | D192: =IF(A192=10000,"",VLOOKUP(RIGHT(A192,2)+0,명렬전체!$A$2:$K$40,MID(A192,2,2)+1,FALSE)) -> 0 | F192: 0 | G192: 0 | H192: 0
A193: 10712 | B193: 7 | C193: 12 | D193: =IF(A193=10000,"",VLOOKUP(RIGHT(A193,2)+0,명렬전체!$A$2:$K$40,MID(A193,2,2)+1,FALSE)) -> 0 | F193: 0 | G193: 0 | H193: 0
A194: 10713 | B194: 7 | C194: 13 | D194: =IF(A194=10000,"",VLOOKUP(RIGHT(A194,2)+0,명렬전체!$A$2:$K$40,MID(A194,2,2)+1,FALSE)) -> 0 | F194: 0 | G194: 0 | H194: 0
A195: 10714 | B195: 7 | C195: 14 | D195: =IF(A195=10000,"",VLOOKUP(RIGHT(A195,2)+0,명렬전체!$A$2:$K$40,MID(A195,2,2)+1,FALSE)) -> 0 | F195: 0 | G195: 0 | H195: 0
A196: 10715 | B196: 7 | C196: 15 | D196: =IF(A196=10000,"",VLOOKUP(RIGHT(A196,2)+0,명렬전체!$A$2:$K$40,MID(A196,2,2)+1,FALSE)) -> 0 | F196: 0 | G196: 0 | H196: 0
A197: =10000+B197*100+C197 -> 10716 | B197: 7 | C197: 16 | D197: =IF(A197=10000,"",VLOOKUP(RIGHT(A197,2)+0,명렬전체!$A$2:$K$40,MID(A197,2,2)+1,FALSE)) -> 0 | F197: =LEN(E197) -> 0 | G197: =LENB(E197) -> 0 | H197: =((G197-F197)*3+(F197)*2-(G197)) -> 0
A198: 10717 | B198: 7 | C198: 17 | D198: =IF(A198=10000,"",VLOOKUP(RIGHT(A198,2)+0,명렬전체!$A$2:$K$40,MID(A198,2,2)+1,FALSE)) -> 0 | F198: 0 | G198: 0 | H198: 0
A199: 10718 | B199: 7 | C199: 18 | D199: =IF(A199=10000,"",VLOOKUP(RIGHT(A199,2)+0,명렬전체!$A$2:$K$40,MID(A199,2,2)+1,FALSE)) -> 0 | F199: 0 | G199: 0 | H199: 0
A200: 10719 | B200: 7 | C200: 19 | D200: =IF(A200=10000,"",VLOOKUP(RIGHT(A200,2)+0,명렬전체!$A$2:$K$40,MID(A200,2,2)+1,FALSE)) -> 0 | F200: 0 | G200: 0 | H200: 0
... 71 more rows

Sheet 야자출석부(두칸) (hidden)
B1: 2018학년도 | E1: =#REF! ->  | F1: 반 | H1: 자 율 학 습 출 석 부 ( 3월)
B3: 번호 | C3: 일자 성 명 . | D3: 5 | E3: 월 | F3: 6 | G3: 화 | H3: 7 | I3: 수 | J3: 8 | K3: 목 | L3: 9 | M3: 금 | N3: 12 | O3: 월 | P3: 13 | Q3: 화 | R3: 14 | S3: 수 | T3: 15 | U3: 목 | V3: 16 | W3: 금 | X3: 19 | Y3: 월 | Z3: 20 | AA3: 화 | AB3: 21 | AC3: 수 | AD3: 22 | AE3: 목 | AF3: 23 | AG3: 금 | AH3: 비고
B5: 1 | C5: =HLOOKUP($E$1,명렬전체!$B$1:$K$32,3,FALSE) ->  | D5: =IF($AH5="불참","----------",IF(ISERROR(SEARCH("월",$AH5,1)>0),"----------",".")) -> . | E5: . | F5: =IF($AH5="불참","----------",IF(ISERROR(SEARCH("화",$AH5,1)>0),"----------",".")) -> ---------- | G5: ---------- | H5: =IF($AH5="불참","----------",IF(ISERROR(SEARCH("수",$AH5,1)>0),"----------",".")) -> ---------- | I5: ---------- | J5: =IF($AH5="불참","----------",IF(ISERROR(SEARCH("목",$AH5,1)>0),"----------",".")) -> ---------- | K5: =IF($AH5="----------","----------",IF(ISERROR(SEARCH("목",$AH5,1)>0),"----------",".")) -> ---------- | L5: =IF($AH5="불참","----------",IF(ISERROR(SEARCH("금",$AH5,1)>0),"----------",".")) -> ---------- | M5: ---------- | N5: =IF($AH5="불참","----------",IF(ISERROR(SEARCH("월",$AH5,1)>0),"----------",".")) -> . | O5: . | P5: =IF($AH5="불참","----------",IF(ISERROR(SEARCH("화",$AH5,1)>0),"----------",".")) -> ---------- | Q5: ---------- | R5: =IF($AH5="불참","----------",IF(ISERROR(SEARCH("수",$AH5,1)>0),"----------",".")) -> ---------- | S5: ---------- | T5: =IF($AH5="불참","----------",IF(ISERROR(SEARCH("목",$AH5,1)>0),"----------",".")) -> ---------- | U5: ---------- | V5: =IF($AH5="불참","----------",IF(ISERROR(SEARCH("금",$AH5,1)>0),"----------",".")) -> ---------- | W5: ---------- | X5: =IF($AH5="불참","----------",IF(ISERROR(SEARCH("월",$AH5,1)>0),"----------",".")) -> . | Y5: . | Z5: =IF($AH5="불참","----------",IF(ISERROR(SEARCH("화",$AH5,1)>0),"----------",".")) -> ---------- | AA5: ---------- | AB5: =IF($AH5="불참","----------",IF(ISERROR(SEARCH("수",$AH5,1)>0),"----------",".")) -> ---------- | AC5: ---------- | AD5: =IF($AH5="불참","----------",IF(ISERROR(SEARCH("목",$AH5,1)>0),"----------",".")) -> ---------- | AE5: ---------- | AF5: =IF($AH5="불참","----------",IF(ISERROR(SEARCH("금",$AH5,1)>0),"----------",".")) -> ---------- | AG5: ---------- | AH5: 월
A6: =E$1*100+B6 ->  | B6: =B5+1 -> 2 | C6: =HLOOKUP($E$1,명렬전체!$B$1:$K$32,4,FALSE) ->  | D6: ---------- | E6: ---------- | F6: . | G6: . | H6: . | I6: . | J6: ---------- | K6: ---------- | L6: . | M6: . | N6: ---------- | O6: ---------- | P6: . | Q6: . | R6: . | S6: . | T6: ---------- | U6: ---------- | V6: . | W6: . | X6: ---------- | Y6: ---------- | Z6: . | AA6: . | AB6: . | AC6: . | AD6: ---------- | AE6: ---------- | AF6: . | AG6: . | AH6: 화수금
B7: =B6+1 -> 3 | C7: =HLOOKUP($E$1,명렬전체!$B$1:$K$32,5,FALSE) ->  | D7: ---------- | E7: ---------- | F7: ---------- | G7: ---------- | H7: ---------- | I7: ---------- | J7: ---------- | K7: ---------- | L7: ---------- | M7: ---------- | N7: ---------- | O7: ---------- | P7: ---------- | Q7: ---------- | R7: ---------- | S7: ---------- | T7: ---------- | U7: ---------- | V7: ---------- | W7: ---------- | X7: ---------- | Y7: ---------- | Z7: ---------- | AA7: ---------- | AB7: ---------- | AC7: ---------- | AD7: ---------- | AE7: ---------- | AF7: ---------- | AG7: ---------- | AH7: 불참
B8: 4 | C8: =HLOOKUP($E$1,명렬전체!$B$1:$K$32,6,FALSE) ->  | D8: . | E8: . | F8: . | G8: . | H8: ---------- | I8: ---------- | J8: . | K8: . | L8: . | M8: . | N8: . | O8: . | P8: . | Q8: . | R8: ---------- | S8: ---------- | T8: . | U8: . | V8: . | W8: . | X8: . | Y8: . | Z8: . | AA8: . | AB8: ---------- | AC8: ---------- | AD8: . | AE8: . | AF8: . | AG8: . | AH8: 월화목금
B9: 5 | C9: =HLOOKUP($E$1,명렬전체!$B$1:$K$32,7,FALSE) ->  | D9: ---------- | E9: ---------- | F9: ---------- | G9: ---------- | H9: ---------- | I9: ---------- | J9: ---------- | K9: ---------- | L9: ---------- | M9: ---------- | N9: ---------- | O9: ---------- | P9: ---------- | Q9: ---------- | R9: ---------- | S9: ---------- | T9: ---------- | U9: ---------- | V9: ---------- | W9: ---------- | X9: ---------- | Y9: ---------- | Z9: ---------- | AA9: ---------- | AB9: ---------- | AC9: ---------- | AD9: ---------- | AE9: ---------- | AF9: ---------- | AG9: ---------- | AH9: 불참
B10: 6 | C10: =HLOOKUP($E$1,명렬전체!$B$1:$K$32,8,FALSE) ->  | D10: ---------- | E10: ---------- | F10: ---------- | G10: ---------- | H10: ---------- | I10: ---------- | J10: ---------- | K10: ---------- | L10: ---------- | M10: ---------- | N10: ---------- | O10: ---------- | P10: ---------- | Q10: ---------- | R10: ---------- | S10: ---------- | T10: ---------- | U10: ---------- | V10: ---------- | W10: ---------- | X10: ---------- | Y10: ---------- | Z10: ---------- | AA10: ---------- | AB10: ---------- | AC10: ---------- | AD10: ---------- | AE10: ---------- | AF10: ---------- | AG10: ---------- | AH10: 불참
B11: 7 | C11: =HLOOKUP($E$1,명렬전체!$B$1:$K$32,9,FALSE) ->  | D11: ---------- | E11: ---------- | F11: ---------- | G11: ---------- | H11: ---------- | I11: ---------- | J11: ---------- | K11: ---------- | L11: ---------- | M11: ---------- | N11: ---------- | O11: ---------- | P11: ---------- | Q11: ---------- | R11: ---------- | S11: ---------- | T11: ---------- | U11: ---------- | V11: ---------- | W11: ---------- | X11: ---------- | Y11: ---------- | Z11: ---------- | AA11: ---------- | AB11: ---------- | AC11: ---------- | AD11: ---------- | AE11: ---------- | AF11: ---------- | AG11: ---------- | AH11: 불참
B12: 8 | C12: =HLOOKUP($E$1,명렬전체!$B$1:$K$32,10,FALSE) ->  | D12: . | E12: . | F12: . | G12: . | H12: . | I12: . | J12: ---------- | K12: ---------- | L12: ---------- | M12: ---------- | N12: . | O12: . | P12: . | Q12: . | R12: . | S12: . | T12: ---------- | U12: ---------- | V12: ---------- | W12: ---------- | X12: . | Y12: . | Z12: . | AA12: . | AB12: . | AC12: . | AD12: ---------- | AE12: ---------- | AF12: ---------- | AG12: ---------- | AH12: 월화수
B13: 9 | C13: =HLOOKUP($E$1,명렬전체!$B$1:$K$32,11,FALSE) ->  | D13: . | E13: . | F13: . | G13: . | H13: ---------- | I13: ---------- | J13: . | K13: . | L13: . | M13: . | N13: . | O13: . | P13: . | Q13: . | R13: ---------- | S13: ---------- | T13: . | U13: . | V13: . | W13: . | X13: . | Y13: . | Z13: . | AA13: . | AB13: ---------- | AC13: ---------- | AD13: . | AE13: . | AF13: . | AG13: . | AH13: 월화목금
B14: 10 | C14: =HLOOKUP($E$1,명렬전체!$B$1:$K$32,12,FALSE) ->  | D14: . | E14: . | F14: ---------- | G14: ---------- | H14: . | I14: . | J14: ---------- | K14: ---------- | L14: . | M14: . | N14: . | O14: . | P14: ---------- | Q14: ---------- | R14: . | S14: . | T14: ---------- | U14: ---------- | V14: . | W14: . | X14: . | Y14: . | Z14: ---------- | AA14: ---------- | AB14: . | AC14: . | AD14: ---------- | AE14: ---------- | AF14: . | AG14: . | AH14: 월수금
B15: 11 | C15: =HLOOKUP($E$1,명렬전체!$B$1:$K$32,13,FALSE) ->  | D15: ---------- | E15: ---------- | F15: ---------- | G15: ---------- | H15: ---------- | I15: ---------- | J15: ---------- | K15: ---------- | L15: ---------- | M15: ---------- | N15: ---------- | O15: ---------- | P15: ---------- | Q15: ---------- | R15: ---------- | S15: ---------- | T15: ---------- | U15: ---------- | V15: ---------- | W15: ---------- | X15: ---------- | Y15: ---------- | Z15: ---------- | AA15: ---------- | AB15: ---------- | AC15: ---------- | AD15: ---------- | AE15: ---------- | AF15: ---------- | AG15: ---------- | AH15: 불참
B16: 12 | C16: =HLOOKUP($E$1,명렬전체!$B$1:$K$32,14,FALSE) ->  | D16: . | E16: . | F16: ---------- | G16: ---------- | H16: . | I16: . | J16: . | K16: . | L16: ---------- | M16: ---------- | N16: . | O16: . | P16: ---------- | Q16: ---------- | R16: . | S16: . | T16: . | U16: . | V16: ---------- | W16: ---------- | X16: . | Y16: . | Z16: ---------- | AA16: ---------- | AB16: . | AC16: . | AD16: . | AE16: . | AF16: ---------- | AG16: ---------- | AH16: 월수목
B17: 13 | C17: =HLOOKUP($E$1,명렬전체!$B$1:$K$32,15,FALSE) ->  | D17: . | E17: . | F17: . | G17: . | H17: ---------- | I17: ---------- | J17: . | K17: . | L17: ---------- | M17: ---------- | N17: . | O17: . | P17: . | Q17: . | R17: ---------- | S17: ---------- | T17: . | U17: . | V17: ---------- | W17: ---------- | X17: . | Y17: . | Z17: . | AA17: . | AB17: ---------- | AC17: ---------- | AD17: . | AE17: . | AF17: ---------- | AG17: ---------- | AH17: 월화목
B18: 14 | C18: =HLOOKUP($E$1,명렬전체!$B$1:$K$32,16,FALSE) ->  | D18: . | E18: . | F18: ---------- | G18: ---------- | H18: . | I18: . | J18: . | K18: . | L18: ---------- | M18: ---------- | N18: . | O18: . | P18: ---------- | Q18: ---------- | R18: . | S18: . | T18: . | U18: . | V18: ---------- | W18: ---------- | X18: . | Y18: . | Z18: ---------- | AA18: ---------- | AB18: . | AC18: . | AD18: . | AE18: . | AF18: ---------- | AG18: ---------- | AH18: 월수목
B19: 15 | C19: =HLOOKUP($E$1,명렬전체!$B$1:$K$32,17,FALSE) ->  | D19: . | E19: . | F19: ---------- | G19: ---------- | H19: ---------- | I19: ---------- | J19: . | K19: . | L19: . | M19: . | N19: . | O19: . | P19: ---------- | Q19: ---------- | R19: ---------- | S19: ---------- | T19: . | U19: . | V19: . | W19: . | X19: . | Y19: . | Z19: ---------- | AA19: ---------- | AB19: ---------- | AC19: ---------- | AD19: . | AE19: . | AF19: . | AG19: . | AH19: 월목금
B20: 16 | C20: =HLOOKUP($E$1,명렬전체!$B$1:$K$32,18,FALSE) ->  | D20: ---------- | E20: ---------- | F20: ---------- | G20: ---------- | H20: ---------- | I20: ---------- | J20: ---------- | K20: ---------- | L20: ---------- | M20: ---------- | N20: ---------- | O20: ---------- | P20: ---------- | Q20: ---------- | R20: ---------- | S20: ---------- | T20: ---------- | U20: ---------- | V20: ---------- | W20: ---------- | X20: ---------- | Y20: ---------- | Z20: ---------- | AA20: ---------- | AB20: ---------- | AC20: ---------- | AD20: ---------- | AE20: ---------- | AF20: ---------- | AG20: ---------- | AH20: 불참
B21: 17 | C21: =HLOOKUP($E$1,명렬전체!$B$1:$K$32,19,FALSE) ->  | D21: . | E21: . | F21: ---------- | G21: ---------- | H21: . | I21: . | J21: ---------- | K21: ---------- | L21: . | M21: . | N21: . | O21: . | P21: ---------- | Q21: ---------- | R21: . | S21: . | T21: ---------- | U21: ---------- | V21: . | W21: . | X21: . | Y21: . | Z21: ---------- | AA21: ---------- | AB21: . | AC21: . | AD21: ---------- | AE21: ---------- | AF21: . | AG21: . | AH21: 월수금
B22: 18 | C22: =HLOOKUP($E$1,명렬전체!$B$1:$K$32,20,FALSE) ->  | D22: . | E22: . | F22: . | G22: . | H22: ---------- | I22: ---------- | J22: . | K22: . | L22: ---------- | M22: ---------- | N22: . | O22: . | P22: . | Q22: . | R22: ---------- | S22: ---------- | T22: . | U22: . | V22: ---------- | W22: ---------- | X22: . | Y22: . | Z22: . | AA22: . | AB22: ---------- | AC22: ---------- | AD22: . | AE22: . | AF22: ---------- | AG22: ---------- | AH22: 월화목
B23: 19 | C23: =HLOOKUP($E$1,명렬전체!$B$1:$K$32,21,FALSE) ->  | D23: ---------- | E23: ---------- | F23: ---------- | G23: ---------- | H23: . | I23: . | J23: . | K23: . | L23: . | M23: . | N23: ---------- | O23: ---------- | P23: ---------- | Q23: ---------- | R23: . | S23: . | T23: . | U23: . | V23: . | W23: . | X23: ---------- | Y23: ---------- | Z23: ---------- | AA23: ---------- | AB23: . | AC23: . | AD23: . | AE23: . | AF23: . | AG23: . | AH23: 수목금
B24: 20 | C24: =HLOOKUP($E$1,명렬전체!$B$1:$K$32,22,FALSE) ->  | D24: . | E24: . | F24: . | G24: . | H24: . | I24: . | J24: ---------- | K24: ---------- | L24: . | M24: . | N24: . | O24: . | P24: . | Q24: . | R24: . | S24: . | T24: ---------- | U24: ---------- | V24: . | W24: . | X24: . | Y24: . | Z24: . | AA24: . | AB24: . | AC24: . | AD24: ---------- | AE24: ---------- | AF24: . | AG24: . | AH24: 월화수금
B25: 21 | C25: =HLOOKUP($E$1,명렬전체!$B$1:$K$32,23,FALSE) ->  | D25: =IF($AH25="불참","----------",IF(ISERROR(SEARCH("월",$AH25,1)>0),"----------",".")) -> . | E25: . | F25: =IF($AH25="불참","----------",IF(ISERROR(SEARCH("화",$AH25,1)>0),"----------",".")) -> . | G25: . | H25: =IF($AH25="불참","----------",IF(ISERROR(SEARCH("수",$AH25,1)>0),"----------",".")) -> ---------- | I25: ---------- | J25: . | K25: . | L25: =IF($AH25="불참","----------",IF(ISERROR(SEARCH("금",$AH25,1)>0),"----------",".")) -> . | M25: . | N25: =IF($AH25="불참","----------",IF(ISERROR(SEARCH("월",$AH25,1)>0),"----------",".")) -> . | O25: . | P25: =IF($AH25="불참","----------",IF(ISERROR(SEARCH("화",$AH25,1)>0),"----------",".")) -> . | Q25: . | R25: =IF($AH25="불참","----------",IF(ISERROR(SEARCH("수",$AH25,1)>0),"----------",".")) -> ---------- | S25: ---------- | T25: =IF($AH25="불참","----------",IF(ISERROR(SEARCH("목",$AH25,1)>0),"----------",".")) -> . | U25: . | V25: =IF($AH25="불참","----------",IF(ISERROR(SEARCH("금",$AH25,1)>0),"----------",".")) -> . | W25: . | X25: =IF($AH25="불참","----------",IF(ISERROR(SEARCH("월",$AH25,1)>0),"----------",".")) -> . | Y25: . | Z25: =IF($AH25="불참","----------",IF(ISERROR(SEARCH("화",$AH25,1)>0),"----------",".")) -> . | AA25: . | AB25: =IF($AH25="불참","----------",IF(ISERROR(SEARCH("수",$AH25,1)>0),"----------",".")) -> ---------- | AC25: ---------- | AD25: =IF($AH25="불참","----------",IF(ISERROR(SEARCH("목",$AH25,1)>0),"----------",".")) -> . | AE25: . | AF25: =IF($AH25="불참","----------",IF(ISERROR(SEARCH("금",$AH25,1)>0),"----------",".")) -> . | AG25: . | AH25: 월화목금
B26: 22 | C26: =HLOOKUP($E$1,명렬전체!$B$1:$K$32,24,FALSE) ->  | D26: . | E26: . | F26: ---------- | G26: ---------- | H26: ---------- | I26: ---------- | J26: . | K26: . | L26: . | M26: . | N26: . | O26: . | P26: ---------- | Q26: ---------- | R26: ---------- | S26: ---------- | T26: . | U26: . | V26: . | W26: . | X26: . | Y26: . | Z26: ---------- | AA26: ---------- | AB26: ---------- | AC26: ---------- | AD26: . | AE26: . | AF26: . | AG26: . | AH26: 월목금
B27: 23 | C27: =HLOOKUP($E$1,명렬전체!$B$1:$K$32,25,FALSE) ->  | D27: . | E27: . | F27: . | G27: . | H27: . | I27: . | J27: . | K27: . | L27: ---------- | M27: ---------- | N27: . | O27: . | P27: . | Q27: . | R27: . | S27: . | T27: . | U27: . | V27: ---------- | W27: ---------- | X27: . | Y27: . | Z27: . | AA27: . | AB27: . | AC27: . | AD27: . | AE27: . | AF27: ---------- | AG27: ---------- | AH27: 월화수목
B28: 24 | C28: =HLOOKUP($E$1,명렬전체!$B$1:$K$32,26,FALSE) ->  | D28: ---------- | E28: ---------- | F28: . | G28: . | H28: . | I28: . | J28: ---------- | K28: ---------- | L28: . | M28: . | N28: ---------- | O28: ---------- | P28: . | Q28: . | R28: . | S28: . | T28: ---------- | U28: ---------- | V28: . | W28: . | X28: ---------- | Y28: ---------- | Z28: . | AA28: . | AB28: . | AC28: . | AD28: ---------- | AE28: ---------- | AF28: . | AG28: . | AH28: 화수금
B29: 25 | C29: =HLOOKUP($E$1,명렬전체!$B$1:$K$32,27,FALSE) ->  | D29: . | E29: . | F29: ---------- | G29: ---------- | H29: . | I29: . | J29: . | K29: . | L29: . | M29: . | N29: . | O29: . | P29: ---------- | Q29: ---------- | R29: . | S29: . | T29: . | U29: . | V29: . | W29: . | X29: . | Y29: . | Z29: ---------- | AA29: ---------- | AB29: . | AC29: . | AD29: . | AE29: . | AF29: . | AG29: . | AH29: 월수목금
B30: 26 | C30: =HLOOKUP($E$1,명렬전체!$B$1:$K$32,28,FALSE) ->  | D30: . | E30: . | F30: ---------- | G30: ---------- | H30: . | I30: . | J30: ---------- | K30: ---------- | L30: ---------- | M30: ---------- | N30: . | O30: . | P30: ---------- | Q30: ---------- | R30: . | S30: . | T30: ---------- | U30: ---------- | V30: ---------- | W30: ---------- | X30: . | Y30: . | Z30: ---------- | AA30: ---------- | AB30: . | AC30: . | AD30: ---------- | AE30: ---------- | AF30: ---------- | AG30: ---------- | AH30: 월수
B31: 27 | C31: =HLOOKUP($E$1,명렬전체!$B$1:$K$32,29,FALSE) ->  | D31: ---------- | E31: ---------- | F31: ---------- | G31: ---------- | H31: ---------- | I31: ---------- | J31: ---------- | K31: ---------- | L31: ---------- | M31: ---------- | N31: ---------- | O31: ---------- | P31: ---------- | Q31: ---------- | R31: ---------- | S31: ---------- | T31: ---------- | U31: ---------- | V31: ---------- | W31: ---------- | X31: ---------- | Y31: ---------- | Z31: ---------- | AA31: ---------- | AB31: ---------- | AC31: ---------- | AD31: ---------- | AE31: ---------- | AF31: ---------- | AG31: ----------
B32: 28 | C32: =HLOOKUP($E$1,명렬전체!$B$1:$K$32,30,FALSE) ->  | D32: ---------- | E32: ---------- | F32: ---------- | G32: ---------- | H32: ---------- | I32: ---------- | J32: ---------- | K32: ---------- | L32: ---------- | M32: ---------- | N32: ---------- | O32: ---------- | P32: ---------- | Q32: ---------- | R32: ---------- | S32: ---------- | T32: ---------- | U32: ---------- | V32: ---------- | W32: ---------- | X32: ---------- | Y32: ---------- | Z32: ---------- | AA32: ---------- | AB32: ---------- | AC32: ---------- | AD32: ---------- | AE32: ---------- | AF32: ---------- | AG32: ---------- | AH32: 불참
B33: 29 | C33: =HLOOKUP($E$1,명렬전체!$B$1:$K$32,31,FALSE) ->  | D33: ---------- | E33: ---------- | F33: ---------- | G33: ---------- | H33: ---------- | I33: ---------- | J33: ---------- | K33: ---------- | L33: ---------- | M33: ---------- | N33: ---------- | O33: ---------- | P33: ---------- | Q33: ---------- | R33: ---------- | S33: ---------- | T33: ---------- | U33: ---------- | V33: ---------- | W33: ---------- | X33: ---------- | Y33: ---------- | Z33: ---------- | AA33: ---------- | AB33: ---------- | AC33: ---------- | AD33: ---------- | AE33: ---------- | AF33: ---------- | AG33: ----------
B34: 30 | C34: =HLOOKUP($E$1,명렬전체!$B$1:$K$32,32,FALSE) ->  | D34: ---------- | E34: ---------- | F34: ---------- | G34: ---------- | H34: ---------- | I34: ---------- | J34: ---------- | K34: ---------- | L34: ---------- | M34: ---------- | N34: ---------- | O34: ---------- | P34: ---------- | Q34: ---------- | R34: ---------- | S34: ---------- | T34: ---------- | U34: ---------- | V34: ---------- | W34: ---------- | X34: ---------- | Y34: ---------- | Z34: ---------- | AA34: ---------- | AB34: ---------- | AC34: ---------- | AD34: ---------- | AE34: ---------- | AF34: ---------- | AG34: ----------
B35: 31 | C35: =HLOOKUP($E$1,명렬전체!$B$1:$K$32,33,FALSE) ->  | D35: ---------- | E35: ---------- | F35: ---------- | G35: ---------- | H35: ---------- | I35: ---------- | J35: ---------- | K35: ---------- | L35: ---------- | M35: ---------- | N35: ---------- | O35: ---------- | P35: ---------- | Q35: ---------- | R35: ---------- | S35: ---------- | T35: ---------- | U35: ---------- | V35: ---------- | W35: ---------- | X35: ---------- | Y35: ---------- | Z35: ---------- | AA35: ---------- | AB35: ---------- | AC35: ---------- | AD35: ---------- | AE35: ---------- | AF35: ---------- | AG35: ----------
B36: 32 | C36: =HLOOKUP($E$1,명렬전체!$B$1:$K$32,34,FALSE) ->  | D36: ---------- | E36: ---------- | F36: ---------- | G36: ---------- | H36: ---------- | I36: ---------- | J36: ---------- | K36: ---------- | L36: ---------- | M36: ---------- | N36: ---------- | O36: ---------- | P36: ---------- | Q36: ---------- | R36: ---------- | S36: ---------- | T36: ---------- | U36: ---------- | V36: ---------- | W36: ---------- | X36: ---------- | Y36: ---------- | Z36: ---------- | AA36: ---------- | AB36: ---------- | AC36: ---------- | AD36: ---------- | AE36: ---------- | AF36: ---------- | AG36: ----------
B37: 33 | C37: =HLOOKUP($E$1,명렬전체!$B$1:$K$32,35,FALSE) ->  | D37: ---------- | E37: ---------- | F37: ---------- | G37: ---------- | H37: ---------- | I37: ---------- | J37: ---------- | K37: ---------- | L37: ---------- | M37: ---------- | N37: ---------- | O37: ---------- | P37: ---------- | Q37: ---------- | R37: ---------- | S37: ---------- | T37: ---------- | U37: ---------- | V37: ---------- | W37: ---------- | X37: ---------- | Y37: ---------- | Z37: ---------- | AA37: ---------- | AB37: ---------- | AC37: ---------- | AD37: ---------- | AE37: ---------- | AF37: ---------- | AG37: ----------
B38: 34 | C38: =HLOOKUP($E$1,명렬전체!$B$1:$K$32,36,FALSE) ->  | D38: ---------- | E38: ---------- | F38: ---------- | G38: ---------- | H38: ---------- | I38: ---------- | J38: ---------- | K38: ---------- | L38: ---------- | M38: ---------- | N38: ---------- | O38: ---------- | P38: ---------- | Q38: ---------- | R38: ---------- | S38: ---------- | T38: ---------- | U38: ---------- | V38: ---------- | W38: ---------- | X38: ---------- | Y38: ---------- | Z38: ---------- | AA38: ---------- | AB38: ---------- | AC38: ---------- | AD38: ---------- | AE38: ---------- | AF38: ---------- | AG38: ---------- | AH38: 불참
B39: 35 | C39: =HLOOKUP($E$1,명렬전체!$B$1:$K$32,37,FALSE) ->  | D39: ---------- | E39: ---------- | F39: ---------- | G39: ---------- | H39: ---------- | I39: ---------- | J39: ---------- | K39: ---------- | L39: ---------- | M39: ---------- | N39: ---------- | O39: ---------- | P39: ---------- | Q39: ---------- | R39: ---------- | S39: ---------- | T39: ---------- | U39: ---------- | V39: ---------- | W39: ---------- | X39: ---------- | Y39: ---------- | Z39: ---------- | AA39: ---------- | AB39: ---------- | AC39: ---------- | AD39: ---------- | AE39: ---------- | AF39: ---------- | AG39: ---------- | AH39: 불참
B40: 참가할 인원 | D40: =COUNTIF(D5:D39,".") -> 17 | E40: 17 | F40: 10 | G40: 10 | H40: 12 | I40: 12 | J40: 12 | K40: 12 | L40: 12 | M40: 12 | N40: 17 | O40: 17 | P40: 10 | Q40: 10 | R40: 12 | S40: 12 | T40: 12 | U40: 12 | V40: 12 | W40: 12 | X40: 17 | Y40: 17 | Z40: 10 | AA40: 10 | AB40: 12 | AC40: 12 | AD40: 12 | AE40: 12 | AF40: 12 | AG40: 12
B41: 참가인원
